{"text_format":"1","workbook":"xlsx","n_sheets":6,"sheets":["Overview & Instructions","MBE Maturity Index","MBE Lexicon","Assessment Charts","Peer Comments","Score Summary"],"not_rendered":{"charts":6,"images":4,"macros":1,"external_links":0,"defined_names":13,"comments":1,"pivot_tables":0},"unopened":[],"bounds":{"document_bytes":16777216,"sheet_cells":100000,"rows_first":2000,"rows_last":500,"rows_between":2000,"halvings":0,"cell_chars":16384,"cell_head_chars":4096},"cells_cut":0,"cells_raw":0,"read":"whole","date_system":"1900"}

{"sheet":"Overview & Instructions","index":0,"n_rows":105,"n_cols":5,"rows_kept":105,"cut":false,"hidden":false,"merged":[[104,4,104,19],[36,1,36,19],[79,1,79,19],[74,1,74,19],[91,1,91,19],[95,1,95,19],[61,1,63,1]]}
["Overview and Instructions for Model-Based Enterprise (MBE) Maturity Index"]
[null,"The NSE MBE Maturity Index is a rubric-like tool that an organization uses to assess itself as, and facilitate transition to, a Model-Based Enterprise (MBE).\n"]
[null,null,"The intent of this index is to allow an organization to assess their MBE maturity and to identify distinctive steps along their MBE implementation journey. "]
[null,null,"The index provides a common point of reference for MBE communication.  It establishes a common context that is no less indispensable than a common language: the MBE lexicon."]
[null,null,"Through broad categories of activities, topics within a category, and facets of a topic, this tool shows a progression towards becoming more digital, better integrated, and more automated."]
[null,null,"The index is designed to allow an organization to identify different levels of maturity for each of the categories, topics, and facets at three different as-is ratings (i.e., capability, readiness, and adoption). "]
[null,null,"Results from this assessment will allow your organization to tailor a MBE roadmap of where you want your organization to be in some future state. Then this roadmap can be used to develop a MBE implementation plan."]
[]
["Contents of this Workbook"]
[null,"Tab 1","Overview & instructions for using this workbook (this tab)"]
[null,"Tab 2","MBE Maturity Index: This is the full assessment tool.  See instructions below."]
[null,"Tab 3","MBE Lexicon: Some key terms in the MBE vocabulary. Use \"Specialization\" column to refine the definition to your needs.  Use \"Organization Comments\" column to record your thoughts on these terms."]
[null,"Tab 4","Assessment Charts: Shows RADAR charts for your assessment results.  A chart for overall MBE maturity and a chart for each category of activities. (Read Only)"]
[null,"Tab 5","Peer Comments: Worksheet for capturing peer review comments."]
[null,"Tab 6","Score Summary: Shows the results of your assessment in tabular fashion. (Read Only)"]
[]
["Structure of the MBE Maturity Index"]
["Note: You can expand/collapse sections using the +/- symbols or the [1][2] boxes to the left of the Index."]
["●","Columns L0 through L6 are the maturity levels."]
[null,null,"Two columns to the left of L0 provide the description and intent of each row. You can show/hide these columns by clicking on the +/- sign above them."]
["●","Rows are items to assess, and are organized as follows:"]
[null,null,"C# is a broad category of activities."]
[null,null,"T# is a topic within a category"]
[null,null,"F# is a facet of a topic to be assessed.  This is what you actually rate."]
["●","The cell at the intersection of each Facet (row) and Level (column) is an assertion that you will compare your organization against."]
["●","At the far right are the areas where you record your assessment ratings:"]
[null,null,"The TO-BE column is where you record the targets for your organization."]
[null,null,"The AS-IS columns are where you record the ratings for your organization in its current condition:"]
[null,null,null,"Capability refers to the tools, technologies, and standards available for use within the organization."]
[null,null,null,"Readiness refers to the processes, policies, procedures that are ready to be exercised within the organization."]
[null,null,null,"Adoption refers to the degree that people in your organization are actually using those tools and processes."]
[null,null,"Only the WHITE cells are available for input.  All other numeric cells are calculated."]
["●","The index uses grouping, indicated by [1] [2] boxes at the upper left of the sheet, and by +/- indicators"]
[null,null,"Categories/Topics/Facets are grouped rows"]
[null,null,"The columns that contain descriptions of the assessment rows are grouped."]
[null,null,"The columns that contain Point of Contact (POC) and comment fields are grouped."]
["●","A few Categories or Topics have a usage note comment (noted by a small red triangle in top-right corner of the cell), in which the accessor may want to access this Category or Topic separately via selected contexts as denoted as X#."]
[]
["When you open the file…"]
["●","Enable macros (click on the prompt, if it shows near the top of the window)."]
["●","Optionally, File->Options->Trust Center->Trust Settings->Macro Settings->Enable all macros"]
[]
["Before you Start with the MBE Assessment…"]
["●","Determine the scope of your assessment."]
[null,null,"Define your organization. "]
[null,null,"Define scope by organizational, part/subsystem/product, functional, classification, or other boundary conditions (e.g. a horizontal fragment or vertical slice of a supply chain)"]
[null,null,"Within the Index, the term inter-organization refers to between peer organization whereas the term supra-organization refers to an entity above, in positional sense, over the organization. "]
["●","At the top of the MBE Maturity Index worksheet, fill in the general information (ID, name of organization, description of environment, assessor, target date/event, version)."]
[null,null,"The Target Date/Event is when the organization desires to realize their \"TO-BE\" state.  Specify either an event that represents a strategic juncture, or the date associated with the event."]
["●","Browse the entire MBE Maturity Index to become familiar with the content."]
["●","Any assertion cell that says \"Same\" means that level has the same maturity as the one to the LEFT of it."]
["●","If a new idea or requirement appears in the next level, add or 'AND' that new requirement with the preceding assertion (to the left)."]
[]
["How to Perform an MBE Assessment"]
[1,"For each Facet, determine the current AS-IS Level (N/A, 0, 1, 2, 3, 4, 5, 6)."]
[null,"For each assessment, determine which AS-IS rating area (Capability, Readiness, and Adoption) is being assessed:"]
[null,null,"Starting at L0, determine if your organization meets or exceeds the assertion."]
[null,null,"* If YES, then move right to the next level.  If the cell has \"same\",  move to the right."]
[null,null,"* If NO, then the previous level is your current level for that facet."]
[null,null,"(For example, if you satisfy Level 4 but not Level 5, then your score for the facet is 4.)"]
[2,"At the right of each Facet, select the appropriate AS-IS ratings in the WHITE cells."]
[null,"Ask yourself -->","Does my organization have technology/tools Capable to perform these requirements?"]
[null,null,"Does my organization have processes Ready to implement these tools to perform these requirements?"]
[null,null,"Has my organization Adopted (actually using) these processes and capabilities to perform their work?"]
[null,"The Index automatically calculates cumulative the AS-IS averages for the Topic, Category, and overall Index."]
[null,"If the Facet is not applicable to your organization under assessment, fill in the rating cells as N/A.  This line will not be added to your overall score."]
[3,"At the far right of each Facet select a TO-BE rating in the Target column (WHITE cell) per the scope of your assessment."]
[null,"The Index automatically calculates cumulative TO-BE average for topic, category and overall index."]
[4,"As appropriate, use the columns to the far right of the ratings to describe the basis of your assessment."]
[5,"When you are done, enter the Assessment date at the top of the Index. It means that your enterprise had the \"AS-IS\" scores on this date."]
[]
["Tips and Tricks"]
["●","Click here to learn how to use grouping indicators"]
["●","To make mass changes to a block of ratings, use native Excel features (e.g., drag cells, copy+paste)."]
["●","The concept of 'enterprise' is contextual and may vary across Facets. Generally, 'enterprise' refers to the supra-organization that is accountable for delivering an output/outcome to a customer, whereas a local business unit is responsible for certain accomplishments.  Whereas an 'organization' typically refers to the OUA, and a local business unit is responsible for the most granular accomplishments."]
["●","To indicate that you haven't addressed that row yet, you can blank out (empty) a rating cell, instead of using N/A."]
["●","To see a tooltip identifying your position (e.g. C1:T1:F1:L5) in the Index, left-click on any row heading or assertion in the index. (where, C=Category; T=Topic: F=Facet; L=Level.)"]
["●","To go directly to a known position in the Index, right-click anywhere in the index, select \"Go to CTFL Position\", and type a position specifier in the form: \"C#:T#:F#\" or \"C#:T#:F#:L#\"."]
["●","To copy the position of the current cell in the Index, right-click on that cell and select \"Copy Position in Index\"."]
["●","What if I want to skip a Level for a Facet? Consider the progression.  If the facet is cumulative with and statements, levels are likely not skippable.  If the facet is not cumulative, you may be able to skip a level of maturity without implementing each."]
["●","Some Facet definitions have a comment on usage."]
["●","If you really want to reset all scores (to either \"N/A\" or empty)…"]
[null,"* Click on the \"R\" button in the TO-BE column header  to reset all target scores."]
[null,"* Click on the \"Reset\" button in the AS-IS column header to reset all AS-IS scores."]
[]
["Review your MBE Maturity Assessment Charts and Score Summary"]
[null,"As you modify and complete your assessment ratings, the Chart and Chart Data tabs automatically change to reflect your input."]
[null,"Use these aids to determine whether you need to change some of your ratings."]
[null,"The Score Summary sheet contains a Topic Only Summary that helps produce the Assessment Charts; as well as contain a Score Summary for ALL Facets."]
[]
["NSE MBE Maturity Index Rev A.2"]
[null,"In its original form, this document, NSC-614-3432, was approved March 2021 for Unclassifed Unlimited Release (UUR) and was developed by personnel from Department of Energy's (DOE) National laboratories and plants and HQ elements working for the National Nuclear Security Administration (NNSA)."]
[null,"The information conveyed in this document has been normalized to help progress the maturation of Model-Based Enterprise (MBE) across industry."]
[]
["Distribution Statement:  "]
[null,"Copyright National Nuclear Security Administration (NNSA), made available to the public through the Creative Commons' Attribution-NonCommercial-NoDerivatives 4.0 International (CC BY-NC-ND 4.0) license  (https://creativecommons.org/licenses/by-nc-nd/4.0/legalcode)."]
[null,"This version is a working release and has been made available as a rubic tool aid for performing MBE Maturity assessments and to facilitate change. "]
[null,"Furthermore we continue to solicit peer review and to obtain focus area validation and improvements via the Peer Comments worksheet."]
[null,"Comments, suggestions, or questions on this document should be addressed to Curtis Brown, cbrown@kcnsc.doe.gov"]
[null,null,"Please use the \"Peer Comments\" worksheet to capture your comments."]
[]
["Change Statements"]
[null,"Rev A",null,"20210317","Document released as Unclassified Unlimited Release per NSC-614-3432"]
[null,"Rev A.1",null,"20210618","Enabled users to change the name of the Index within Row 4 of the Index Worksheet"]
[null,"Rev A.2",null,"20210702","Enabled users to Format Row, Columns, and Cells within the Index Worksheet, thus allowing rows and columns to be hidden/unhidden and cells to be reformated; Fixed some typos"]

{"sheet":"MBE Maturity Index","index":1,"n_rows":170,"n_cols":22,"rows_kept":170,"cut":false,"hidden":false,"merged":[[0,0,0,2],[67,1,67,4],[77,1,77,4],[81,1,81,4],[85,1,85,4],[17,1,17,4],[21,1,21,4],[28,1,28,4],[32,1,32,4],[40,1,40,4],[38,0,38,2],[43,1,43,4],[50,1,50,4],[58,1,58,4],[62,1,62,4],[54,1,54,4],[3,20,3,21],[2,0,2,2],[1,0,1,2],[1,6,1,10],[2,6,2,10],[1,11,1,12],[2,11,2,12],[1,14,1,16],[2,14,2,16],[1,20,1,21],[2,20,2,21],[2,3,2,4],[1,3,1,4],[1,17,1,19],[2,17,2,19],[3,15,3,17],[140,1,140,4],[70,0,70,2],[115,1,115,4],[119,1,119,4],[124,1,124,4],[128,1,128,4],[132,1,132,4],[96,1,96,4],[99,1,99,4],[106,1,106,4],[111,1,111,4],[104,0,104,2],[105,0,105,2],[72,1,72,4],[90,1,90,4],[160,1,160,4],[165,1,165,4],[3,2,3,12],[39,0,39,2],[6,0,6,2],[4,0,5,2],[7,1,7,4],[9,1,9,4],[12,1,12,4],[71,0,71,2],[136,0,136,2],[135,0,135,2],[154,1,154,4],[143,1,143,4],[148,1,148,4],[137,1,137,4]]}
["MBE Category / Topic / Facet / (Context)",null,null,"Description: How the organization . . .","Transition: As maturity increases, the organization's . . .",null,"Drawing-Centric \n(L0)","Drawing \nModel-Centric \n(L1)","Validated  \nModel-Centric \n(L2)","Formalized \nModel-Based Definition (L3)","Trusted \nModel-Based Definition (L4)","Integrated \nModel-Based Enterprise (L5)","Extended \nModel-Based Enterprise (L6)",null,null,"AS-IS Level: Capability","AS-IS Level: Readiness","AS-IS Level: Adoption","TO-BE Level: Target",null,"POC","Comment"]
["Assessment Identifier (AID):",null,null,"Organization under assessment (OUA):",null,null,"Description of Environment:",null,null,null,null,"Assessor:",null,null,"Assessment Date:",null,null,"Target Date/Event:",null,null,"Version of Assessment:"]
["[organizationally unique identifier]",null,null,"[name of organization]",null,null,"[bounding conditions that establish and differentiate the organization under assessment]",null,null,null,null,"[Individual(s) or group]",null,null,"[when started]",null,null,"[when implemented]",null,null,"[version]"]
[null,null,"NSE MBE Maturity Index Rev A.2",null,null,null,null,null,null,null,null,null,null,null,null,"AS-IS Level",null,null,"TO-BE Level",null,"Assessor comments below."]
["\n                      Maturity Level Name\n\n                                               Level #\nCategories (e.g., C1)\n└─Topics (e.g., T3) \n      └─Facets (e.g., F2)",null,null,null,null,null,"Drawing-Centric","Drawing Model-Centric","Validated  Model-Centric","Formalized Model-Based Definition","Trusted Model-Based Definition","Integrated Model-Based Enterprise","Extended Model-Based Enterprise","Weight Factor for Topic/Facet\n[0,2,5,8,10]",null,"Capability:  Tools are Available?","Readiness:  Processes are Ready?","Adoption:  People are Using?","Target Adoption",null,"POC","Comment"]
[null,null,null,"Description: How the organization . . .","Transition: As maturity increases, the organization's . . .",null,"L0","L1","L2","L3","L4","L5","L6",null,null,{"$f":"IF(COUNT(P7,P40,P72,P106,P137)=0,\"N/A\",SUM(IF(P7<>\"N/A\",P7*$N7,0),IF(P40<>\"N/A\",P40*$N40,0),IF(P72<>\"N/A\",P72*$N72,0),IF(P106<>\"N/A\",P106*$N106,0),IF(P137<>\"N/A\",P137*$N137,0))/SUM(IF(P7<>\"N/A\",$N7,0),IF(P40<>\"N/A\",$N40,0),IF(P72<>\"N/A\",$N72,0),IF(P106<>\"N/A\",$N106,0),IF(P137<>\"N/A\",$N137,0)))","v":0},{"$f":"IF(COUNT(Q7,Q40,Q72,Q106,Q137)=0,\"N/A\",SUM(IF(Q7<>\"N/A\",Q7*$N7,0),IF(Q40<>\"N/A\",Q40*$N40,0),IF(Q72<>\"N/A\",Q72*$N72,0),IF(Q106<>\"N/A\",Q106*$N106,0),IF(Q137<>\"N/A\",Q137*$N137,0))/SUM(IF(Q7<>\"N/A\",$N7,0),IF(Q40<>\"N/A\",$N40,0),IF(Q72<>\"N/A\",$N72,0),IF(Q106<>\"N/A\",$N106,0),IF(Q137<>\"N/A\",$N137,0)))","v":0},{"$f":"IF(COUNT(R7,R40,R72,R106,R137)=0,\"N/A\",SUM(IF(R7<>\"N/A\",R7*$N7,0),IF(R40<>\"N/A\",R40*$N40,0),IF(R72<>\"N/A\",R72*$N72,0),IF(R106<>\"N/A\",R106*$N106,0),IF(R137<>\"N/A\",R137*$N137,0))/SUM(IF(R7<>\"N/A\",$N7,0),IF(R40<>\"N/A\",$N40,0),IF(R72<>\"N/A\",$N72,0),IF(R106<>\"N/A\",$N106,0),IF(R137<>\"N/A\",$N137,0)))","v":0},{"$f":"IF(COUNT(S7,S40,S72,S106,S137)=0,\"N/A\",SUM(IF(S7<>\"N/A\",S7*$N7,0),IF(S40<>\"N/A\",S40*$N40,0),IF(S72<>\"N/A\",S72*$N72,0),IF(S106<>\"N/A\",S106*$N106,0),IF(S137<>\"N/A\",S137*$N137,0))/SUM(IF(S7<>\"N/A\",$N7,0),IF(S40<>\"N/A\",$N40,0),IF(S72<>\"N/A\",$N72,0),IF(S106<>\"N/A\",$N106,0),IF(S137<>\"N/A\",$N137,0)))","v":0}]
["C1: Design Activities",null,null,{"$f":"DesignActivities","v":"Activities involved in designing a product."},"Product definition becomes a trusted model-based definition dataset.",null,"2D Drawings used for all activities","2D Drawings derived from models","2D Drawings and other derivatives from validated 3D model","Semantic PMI included within 3D model","Certified, Authorized MBD","MBD dataset made useable for all lifecycle activities within enterprise","MBD Dataset made useable for all lifecycle activities",4,null,{"$f":"IF(COUNT(P8,P10,P13,P18,P22,P29,P33)=0,\"N/A\",SUM(IF(P8<>\"N/A\",P8*$N8,0),IF(P10<>\"N/A\",P10*$N10,0),IF(P13<>\"N/A\",P13*$N13,0),IF(P18<>\"N/A\",P18*$N18,0),IF(P22<>\"N/A\",P22*$N22,0),IF(P29<>\"N/A\",P29*$N29,0),IF(P33<>\"N/A\",P33*$N33,0))/SUM(IF(P8<>\"N/A\",$N8,0),IF(P10<>\"N/A\",$N10,0),IF(P13<>\"N/A\",$N13,0),IF(P18<>\"N/A\",$N18,0),IF(P22<>\"N/A\",$N22,0),IF(P29<>\"N/A\",$N29,0),IF(P33<>\"N/A\",$N33,0)))","v":0},{"$f":"IF(COUNT(Q8,Q10,Q13,Q18,Q22,Q29,Q33)=0,\"N/A\",SUM(IF(Q8<>\"N/A\",Q8*$N8,0),IF(Q10<>\"N/A\",Q10*$N10,0),IF(Q13<>\"N/A\",Q13*$N13,0),IF(Q18<>\"N/A\",Q18*$N18,0),IF(Q22<>\"N/A\",Q22*$N22,0),IF(Q29<>\"N/A\",Q29*$N29,0),IF(Q33<>\"N/A\",Q33*$N33,0))/SUM(IF(Q8<>\"N/A\",$N8,0),IF(Q10<>\"N/A\",$N10,0),IF(Q13<>\"N/A\",$N13,0),IF(Q18<>\"N/A\",$N18,0),IF(Q22<>\"N/A\",$N22,0),IF(Q29<>\"N/A\",$N29,0),IF(Q33<>\"N/A\",$N33,0)))","v":0},{"$f":"IF(COUNT(R8,R10,R13,R18,R22,R29,R33)=0,\"N/A\",SUM(IF(R8<>\"N/A\",R8*$N8,0),IF(R10<>\"N/A\",R10*$N10,0),IF(R13<>\"N/A\",R13*$N13,0),IF(R18<>\"N/A\",R18*$N18,0),IF(R22<>\"N/A\",R22*$N22,0),IF(R29<>\"N/A\",R29*$N29,0),IF(R33<>\"N/A\",R33*$N33,0))/SUM(IF(R8<>\"N/A\",$N8,0),IF(R10<>\"N/A\",$N10,0),IF(R13<>\"N/A\",$N13,0),IF(R18<>\"N/A\",$N18,0),IF(R22<>\"N/A\",$N22,0),IF(R29<>\"N/A\",$N29,0),IF(R33<>\"N/A\",$N33,0)))","v":0},{"$f":"IF(COUNT(S8,S10,S13,S18,S22,S29,S33)=0,\"N/A\",SUM(IF(S8<>\"N/A\",S8*$N8,0),IF(S10<>\"N/A\",S10*$N10,0),IF(S13<>\"N/A\",S13*$N13,0),IF(S18<>\"N/A\",S18*$N18,0),IF(S22<>\"N/A\",S22*$N22,0),IF(S29<>\"N/A\",S29*$N29,0),IF(S33<>\"N/A\",S33*$N33,0))/SUM(IF(S8<>\"N/A\",$N8,0),IF(S10<>\"N/A\",$N10,0),IF(S13<>\"N/A\",$N13,0),IF(S18<>\"N/A\",$N18,0),IF(S22<>\"N/A\",$N22,0),IF(S29<>\"N/A\",$N29,0),IF(S33<>\"N/A\",$N33,0)))","v":0}]
[null,"T1: Product Authority",null,null,null,null,null,null,null,null,null,null,null,4,null,{"$f":"IF(COUNTIF(P9:P9,\"N/A\")=ROWS(P9:P9),\"N/A\",P9)","v":0},{"$f":"IF(COUNTIF(Q9:Q9,\"N/A\")=ROWS(Q9:Q9),\"N/A\",Q9)","v":0},0,0]
[null,null,"F1: Authorized Definition","Identifies the authorized product definition (i.e. legal definition).","MBD Datasets become the product authority.",null,"Paper 2D drawing with support documents","Electronic 2D drawing with support documents","2D drawing from 3D model with support documents and support model ","3D drawing (e.g. 3D Interactive Viewable) from MBD model with support documents and support model","MBD model with support drawing and support documents","MBD Dataset containing all authorized product definition artifacts.","Same w/ algorithmic-based model",4]
[null,"T2: Product Requirements\n",null,null,null,null,null,null,null,null,null,null,null,4,null,{"$f":"IF(COUNTIF(P11:P12,\"N/A\")=ROWS(P11:P12),\"N/A\",(SUMPRODUCT(--(P11:P12<>\"N/A\"),$N11:$N12,P11:P12))/SUMIF(P11:P12,\"<>N/A\",$N11:$N12))","v":0},{"$f":"IF(COUNTIF(Q11:Q12,\"N/A\")=ROWS(Q11:Q12),\"N/A\",(SUMPRODUCT(--(Q11:Q12<>\"N/A\"),$N11:$N12,Q11:Q12))/SUMIF(Q11:Q12,\"<>N/A\",$N11:$N12))","v":0},{"$f":"IF(COUNTIF(R11:R12,\"N/A\")=ROWS(R11:R12),\"N/A\",(SUMPRODUCT(--(R11:R12<>\"N/A\"),$N11:$N12,R11:R12))/SUMIF(R11:R12,\"<>N/A\",$N11:$N12))","v":0},{"$f":"IF(COUNTIF(S11:S12,\"N/A\")=ROWS(S11:S12),\"N/A\",(SUMPRODUCT(--(S11:S12<>\"N/A\"),$N11:$N12,S11:S12))/SUMIF(S11:S12,\"<>N/A\",$N11:$N12))","v":0}]
[null,null,"F1: Form","States the representation of the product requirements as data.","Product requirements become digital.",null,"Non-electronic","Electronic","Same","Discrete digital","Same with interoperable format","Same","Same",4]
[null,null,"F2: Associativity","States how well product requirements are linked to product definition.","Product requirements become more discrete and linked to distinct features of the model.",null,"Disconnected","Manually linked to characteristic on 2D drawing","Replicated to part object in PDM system","Linked to part object in PDM system","Linked to product characteristics in 3D model","Bi-directional link","Automatic bi-directional link",4]
[null,"T3: Product Definition Representation\n",null,null,null,null,null,null,null,null,null,null,null,4,null,{"$f":"IF(COUNTIF(P14:P17,\"N/A\")=ROWS(P14:P17),\"N/A\",(SUMPRODUCT(--(P14:P17<>\"N/A\"),$N14:$N17,P14:P17))/SUMIF(P14:P17,\"<>N/A\",$N14:$N17))","v":0},{"$f":"IF(COUNTIF(Q14:Q17,\"N/A\")=ROWS(Q14:Q17),\"N/A\",(SUMPRODUCT(--(Q14:Q17<>\"N/A\"),$N14:$N17,Q14:Q17))/SUMIF(Q14:Q17,\"<>N/A\",$N14:$N17))","v":0},{"$f":"IF(COUNTIF(R14:R17,\"N/A\")=ROWS(R14:R17),\"N/A\",(SUMPRODUCT(--(R14:R17<>\"N/A\"),$N14:$N17,R14:R17))/SUMIF(R14:R17,\"<>N/A\",$N14:$N17))","v":0},{"$f":"IF(COUNTIF(S14:S17,\"N/A\")=ROWS(S14:S17),\"N/A\",(SUMPRODUCT(--(S14:S17<>\"N/A\"),$N14:$N17,S14:S17))/SUMIF(S14:S17,\"<>N/A\",$N14:$N17))","v":0}]
[null,null,"F1: Shape Definition","States how to define the base shape definition.","Shape definition becomes more applicable, precise and unambiguous.",null,"2D drawing","3D model as solid geometry","Same via feature-based design and parametric capabilities","Same with mixed modes of modeling (e.g., parametric, explicit) techniques","Same with multiple interpretations of shape features","Same with precise & unambiguous bounded complex surfaces & volumes ","Same with generative design",4]
[null,null,"F2: Non-Shape Information (Annotations, Notes)","States how to define visible non-shape product and manufacturing information (PMI).","PMI becomes more semantic, embedded in the model, and linked to model elements.",null,"Textual annotations and notes on 2D drawing","Same with textual notes driven from 3D model","Electronic annotations and notes in 3D model","Same with semantic annotations","Same with common notes across facility","Minimum standard PMI including product characteristic tags with any criticality designators","Same, with manufacturing & quality related PMI",4]
[null,null,"F3: Metadata","States where to record a product’s metadata.","Metadata becomes digital and more complete, standardized, and managed.",null,"As text on drawing","Parameters within 3D Model","Same","3D Model and PDM","Automatic syncing  between Model and PDM","Model metadata stored with model; product metadata stored with part in the PDM system","Standardized metadata",4]
[null,null,"F4: Presentation Views","Identifies the types of presentation views included in product definition.","Views become more standardized, interactive, and meaningful.",null,"2D drawing views, sections, & detail","Standard 2D drawing views, sections, & detail","Same","3D model presented in interactive views","3D model presented in standard, interactive views","Same with product characteristic views","Same with discipline specific views",4]
[null,"T4: Model Quality & Certification",null,null,null,null,null,null,null,null,null,null,null,4,null,{"$f":"IF(COUNTIF(P19:P21,\"N/A\")=ROWS(P19:P21),\"N/A\",(SUMPRODUCT(--(P19:P21<>\"N/A\"),$N19:$N21,P19:P21))/SUMIF(P19:P21,\"<>N/A\",$N19:$N21))","v":0},{"$f":"IF(COUNTIF(Q19:Q21,\"N/A\")=ROWS(Q19:Q21),\"N/A\",(SUMPRODUCT(--(Q19:Q21<>\"N/A\"),$N19:$N21,Q19:Q21))/SUMIF(Q19:Q21,\"<>N/A\",$N19:$N21))","v":0},{"$f":"IF(COUNTIF(R19:R21,\"N/A\")=ROWS(R19:R21),\"N/A\",(SUMPRODUCT(--(R19:R21<>\"N/A\"),$N19:$N21,R19:R21))/SUMIF(R19:R21,\"<>N/A\",$N19:$N21))","v":0},{"$f":"IF(COUNTIF(S19:S21,\"N/A\")=ROWS(S19:S21),\"N/A\",(SUMPRODUCT(--(S19:S21<>\"N/A\"),$N19:$N21,S19:S21))/SUMIF(S19:S21,\"<>N/A\",$N19:$N21))","v":0}]
[null,null,"F1: Verification of","States the subject of checks (e.g., business/design, geometry, & PMI).","Checks become more inclusive.",null,"Business/Design practices","Same","Same and geometry ","Same and PMI","Same","Same and process dependent checks","Same and advanced precision geometry checks",4]
[null,null,"F2: Automation","States degree of automation for verification of model quality.","Model verification becomes more automated and bound to promotion process states.",null,"Manual checks","Same","Ad hoc interactive check","Same","On demand checking","Same and automatic checks through workflow or promotion state change"," Same ",4]
[null,null,"F3: Certification","States the methods for certifying verification of the model.","Certification becomes more digital and integrated with procedural workflows.",null,"Signature on drawing","Signature on electronic drawing","Separate electronic certificate with traceability to model","Electronic certificate associated with part object","Same","Digital certificate embedded in model file","Same",4]
[null,"T5: Model Derivatives\n",null,null,null,null,null,null,null,null,null,null,null,4,null,{"$f":"IF(COUNTIF(P23:P28,\"N/A\")=ROWS(P23:P28),\"N/A\",(SUMPRODUCT(--(P23:P28<>\"N/A\"),$N23:$N28,P23:P28))/SUMIF(P23:P28,\"<>N/A\",$N23:$N28))","v":0},{"$f":"IF(COUNTIF(Q23:Q28,\"N/A\")=ROWS(Q23:Q28),\"N/A\",(SUMPRODUCT(--(Q23:Q28<>\"N/A\"),$N23:$N28,Q23:Q28))/SUMIF(Q23:Q28,\"<>N/A\",$N23:$N28))","v":0},{"$f":"IF(COUNTIF(R23:R28,\"N/A\")=ROWS(R23:R28),\"N/A\",(SUMPRODUCT(--(R23:R28<>\"N/A\"),$N23:$N28,R23:R28))/SUMIF(R23:R28,\"<>N/A\",$N23:$N28))","v":0},{"$f":"IF(COUNTIF(S23:S28,\"N/A\")=ROWS(S23:S28),\"N/A\",(SUMPRODUCT(--(S23:S28<>\"N/A\"),$N23:$N28,S23:S28))/SUMIF(S23:S28,\"<>N/A\",$N23:$N28))","v":0}]
[null,null,"F1: Content","States the information contained in a derivative model.","Derivative becomes richer and more precise.",null,"N/A","Basic delineation (e.g., shape for MCAD)","Same w/ metadata","Same w/ textual PMI","Same w/ semantic PMI","Same w/ precision for target processes","Same w/ precision for multiple target processes",4]
[null,null,"F2: Authoring Automation","States the degree of automation for generation of derivatives.","Derivative generation becomes more automated.",null,"N/A","Interactive","On demand","Automatic via promotion process state change","Same","Same","Same",4]
[null,null,"F3: Validation to & Certificates","States the degree of automation for validation of derivatives to a source, as well as the form of validation certificates.","Validation becomes more automated and certificates become more closely linked to the derivative content.",null,"N/A","Manual without certificate","Interactively with separate electronic certificate","On demand with certificate linked to PDM object","Same with embedded digital certificate","Same and automatic via a promotion process state change","Same",4]
[null,null,"F4: Pedigree","States the depth of pedigree information available.","Pedigree information increases to show traceability to origin.",null,"N/A","None","Reference to source model","Same","Same and reference to  basis model","Complete pedigree lineage to basis model","Same",4]
[null,null,"F5: Managed","States how derivatives are stored and associated with the part definition.","Derivatives are stored in connected systems and associated more closely to the part definition.",null,"N/A","Electronic file directories and disconnected","Document-centric PDM systems, but disconnected","Part-centric PDM systems, and associated","Part-centric PDM system with common connected schema approach across organization","Single, part-centric PDM throughout inter-organization","Single, part-centric PDM throughout extended supra-organization",4]
[null,null,"F6: Viewables","States the human-readable mechanism for communicating product definition.","Viewables become 3D, annotated, interactive, interrogatable, and holographic.",null,"Paper 2D Drawing","Electronic 2D static drawing","Proprietary 3D viewer, geometric interaction","Geometric and annotation interaction in a standard format","Same with interrogation ","Same","Same with holographic",4]
[null,"T6: ECAD/MCAD Collaboration\n",null,null,null,null,null,null,null,null,null,null,null,4,null,{"$f":"IF(COUNTIF(P30:P32,\"N/A\")=ROWS(P30:P32),\"N/A\",(SUMPRODUCT(--(P30:P32<>\"N/A\"),$N30:$N32,P30:P32))/SUMIF(P30:P32,\"<>N/A\",$N30:$N32))","v":0},{"$f":"IF(COUNTIF(Q30:Q32,\"N/A\")=ROWS(Q30:Q32),\"N/A\",(SUMPRODUCT(--(Q30:Q32<>\"N/A\"),$N30:$N32,Q30:Q32))/SUMIF(Q30:Q32,\"<>N/A\",$N30:$N32))","v":0},{"$f":"IF(COUNTIF(R30:R32,\"N/A\")=ROWS(R30:R32),\"N/A\",(SUMPRODUCT(--(R30:R32<>\"N/A\"),$N30:$N32,R30:R32))/SUMIF(R30:R32,\"<>N/A\",$N30:$N32))","v":0},{"$f":"IF(COUNTIF(S30:S32,\"N/A\")=ROWS(S30:S32),\"N/A\",(SUMPRODUCT(--(S30:S32<>\"N/A\"),$N30:$N32,S30:S32))/SUMIF(S30:S32,\"<>N/A\",$N30:$N32))","v":0}]
[null,null,"F1: Condition","States the events that drive MCAD-ECAD collaboration.","MCAD-ECAD collaboration becomes more frequent, predictable, and seamless.",null,"Ad hoc","Design reviews","Design changes","Same","Same","Concurrent design","Same",4]
[null,null,"F2: Mode","Identifies mechanisms for MCAD-ECAD collaboration.","Mechanisms for MCAD-ECAD collaboration become more capable and unified.",null,"Email and verbal","Exchange of model files","Shared access to PDM systems","User initiated workflow","Same","Application tool integration ","Common application tools",4]
[null,null,"F3: Commonality","Identifies common/shared resources for MCAD-ECAD collaboration.","The resources used by MCAD and ECAD practitioners become more common and shared.",null,"None","Component library","3D component library","Shared PDM system","Shared, part-centric PDM system","Same","Common application tool",4]
[null,"T7: Design Analysis & Simulation ",null,null,null,null,null,null,null,null,null,null,null,4,null,{"$f":"IF(COUNTIF(P34:P38,\"N/A\")=ROWS(P34:P38),\"N/A\",(SUMPRODUCT(--(P34:P38<>\"N/A\"),$N34:$N38,P34:P38))/SUMIF(P34:P38,\"<>N/A\",$N34:$N38))","v":0},{"$f":"IF(COUNTIF(Q34:Q38,\"N/A\")=ROWS(Q34:Q38),\"N/A\",(SUMPRODUCT(--(Q34:Q38<>\"N/A\"),$N34:$N38,Q34:Q38))/SUMIF(Q34:Q38,\"<>N/A\",$N34:$N38))","v":0},{"$f":"IF(COUNTIF(R34:R38,\"N/A\")=ROWS(R34:R38),\"N/A\",(SUMPRODUCT(--(R34:R38<>\"N/A\"),$N34:$N38,R34:R38))/SUMIF(R34:R38,\"<>N/A\",$N34:$N38))","v":0},{"$f":"IF(COUNTIF(S34:S38,\"N/A\")=ROWS(S34:S38),\"N/A\",(SUMPRODUCT(--(S34:S38<>\"N/A\"),$N34:$N38,S34:S38))/SUMIF(S34:S38,\"<>N/A\",$N34:$N38))","v":0}]
[null,null,"F1: Product Definition Source","States the source of product definition used to create the analysis model.  (N/A if analysis model not derived from product definition)","Analysis models are derived more directly from the native model.",null,"Independent","Unauthorized derivative model","Same ","Authorized derivative model","Authorized parametric model","Native model","Same",4]
[null,null,"F2: Analysis Model Authoring Automation","States how the analysis geometry, material, and physics models are created.","Creation of the analysis model becomes more automated.",null,"Manual","Manually modified","Same","Directed automated modification","Automatic modification","Automatic updates","Same",4]
[null,null,"F3: Managed","States how the analysis models, results, and decisions are stored, controlled, and managed.","Analysis models, results, and decisions are stored more closely to the part definition and more digitally.",null,"Paper file cabinets","Disconnected, electronic file directories ","Disconnected, document-centric PDM systems ","Disconnected, part-centric PDM systems","Harmonized PDM schema across organization","Single, part-centric PDM throughout inter-organization","Single, part-centric PDM throughout supra-organization and extended enterprise",4]
[null,null,"F4: Influence","States how analysis results and conclusions influence design definition.","Influence and automation of analysis increases.",null,"Independent of design","Shared with product and process design teams","Same","Business practices include design simulation results in design review","Same and shared as part of change management process","Change automatically proposed","Automatic update of design definition with digital twin",4]
[null,null,"F5: Traceability","States the breadth and depth of traceability information available.","Traceability to other disciplines increases in breadth, depth, and capability.",null,"Textual references","Electronic, textual references","System level awareness of other disciplines","Part-level navigation to objects in other disciplines","Element-level navigation to attributes in other disciplines","Same with bi-directional navigation","Same with write back access, as appropriate",4]
[]
["C2: Product Data Management Activities",null,null,{"$f":"PDM_Activities","v":"Activities that interrelate product data."},"PDM processes change from manual to automated, document-centric to part-centric, CAD files only to all product lifecycle data, disconnected to integration with other organizational disciplines, and extended to the trusted supplier.",null,"File-sharing directory","Document-centric PDM with disconnected models","Document-centric PDM with connected models","Part-centric PDM connected to product related disciplines","Authoritative part-centric PDM is the source for product definition, connected process, & lifecycle related disciplines","Digitally \"one\"  part-centric PDM for inter-organization product lifecycle disciplines","Digital part-centric PLM exchange with supra-organization and trusted suppliers",4,null,{"$f":"IF(COUNT(P41,P44,P51,P55,P59,P63,P68)=0,\"N/A\",SUM(IF(P41<>\"N/A\",P41*$N41,0),IF(P44<>\"N/A\",P44*$N44,0),IF(P51<>\"N/A\",P51*$N51,0),IF(P55<>\"N/A\",P55*$N55,0),IF(P59<>\"N/A\",P59*$N59,0),IF(P63<>\"N/A\",P63*$N63,0),IF(P68<>\"N/A\",P68*$N68,0))/SUM(IF(P41<>\"N/A\",$N41,0),IF(P44<>\"N/A\",$N44,0),IF(P51<>\"N/A\",$N51,0),IF(P55<>\"N/A\",$N55,0),IF(P59<>\"N/A\",$N59,0),IF(P63<>\"N/A\",$N63,0),IF(P68<>\"N/A\",$N68,0)))","v":0},{"$f":"IF(COUNT(Q41,Q44,Q51,Q55,Q59,Q63,Q68)=0,\"N/A\",SUM(IF(Q41<>\"N/A\",Q41*$N41,0),IF(Q44<>\"N/A\",Q44*$N44,0),IF(Q51<>\"N/A\",Q51*$N51,0),IF(Q55<>\"N/A\",Q55*$N55,0),IF(Q59<>\"N/A\",Q59*$N59,0),IF(Q63<>\"N/A\",Q63*$N63,0),IF(Q68<>\"N/A\",Q68*$N68,0))/SUM(IF(Q41<>\"N/A\",$N41,0),IF(Q44<>\"N/A\",$N44,0),IF(Q51<>\"N/A\",$N51,0),IF(Q55<>\"N/A\",$N55,0),IF(Q59<>\"N/A\",$N59,0),IF(Q63<>\"N/A\",$N63,0),IF(Q68<>\"N/A\",$N68,0)))","v":0},0,0]
[null,"T1: Product Definition Authority",null,null,null,null,null,null,null,null,null,null,null,4,null,{"$f":"IF(COUNTIF(P42:P43,\"N/A\")=ROWS(P42:P43),\"N/A\",(SUMPRODUCT(--(P42:P43<>\"N/A\"),$N42:$N43,P42:P43))/SUMIF(P42:P43,\"<>N/A\",$N42:$N43))","v":0},{"$f":"IF(COUNTIF(Q42:Q43,\"N/A\")=ROWS(Q42:Q43),\"N/A\",(SUMPRODUCT(--(Q42:Q43<>\"N/A\"),$N42:$N43,Q42:Q43))/SUMIF(Q42:Q43,\"<>N/A\",$N42:$N43))","v":0},{"$f":"IF(COUNTIF(R42:R43,\"N/A\")=ROWS(R42:R43),\"N/A\",(SUMPRODUCT(--(R42:R43<>\"N/A\"),$N42:$N43,R42:R43))/SUMIF(R42:R43,\"<>N/A\",$N42:$N43))","v":0},{"$f":"IF(COUNTIF(S42:S43,\"N/A\")=ROWS(S42:S43),\"N/A\",(SUMPRODUCT(--(S42:S43<>\"N/A\"),$N42:$N43,S42:S43))/SUMIF(S42:S43,\"<>N/A\",$N42:$N43))","v":0}]
[null,null,"F1: Part-Centricity ","States how cohesively product definition is maintained within an authoritative PDM.","Product definition is managed in a more unified part-centric manner as an authoritative source.",null,"Paper file cabinets","Electronic file directories ","Document-centric PDM system connected to models","Part-centric PDM system for product definition","Common part-centric PDM schema across inter-organization with single authoritative source for organization","Single, part-centric PDM throughout inter-organization is authoritative source"," Single, part-centric PDM throughout supra-organization and extended enterprise",4]
[null,null,"F2: Associativity","States how broadly and deeply product definition links to other authoritative sources in related disciplines.","Associativity to other disciplines increases in breadth, depth, and capability. ",null,"Textual references","Electronic, textual references","System level awareness of other disciplines","Part-level navigation to objects in other discipline systems","Element-level navigation to attributes in other discipline systems","Same with bi-directional navigation","Same with comment or write back access",4]
[null,"T2: Data Management Approach",null,null,null,null,null,null,null,null,null,null,null,4,null,{"$f":"IF(COUNTIF(P45:P50,\"N/A\")=ROWS(P45:P50),\"N/A\",(SUMPRODUCT(--(P45:P50<>\"N/A\"),$N45:$N50,P45:P50))/SUMIF(P45:P50,\"<>N/A\",$N45:$N50))","v":0},{"$f":"IF(COUNTIF(Q45:Q50,\"N/A\")=ROWS(Q45:Q50),\"N/A\",(SUMPRODUCT(--(Q45:Q50<>\"N/A\"),$N45:$N50,Q45:Q50))/SUMIF(Q45:Q50,\"<>N/A\",$N45:$N50))","v":0},{"$f":"IF(COUNTIF(R45:R50,\"N/A\")=ROWS(R45:R50),\"N/A\",(SUMPRODUCT(--(R45:R50<>\"N/A\"),$N45:$N50,R45:R50))/SUMIF(R45:R50,\"<>N/A\",$N45:$N50))","v":0},{"$f":"IF(COUNTIF(S45:S50,\"N/A\")=ROWS(S45:S50),\"N/A\",(SUMPRODUCT(--(S45:S50<>\"N/A\"),$N45:$N50,S45:S50))/SUMIF(S45:S50,\"<>N/A\",$N45:$N50))","v":0}]
[null,null,"F1: Content Management Scope","States the extent of information that is managed in PDM.","Scope of the content managed in PDM extends to product and process definition sets.",null,"Electronic documents and 2D drawings","Documents, 2D drawings, and models","Product definition sets","Same with supplementary definition data","Same with process definition data","Same ","Same with external product/process definitions",4]
[null,null,"F2: Change Management","States how closely change management (CM) activities relate to the product definition.","Change management becomes more closely linked to discrete product definition content in an authoritative source.",null,"Change textually tied to product definition","Electronic CM system exists disconnected from PDM","Same","Same and change request digitally tied to product definition part","CM system linked to PDM","Single inter-organization wide process imbedded within PDM","Same and change request digitally tied to discrete item within the product or process definition",4]
[null,null,"F3: Product Structure Management","States the granularity of product structure and the means to represent it.","Product structure stored in the authoritative source becomes more detailed and easy to manage.",null,"On drawing(s)","Same and structured data elements duplicated in PDM","Subassemblies partially defined in PDM","Same and characterized in PDM","Subassemblies fully defined and characterized in PDM","Full up assemblies (systems) defined and characterized with product variants in PDM","Same and available to extended enterprise",4]
[null,null,"F4: User Interface Applications","States how applications are implemented to improve usability of accessing PDM data for casual users","Access to contextualized information available from PDM and other organizational sources easier and more interactive.",null,"None","Default tool interface for each application","Same with limited linkage to other discipline sources","Role/task-based application for viewing of data items","Same and contributing to existing data items"," Same and authoring content"," Same with combining data from other sources.",4]
[null,null,"F5: Governance","States the extent of data governance. ","Extent of governance of product data increases.",null,"None ","Internal policy ","Governance within PDM","Governance across organization","Governance across inter-organization ","Full governance across supra-organization ","Governance across extended enterprise ",4]
[null,null,"F6: Trusted Data","States the extent of provenance and pedigree for data.","Data becomes more trusted through authoritative sources and traceable to origin.",null,"Unknown authority or origin","Authorized and unauthorized sources","Multiple authorized sources for a given data item","Single authorized source for a given data item","Same with traceability to origin","Same with routine audits","Same with access by partner organizations",4]
[null,"T3: Product Definition Management",null,null,null,null,null,null,null,null,null,null,null,4,null,{"$f":"IF(COUNTIF(P52:P54,\"N/A\")=ROWS(P52:P54),\"N/A\",(SUMPRODUCT(--(P52:P54<>\"N/A\"),$N52:$N54,P52:P54))/SUMIF(P52:P54,\"<>N/A\",$N52:$N54))","v":0},{"$f":"IF(COUNTIF(Q52:Q54,\"N/A\")=ROWS(Q52:Q54),\"N/A\",(SUMPRODUCT(--(Q52:Q54<>\"N/A\"),$N52:$N54,Q52:Q54))/SUMIF(Q52:Q54,\"<>N/A\",$N52:$N54))","v":0},{"$f":"IF(COUNTIF(R52:R54,\"N/A\")=ROWS(R52:R54),\"N/A\",(SUMPRODUCT(--(R52:R54<>\"N/A\"),$N52:$N54,R52:R54))/SUMIF(R52:R54,\"<>N/A\",$N52:$N54))","v":0},{"$f":"IF(COUNTIF(S52:S54,\"N/A\")=ROWS(S52:S54),\"N/A\",(SUMPRODUCT(--(S52:S54<>\"N/A\"),$N52:$N54,S52:S54))/SUMIF(S52:S54,\"<>N/A\",$N52:$N54))","v":0}]
[null,null,"F1: Definition Set","States the format of the product definition set.","Product definition set becomes more trusted, digital, unambiguous, and automated.",null,"Paper package","Electronic drawing list","Electronic product definition set with manifest","Same","Product definition datasets as PDM baselines","Same and automated, unambiguous, and mandated","Same and available to extended enterprise",4]
[null,null,"F2: Supplemental Data Reference","States how supplemental data is referenced within the product definition set.","Links to supplemental data become more digital and connected to authoritative sources.",null,"Supplemental data called out","Same","Same","PDM linked to other authoritative sources","PDM linked through part objects to authoritative sources ","Same","Model elements linked to authoritative sources",4]
[null,null,"F3: Product Definition Authorization","Specifies the use or placement of product definition in the configuration management system.","Authorization becomes more automated and integrated and PDM becomes the single authorized source for product definition.",null,"Manual","Electronic separate from PDM","Same","Same and PDM is informed","Same and digital","Automated in release process in PDM","Same",4]
[null,"T4: Process Data Management",null,null,null,null,null,null,null,null,null,null,null,4,null,{"$f":"IF(COUNTIF(P56:P58,\"N/A\")=ROWS(P56:P58),\"N/A\",(SUMPRODUCT(--(P56:P58<>\"N/A\"),$N56:$N58,P56:P58))/SUMIF(P56:P58,\"<>N/A\",$N56:$N58))","v":0},{"$f":"IF(COUNTIF(Q56:Q58,\"N/A\")=ROWS(Q56:Q58),\"N/A\",(SUMPRODUCT(--(Q56:Q58<>\"N/A\"),$N56:$N58,Q56:Q58))/SUMIF(Q56:Q58,\"<>N/A\",$N56:$N58))","v":0},{"$f":"IF(COUNTIF(R56:R58,\"N/A\")=ROWS(R56:R58),\"N/A\",(SUMPRODUCT(--(R56:R58<>\"N/A\"),$N56:$N58,R56:R58))/SUMIF(R56:R58,\"<>N/A\",$N56:$N58))","v":0},{"$f":"IF(COUNTIF(S56:S58,\"N/A\")=ROWS(S56:S58),\"N/A\",(SUMPRODUCT(--(S56:S58<>\"N/A\"),$N56:$N58,S56:S58))/SUMIF(S56:S58,\"<>N/A\",$N56:$N58))","v":0}]
[null,null,"F1: Product Definition Association","States how product realization process data are associated with product definition. ","Process data are well connected with product as part-centric and provide a single authorized source for process data.",null,"Manual reference to 2D paper definition via part number","Textual reference to 2D electronic document via part number","Digital reference to product definition drawing","Digital association to product definition model","Digital association to product definition set","Digital association to item within product definition set","Digital bi-directional association to item within product definition set",4]
[null,null,"F2: Definition Set","States the format of the process dataset or package (e.g., process derivative models and related data).","Process datasets become more trusted, digital, unambiguous, and automated.",null,"Paper Package","Electronic document list","Electronic process definition set packaged with manifest","Same ","Process definition datasets available","Automated, unambiguous, digital process definition datasets mandated","Same and digitally available to extended enterprise",4]
[null,null,"F3: Supplemental Data Reference","States how supplemental data is referenced within the process definition set.","Links to supplemental data become more digital and connected to authoritative sources.",null,"Supplemental data called out","Same","Same","PDM linked to other authoritative sources","Linked through objects in PDM system to authoritative sources ","Same","Model elements linked to authoritative sources outside of PDM",4]
[null,"T5: Bill of Materials (BOM) Management",null,null,null,null,null,null,null,null,null,null,null,4,null,{"$f":"IF(COUNTIF(P60:P62,\"N/A\")=ROWS(P60:P62),\"N/A\",(SUMPRODUCT(--(P60:P62<>\"N/A\"),$N60:$N62,P60:P62))/SUMIF(P60:P62,\"<>N/A\",$N60:$N62))","v":0},{"$f":"IF(COUNTIF(Q60:Q62,\"N/A\")=ROWS(Q60:Q62),\"N/A\",(SUMPRODUCT(--(Q60:Q62<>\"N/A\"),$N60:$N62,Q60:Q62))/SUMIF(Q60:Q62,\"<>N/A\",$N60:$N62))","v":0},{"$f":"IF(COUNTIF(R60:R62,\"N/A\")=ROWS(R60:R62),\"N/A\",(SUMPRODUCT(--(R60:R62<>\"N/A\"),$N60:$N62,R60:R62))/SUMIF(R60:R62,\"<>N/A\",$N60:$N62))","v":0},{"$f":"IF(COUNTIF(S60:S62,\"N/A\")=ROWS(S60:S62),\"N/A\",(SUMPRODUCT(--(S60:S62<>\"N/A\"),$N60:$N62,S60:S62))/SUMIF(S60:S62,\"<>N/A\",$N60:$N62))","v":0}]
[null,null,"F1: Authoring","States how various xBOMs are generated.","BOMS are generated from digital artifacts with assured pedigrees and associations.",null,"No Digital BOMs","xBOMs are manually parsed from document data","Same","dBOM represented as product structure in PDM","Same and select xBOMs automatically seeded from other xBOMs. ","All xBOMs automatically seeded from other xBOMs.   ","Fully automatic xBOM authoring",4]
[null,null,"F2: Managed","States how BOMs are stored, controlled, and managed.","All BOM types are managed in a part-centric manner.",null,"Paper file cabinets","Disconnected electronic file directories ","Disconnected, document-centric PDM systems ","Disconnected, part-centric PDM systems","Harmonized PDM schema across inter-organization","Single, part-centric PDM throughout inter-organization","Single, part-centric PDM throughout supra-organization and extended enterprise",4]
[null,null,"F3: Traceability","States how BOMs pedigree are traced and connected with product and process definitions.","BOMs are bi-directionally connected and interact with other BOMS.",null,"Textual references","Electronic, textual references","Same","eBOM digitally traceable to 3D Model(s)","All xBOMs digitally traceable to product definition ","Each xBOM digitally traceable to all other BOMs, discrepancies automatically identified","Same and bi-directional xBOM notification & reconciliation",4]
[null,"T6: Common Digital Libraries",null,null,null,null,null,null,null,null,null,null,null,4,null,{"$f":"IF(COUNTIF(P64:P67,\"N/A\")=ROWS(P64:P67),\"N/A\",(SUMPRODUCT(--(P64:P67<>\"N/A\"),$N64:$N67,P64:P67))/SUMIF(P64:P67,\"<>N/A\",$N64:$N67))","v":0},{"$f":"IF(COUNTIF(Q64:Q67,\"N/A\")=ROWS(Q64:Q67),\"N/A\",(SUMPRODUCT(--(Q64:Q67<>\"N/A\"),$N64:$N67,Q64:Q67))/SUMIF(Q64:Q67,\"<>N/A\",$N64:$N67))","v":0},{"$f":"IF(COUNTIF(R64:R67,\"N/A\")=ROWS(R64:R67),\"N/A\",(SUMPRODUCT(--(R64:R67<>\"N/A\"),$N64:$N67,R64:R67))/SUMIF(R64:R67,\"<>N/A\",$N64:$N67))","v":0},{"$f":"IF(COUNTIF(S64:S67,\"N/A\")=ROWS(S64:S67),\"N/A\",(SUMPRODUCT(--(S64:S67<>\"N/A\"),$N64:$N67,S64:S67))/SUMIF(S64:S67,\"<>N/A\",$N64:$N67))","v":0}]
[null,null,"F1: Extent","States the availability  of common, structured, digital libraries deemed important to the organization that support product definition and process definition for the MBE.","Common, structured, digital libraries of critical disciplines become available for smarter decision making and automation.",null,"No digital libraries","One common library is structured digital ","Some common libraries are structured digital ","Most (more than half but not all) common libraries are structured digital","All required common libraries are structured digital","All recommended common libraries are structured digital","Same with additional secondary structured libraries",4]
[null,null,"F2: Governance","States the extent of library governance.","Library governance is done at a wider level.",null,"Manual by individual","Shared ad hoc","Organization governance team","Same","Inter-organization governance team","Supra-organization governance team","Industry consortium governance team",4]
[null,null,"F3: Managed","States how libraries are stored, controlled, and managed.","Libraries are managed in common, available PDM.",null,"Paper file cabinets","Disconnected electronic file directories ","Disconnected, document-centric PDM systems ","Disconnected, part-centric PDM systems","Harmonized PDM schema across inter-organization","Single, part-centric PDM throughout inter-organization","Single, part-centric PDM throughout supra-organization and extended enterprise",4]
[null,null,"F4: Access","States the disciplines that access and reuse common libraries. ","Libraries will be reused among all disciplines.",null,"Ad hoc","Separated by discipline","Same","CAD and PDM share common libraries","Same","All disciplines common","Shared with extended enterprise",4]
[null,"T7: Data Records",null,null,null,null,null,null,null,null,null,null,null,4,null,{"$f":"IF(COUNTIF(P69:P70,\"N/A\")=ROWS(P69:P70),\"N/A\",(SUMPRODUCT(--(P69:P70<>\"N/A\"),$N69:$N70,P69:P70))/SUMIF(P69:P70,\"<>N/A\",$N69:$N70))","v":0},{"$f":"IF(COUNTIF(Q69:Q70,\"N/A\")=ROWS(Q69:Q70),\"N/A\",(SUMPRODUCT(--(Q69:Q70<>\"N/A\"),$N69:$N70,Q69:Q70))/SUMIF(Q69:Q70,\"<>N/A\",$N69:$N70))","v":0},{"$f":"IF(COUNTIF(R69:R70,\"N/A\")=ROWS(R69:R70),\"N/A\",(SUMPRODUCT(--(R69:R70<>\"N/A\"),$N69:$N70,R69:R70))/SUMIF(R69:R70,\"<>N/A\",$N69:$N70))","v":0},{"$f":"IF(COUNTIF(S69:S70,\"N/A\")=ROWS(S69:S70),\"N/A\",(SUMPRODUCT(--(S69:S70<>\"N/A\"),$N69:$N70,S69:S70))/SUMIF(S69:S70,\"<>N/A\",$N69:$N70))","v":0}]
[null,null,"F1: Long Term Archival & Retrieval (LOTAR)","States how the long term archival and retrieval of product definition, engineering authorizations, process definition, & measurement results are managed as a record copy.","Digital content and documents are saved as the record copy with certificates.",null,"2D paper drawing","2D drawing as electronic file","2D drawing as PDF format, with equivalent derivative model in standard (e.g., STEP AP203) format","Drawing (2D or 3DIV) and documents as PDF/A format, with equivalent derivative model in standard LOTAR formats","Native MBD model, equivalent derivative model w/ semantic PMI in standard (e.g., STEP AP242, QIF-MBD) format, and 3DIV & documents as PDF/A format","Same with process definition data.","Same with standard (e.g., QIF) as-measured data",4]
[null,null,"F2: Data Package","States the format of the data packages for product and/or process related data.","Data packages become more trusted, digital, unambiguous, and automated.",null,"Paper Package","Electronic documents collected and compressed","Electronic data packaged with manifest","Same and packaged using organization standard format","Same but packaged using inter-organization standard format","Package automated from PDM, managed in PDM","Same and digitally available to supra-organization and extended enterprise",4]
[]
["C3: Manufacturing Activities",null,null,{"$f":"ManufacturingActivities","v":"Activities involved in making a product."},"Parts become easier to manufacture. Manufacturing processes change from drawing-based to model-based to automation; and from document-centric to part-centric and extends to the trusted supplier.  ",null,"2D Drawings used for all manufacturing related activities","Manufacturing via 2D drawings supported by disconnected derivative or recreated models","Manufacturing via 2D drawings with validated support derivative  models","Manufacturing via drawings (3DIV & 2D) with certified support derivative models","Digital Manufacturing via trusted MBD and support 3DIV drawings","Digital manufacturing from a trusted MBD dataset via part-centric PDM","Digital manufacturing processes are automated and extended to trusted partners via enterprise PDM",4,null,{"$f":"IF(COUNT(P73,P78,P82,P86,P91,P97,P100)=0,\"N/A\",SUM(IF(P73<>\"N/A\",P73*$N73,0),IF(P78<>\"N/A\",P78*$N78,0),IF(P82<>\"N/A\",P82*$N82,0),IF(P86<>\"N/A\",P86*$N86,0),IF(P91<>\"N/A\",P91*$N91,0),IF(P97<>\"N/A\",P97*$N97,0),IF(P100<>\"N/A\",P100*$N100,0))/SUM(IF(P73<>\"N/A\",$N73,0),IF(P78<>\"N/A\",$N78,0),IF(P82<>\"N/A\",$N82,0),IF(P86<>\"N/A\",$N86,0),IF(P91<>\"N/A\",$N91,0),IF(P97<>\"N/A\",$N97,0),IF(P100<>\"N/A\",$N100,0)))","v":0},{"$f":"IF(COUNT(Q73,Q78,Q82,Q86,Q91,Q97,Q100)=0,\"N/A\",SUM(IF(Q73<>\"N/A\",Q73*$N73,0),IF(Q78<>\"N/A\",Q78*$N78,0),IF(Q82<>\"N/A\",Q82*$N82,0),IF(Q86<>\"N/A\",Q86*$N86,0),IF(Q91<>\"N/A\",Q91*$N91,0),IF(Q97<>\"N/A\",Q97*$N97,0),IF(Q100<>\"N/A\",Q100*$N100,0))/SUM(IF(Q73<>\"N/A\",$N73,0),IF(Q78<>\"N/A\",$N78,0),IF(Q82<>\"N/A\",$N82,0),IF(Q86<>\"N/A\",$N86,0),IF(Q91<>\"N/A\",$N91,0),IF(Q97<>\"N/A\",$N97,0),IF(Q100<>\"N/A\",$N100,0)))","v":0},0,0]
[null,"T1: Manufacturing Process Definition",null,null,null,null,null,null,null,null,null,null,null,4,null,{"$f":"IF(COUNTIF(P74:P77,\"N/A\")=ROWS(P74:P77),\"N/A\",(SUMPRODUCT(--(P74:P77<>\"N/A\"),$N74:$N77,P74:P77))/SUMIF(P74:P77,\"<>N/A\",$N74:$N77))","v":0},{"$f":"IF(COUNTIF(Q74:Q77,\"N/A\")=ROWS(Q74:Q77),\"N/A\",(SUMPRODUCT(--(Q74:Q77<>\"N/A\"),$N74:$N77,Q74:Q77))/SUMIF(Q74:Q77,\"<>N/A\",$N74:$N77))","v":0},{"$f":"IF(COUNTIF(R74:R77,\"N/A\")=ROWS(R74:R77),\"N/A\",(SUMPRODUCT(--(R74:R77<>\"N/A\"),$N74:$N77,R74:R77))/SUMIF(R74:R77,\"<>N/A\",$N74:$N77))","v":0},{"$f":"IF(COUNTIF(S74:S77,\"N/A\")=ROWS(S74:S77),\"N/A\",(SUMPRODUCT(--(S74:S77<>\"N/A\"),$N74:$N77,S74:S77))/SUMIF(S74:S77,\"<>N/A\",$N74:$N77))","v":0}]
[null,null,"F1: Product Definition Source","States how the manufacturing process definition’s in-process and fixture models are sourced from the product definition.","Manufacturing process definition activities will be derived from  the product definition basis MBD.",null,"2D drawings only","2D drawings and optional derivative models (e.g. STEP) from file directory","2D drawings and validated derivative models via PDM","3DIV Drawings (i.e., 3DIV, 2D) and validated derivative models from PDM","Validated derivatives (basis models, 3DIVs) via part object in PDM","Source native models via part objects in PDM","Same",4]
[null,null,"F2: Method","States how the manufacturing process definition (i.e., process plans, in-process models, cutting tool & fixture definitions, NC work package, mBOMs) are defined (see C1: Design Activity's contexts) and generated.","Manufacturing process definition will become more digital and confidently reuse basis MBDs to define process plans and create embellished derivatives,  in-process models, fixture definitions, NC work packages & mBOMs.",null,"2D drawings and documents, cutting tools, fixtures, and in-process drawings","Same with in-process models","Same but in-process and fixture models made from final basis model,  mBOMs documented","In-Process MBD made from final basis MBD; digital cutting tool library used; mBOMs captured in digital system","Same; MBD can auto generate “mean” derivative models; digital cutting tool and fixture model libraries used; mBOMs linked with eBOMs","All in-process models inherited from basis MBD; cutting tool & fixture models linked with in-process models; cutting tools auto selected","Auto generated from final basis MBD and manufacturing knowledge; mBOMs auto generated",4]
[null,null,"F3: Managed","States how the manufacturing process definition (MPD) package is stored, controlled and managed.","Manufacturing process definition data package and contents will be managed as part-centric within the PDM system.",null,"Paper file cabinets","Disconnected electronic file directories ","Packaged as common file in document-centric PDM systems ","Same with support models in part-centric PDM systems ","MPD data managed as objects in organization part-centric PDM","Same and common throughout inter-organization","Same through extended enterprise",4]
[null,null,"F4: Response to Change","States how the manufacturing process definition and their in-process models respond to changes in both product definition and associated in-process models.","Manufacturing process definition, specifically in-process models, response to change notifications are more automated, timely, & guaranteed.",null,"No notifications","Ad hoc notifications","Procedural notifications ","Same with time guarantee","Same with automated state change notification","Same with code segment updates based upon inherited geometry and/or shape features change","Same with automated updates ",4]
[null,"T2: Tooling Definition & Realization\n",null,null,null,null,null,null,null,null,null,null,null,4,null,{"$f":"IF(COUNTIF(P79:P81,\"N/A\")=ROWS(P79:P81),\"N/A\",(SUMPRODUCT(--(P79:P81<>\"N/A\"),$N79:$N81,P79:P81))/SUMIF(P79:P81,\"<>N/A\",$N79:$N81))","v":0},{"$f":"IF(COUNTIF(Q79:Q81,\"N/A\")=ROWS(Q79:Q81),\"N/A\",(SUMPRODUCT(--(Q79:Q81<>\"N/A\"),$N79:$N81,Q79:Q81))/SUMIF(Q79:Q81,\"<>N/A\",$N79:$N81))","v":0},{"$f":"IF(COUNTIF(R79:R81,\"N/A\")=ROWS(R79:R81),\"N/A\",(SUMPRODUCT(--(R79:R81<>\"N/A\"),$N79:$N81,R79:R81))/SUMIF(R79:R81,\"<>N/A\",$N79:$N81))","v":0},{"$f":"IF(COUNTIF(S79:S81,\"N/A\")=ROWS(S79:S81),\"N/A\",(SUMPRODUCT(--(S79:S81<>\"N/A\"),$N79:$N81,S79:S81))/SUMIF(S79:S81,\"<>N/A\",$N79:$N81))","v":0}]
[null,null,"F1: Basis","Identifies the basis of information for tooling design (see C1: Design Activity's contexts) and realization.","Tooling definition and realization  confidently reuse the basis MBD.",null,"Visual analysis of product definition","Same","Created from basis 3D model","Same ","Created from basis 3D MBD","Created from basis MBD dataset","Defined automatically from product definition",4]
[null,null,"F2: Managed","States how tooling definitions and fabrication data packages are stored, controlled, & managed.  ","Tooling definitions, fabrication data package, and their contents become managed as part-centric within the PDM system.",null,"Paper file cabinets","Disconnected electronic file directories ","Disconnected, document-centric PDM systems ","Disconnected, part-centric PDM systems","Harmonized PDM schema across inter-organization","Single, part-centric PDM throughout inter-organization","Single, part-centric PDM throughout supra-organization and extended enterprise",4]
[null,null,"F3: Traceability","States how tooling definitions are traced back to a basis model and their respective process definitions.","Tooling definition and fabrication data package become associated to its associated process definition and their part’s basis MBD.",null,"Textual references","Electronic, textual references","System level awareness of other disciplines","Part-level navigation to objects in other disciplines","Element-level navigation to attributes in other disciplines","Same with bi-directional navigation","Same with write back access, as appropriate",4]
[null,"T3: Manufacturing Process Instructions ",null,null,null,null,null,null,null,null,null,null,null,4,null,{"$f":"IF(COUNTIF(P83:P85,\"N/A\")=ROWS(P83:P85),\"N/A\",(SUMPRODUCT(--(P83:P85<>\"N/A\"),$N83:$N85,P83:P85))/SUMIF(P83:P85,\"<>N/A\",$N83:$N85))","v":0},{"$f":"IF(COUNTIF(Q83:Q85,\"N/A\")=ROWS(Q83:Q85),\"N/A\",(SUMPRODUCT(--(Q83:Q85<>\"N/A\"),$N83:$N85,Q83:Q85))/SUMIF(Q83:Q85,\"<>N/A\",$N83:$N85))","v":0},{"$f":"IF(COUNTIF(R83:R85,\"N/A\")=ROWS(R83:R85),\"N/A\",(SUMPRODUCT(--(R83:R85<>\"N/A\"),$N83:$N85,R83:R85))/SUMIF(R83:R85,\"<>N/A\",$N83:$N85))","v":0},{"$f":"IF(COUNTIF(S83:S85,\"N/A\")=ROWS(S83:S85),\"N/A\",(SUMPRODUCT(--(S83:S85<>\"N/A\"),$N83:$N85,S83:S85))/SUMIF(S83:S85,\"<>N/A\",$N83:$N85))","v":0}]
[null,null,"F1: Method","States how manufacturing work instructions are generated.","Manufacturing instructions progress from text to images to animations to augmented reality.  ",null,"Text & photograph","Text & photographs with pictures of 3D models","Text, photographs, model images, model-based animations","Same ","Same with PMI","Augmented reality","Automatic process definition based on product type, facility, and available processes",4]
[null,null,"F2: Managed","States how manufacturing work instructions are stored, controlled, and managed.","Manufacturing instructions are increasingly linked to the part in the PDM system.",null,"Paper file cabinets","Disconnected electronic file directories ","Disconnected, document-centric PDM systems ","Disconnected, part-centric PDM systems","Harmonized PDM schema across inter-organization","Single, part-centric PDM throughout inter-organization","Single, part-centric PDM throughout supra-organization and extended enterprise",4]
[null,null,"F3: Response to Change","States how the manufacturing work instructions discipline responds to changes in process definition.","Manufacturing instructions response to change notifications are more automated, timely, & guaranteed.",null,"No notifications","Ad hoc notifications","Procedural notifications ","Same with time guarantee","Same, digital","Same with automated state change by discipline","Same with automated updates by discipline",4]
[null,"T4: Manufacturing Code Generation",null,null,null,null,null,null,null,null,null,null,null,4,null,{"$f":"IF(COUNTIF(P87:P90,\"N/A\")=ROWS(P87:P90),\"N/A\",(SUMPRODUCT(--(P87:P90<>\"N/A\"),$N87:$N90,P87:P90))/SUMIF(P87:P90,\"<>N/A\",$N87:$N90))","v":0},{"$f":"IF(COUNTIF(Q87:Q90,\"N/A\")=ROWS(Q87:Q90),\"N/A\",(SUMPRODUCT(--(Q87:Q90<>\"N/A\"),$N87:$N90,Q87:Q90))/SUMIF(Q87:Q90,\"<>N/A\",$N87:$N90))","v":0},{"$f":"IF(COUNTIF(R87:R90,\"N/A\")=ROWS(R87:R90),\"N/A\",(SUMPRODUCT(--(R87:R90<>\"N/A\"),$N87:$N90,R87:R90))/SUMIF(R87:R90,\"<>N/A\",$N87:$N90))","v":0},{"$f":"IF(COUNTIF(S87:S90,\"N/A\")=ROWS(S87:S90),\"N/A\",(SUMPRODUCT(--(S87:S90<>\"N/A\"),$N87:$N90,S87:S90))/SUMIF(S87:S90,\"<>N/A\",$N87:$N90))","v":0}]
[null,null,"F1: Manufacturing Definition Source ","States how the manufacturing code is sourced from manufacturing process definition (MPD) data.","Manufacturing code generation becomes sourced from content with the manufacturing process definition data including the product definition MBD, one or more in-process models, and fixture models.",null,"2D drawings from work package","MDP contains 2D drawings and optional derivative models (e.g. STEP) from file directory ","MDP contains 2D drawings and derivative models via single file in PDM","MDP contains drawings (i.e., 3DIV, 2D) and validated models from PDM","MDP contains validated derivatives (basis models, 3DIVs) via part object in PDM","MDP contains inheritance models from product definition source model via part object in PDM","Same",4]
[null,null,"F2: Method","States how manufacturing code is generated using CAM/CNC software per manufacturing process definition.","Manufacturing code will confidently reuse linked basis MBDs contained in the manufacturing process data package to generate CNC machine code.",null,"Manual","Interactively generated","Same","Same with PMI incorporated","Same","Same with inheritance models","Automatically based on manufacturing features & PMI",4]
[null,null,"F3: Managed","States how CNC data packages (code files, simulation files, models, drawing, and support information) are stored, controlled, and managed.","Manufacturing code definitions, CNC data package, and their contents will be managed as part-centric within the PDM system.",null,"Paper file cabinets","Disconnected electronic file directories ","Disconnected, packaged as common file in document-centric PDM systems ","Same with support models in part-centric PDM systems ","CNC data managed as objects in part-centric PDM","Same and common throughout enterprise","Same throughout extended enterprise",4]
[null,null,"F4: Response to Change","States how the manufacturing code generation discipline responds to changes in product or process definition.","Manufacturing code generation response to change notifications are more automated, timely, & guaranteed.",null,"No notifications","Ad hoc notifications","Procedural notifications","Same with time guarantee","Same with automated state change notification","updates to code segments when inherited geometry and features change","Same with automated updates ",4]
[null,"T5: Manufacturing Analysis & Simulation",null,null,null,null,null,null,null,null,null,null,null,4,null,{"$f":"IF(COUNTIF(P92:P96,\"N/A\")=ROWS(P92:P96),\"N/A\",(SUMPRODUCT(--(P92:P96<>\"N/A\"),$N92:$N96,P92:P96))/SUMIF(P92:P96,\"<>N/A\",$N92:$N96))","v":0},{"$f":"IF(COUNTIF(Q92:Q96,\"N/A\")=ROWS(Q92:Q96),\"N/A\",(SUMPRODUCT(--(Q92:Q96<>\"N/A\"),$N92:$N96,Q92:Q96))/SUMIF(Q92:Q96,\"<>N/A\",$N92:$N96))","v":0},{"$f":"IF(COUNTIF(R92:R96,\"N/A\")=ROWS(R92:R96),\"N/A\",(SUMPRODUCT(--(R92:R96<>\"N/A\"),$N92:$N96,R92:R96))/SUMIF(R92:R96,\"<>N/A\",$N92:$N96))","v":0},{"$f":"IF(COUNTIF(S92:S96,\"N/A\")=ROWS(S92:S96),\"N/A\",(SUMPRODUCT(--(S92:S96<>\"N/A\"),$N92:$N96,S92:S96))/SUMIF(S92:S96,\"<>N/A\",$N92:$N96))","v":0}]
[null,null,"F1: Basis Model Source","States the source of basis model (e.g., product definition) used to create the analysis model.","Analysis models are derived more directly from the native model.",null,"Independent","Unauthorized Derivative Model","Same ","Authorized derivative model","Authorized parametric model","Native model","Same",4]
[null,null,"F2: Analysis Model Authoring Automation","States how the analysis geometry, material, and physics models are created.","Creation of the analysis model becomes more automated.",null,"Manual","Manually modified","Same","Directed automated modification","Automatic modification","Automatic updates","Same",4]
[null,null,"F3: Managed","States how the analysis models, results, and decisions are stored, controlled, and managed.","Analysis models, results, and decisions are stored more closely to the part definition and as data.",null,"Paper file cabinets","Disconnected electronic file directories ","Disconnected, document-centric PDM systems ","Disconnected, part-centric PDM systems","Harmonized PDM schema across inter-organization","Single, part-centric PDM throughout inter-organization","Single, part-centric PDM throughout supra-organization and extended enterprise",4]
[null,null,"F4: Influence","States how analysis results and conclusions influence design definition.","Influence and automation of analysis increases.",null,"Independent of design","Shared with product and process design teams","Same","Business practices include manufacturing simulations results in design review","Proposed change automatically sent to customer","Automatic update","Digital twin",4]
[null,null,"F5: Traceability","States the breadth and depth of traceability information available.","Traceability to other disciplines increases in breadth, depth, and capability.",null,"Textual references","Electronic, textual references","System level awareness of other disciplines","Part-level navigation to objects in other disciplines","Element-level navigation to attributes in other disciplines","Same with bi-directional navigation","Same with write back access, as appropriate",4]
[null,"T6: Manufacturing Operations ",null,null,null,null,null,null,null,null,null,null,null,4,null,{"$f":"IF(COUNTIF(P98:P99,\"N/A\")=ROWS(P98:P99),\"N/A\",(SUMPRODUCT(--(P98:P99<>\"N/A\"),$N98:$N99,P98:P99))/SUMIF(P98:P99,\"<>N/A\",$N98:$N99))","v":0},{"$f":"IF(COUNTIF(Q98:Q99,\"N/A\")=ROWS(Q98:Q99),\"N/A\",(SUMPRODUCT(--(Q98:Q99<>\"N/A\"),$N98:$N99,Q98:Q99))/SUMIF(Q98:Q99,\"<>N/A\",$N98:$N99))","v":0},{"$f":"IF(COUNTIF(R98:R99,\"N/A\")=ROWS(R98:R99),\"N/A\",(SUMPRODUCT(--(R98:R99<>\"N/A\"),$N98:$N99,R98:R99))/SUMIF(R98:R99,\"<>N/A\",$N98:$N99))","v":0},{"$f":"IF(COUNTIF(S98:S99,\"N/A\")=ROWS(S98:S99),\"N/A\",(SUMPRODUCT(--(S98:S99<>\"N/A\"),$N98:$N99,S98:S99))/SUMIF(S98:S99,\"<>N/A\",$N98:$N99))","v":0}]
[null,null,"F1: Product Definition Reference","States how manufacturing operations reference and use product definition and models.","Manufacturing operations reference and use 3DIVs and models.",null,"Paper 2D drawing","Electronic 2D drawing","Same","3D interactive viewable (3DIV)","Same with support model derivative","MBD dataset","Same with enhanced 3DIV",4]
[null,null,"F2: Presentation","States how manufacturing operations use process instructions.","Manufacturing operations will contain more digital content.",null,"Textual instructions on paper ","Electronic textual instructions","Same with graphics and photo images","Same with images from model","Same with recorded videos","Same with model-based animations","Same with augmented or mixed reality",4]
[null,"T7: Product Procurement ",null,null,null,null,null,null,null,null,null,null,null,4,null,{"$f":"IF(COUNTIF(P101:P104,\"N/A\")=ROWS(P101:P104),\"N/A\",(SUMPRODUCT(--(P101:P104<>\"N/A\"),$N101:$N104,P101:P104))/SUMIF(P101:P104,\"<>N/A\",$N101:$N104))","v":0},{"$f":"IF(COUNTIF(Q101:Q104,\"N/A\")=ROWS(Q101:Q104),\"N/A\",(SUMPRODUCT(--(Q101:Q104<>\"N/A\"),$N101:$N104,Q101:Q104))/SUMIF(Q101:Q104,\"<>N/A\",$N101:$N104))","v":0},{"$f":"IF(COUNTIF(R101:R104,\"N/A\")=ROWS(R101:R104),\"N/A\",(SUMPRODUCT(--(R101:R104<>\"N/A\"),$N101:$N104,R101:R104))/SUMIF(R101:R104,\"<>N/A\",$N101:$N104))","v":0},{"$f":"IF(COUNTIF(S101:S104,\"N/A\")=ROWS(S101:S104),\"N/A\",(SUMPRODUCT(--(S101:S104<>\"N/A\"),$N101:$N104,S101:S104))/SUMIF(S101:S104,\"<>N/A\",$N101:$N104))","v":0}]
[null,null,"F1: Content","States how product procurement data packages are generated.","Product procurement data packages automatically  conform to business rules and TDP practices.",null,"2D drawings","2D drawings and derivative model","Same","3DIV and derivative models","3DIV and derivative models as procurement data package","Auto-generated and conforms to business rules and TDP practices","Same",4]
[null,null,"F2: Managed","States how product procurement data packages are managed and delivered.","Product procurement data packages are managed in a part-centric PDM.",null,"Paper file cabinets","Disconnected electronic file directories ","Disconnected, document-centric PDM systems ","Disconnected, part-centric PDM systems","Harmonized PDM schema across inter-organization","Single, part-centric PDM throughout inter-organization","Single, part-centric PDM throughout supra-organization and extended enterprise",4]
[null,null,"F3: Response to Change","States how product procurement package discipline responds to changes in product definition.","Product procurement data package response to change notifications are more automated, timely, & guaranteed.",null,"No notifications","Ad hoc notifications","Procedural notifications ","Same with time guarantee","Same, digital","Same with automated state change by discipline","Same with automated updates from discipline",4]
[null,null,"F4: Delivery","States how product procurement packages are delivered to suppliers.","Product procurement data packages are auto delivered to trusted suppliers.",null,"Mail","Email","Same with authenticated file exchange","Standalone authenticated file exchange","Authenticated PDM","Same with automatic notification","Auto sent to trusted suppliers with confirmation",4]
[]
["C4: Quality Activities ",null,null,{"$f":"QualityActivities","v":"Activities involved in manufacturing verification, testing, inspection, and product acceptance."},"Inspection and acceptance of parts becomes easier. Verification, inspection, & acceptance processes change from drawing-based to model-based to automatic; from document-centric to part-centric; and extend to the trusted supplier.  ",null,"2D Drawings used for verification, inspection, testing, & acceptance activities","Verification, inspection, & acceptance via 2D drawings with disconnected derivative or recreated models","Verification, inspection, & acceptance via 2D drawings with validated support derivative models","Verification, inspection, & acceptance via 3DIV drawings with certified support derivative models","Digital verification, inspection, & acceptance via trusted MBD and support 3DIV drawings","Digital metrology via trusted MBD datasets with associated product characteristics","Automated metrology processes, extended to trusted partners via authenticated PLM",4,null,{"$f":"IF(COUNT(P107,P112,P116,P120,P125,P129,P133)=0,\"N/A\",SUM(IF(P107<>\"N/A\",P107*$N107,0),IF(P112<>\"N/A\",P112*$N112,0),IF(P116<>\"N/A\",P116*$N116,0),IF(P120<>\"N/A\",P120*$N120,0),IF(P125<>\"N/A\",P125*$N125,0),IF(P129<>\"N/A\",P129*$N129,0),IF(P133<>\"N/A\",P133*$N133,0))/SUM(IF(P107<>\"N/A\",$N107,0),IF(P112<>\"N/A\",$N112,0),IF(P116<>\"N/A\",$N116,0),IF(P120<>\"N/A\",$N120,0),IF(P125<>\"N/A\",$N125,0),IF(P129<>\"N/A\",$N129,0),IF(P133<>\"N/A\",$N133,0)))","v":0},{"$f":"IF(COUNT(Q107,Q112,Q116,Q120,Q125,Q129,Q133)=0,\"N/A\",SUM(IF(Q107<>\"N/A\",Q107*$N107,0),IF(Q112<>\"N/A\",Q112*$N112,0),IF(Q116<>\"N/A\",Q116*$N116,0),IF(Q120<>\"N/A\",Q120*$N120,0),IF(Q125<>\"N/A\",Q125*$N125,0),IF(Q129<>\"N/A\",Q129*$N129,0),IF(Q133<>\"N/A\",Q133*$N133,0))/SUM(IF(Q107<>\"N/A\",$N107,0),IF(Q112<>\"N/A\",$N112,0),IF(Q116<>\"N/A\",$N116,0),IF(Q120<>\"N/A\",$N120,0),IF(Q125<>\"N/A\",$N125,0),IF(Q129<>\"N/A\",$N129,0),IF(Q133<>\"N/A\",$N133,0)))","v":0},{"$f":"IF(COUNT(R107,R112,R116,R120,R125,R129,R133)=0,\"N/A\",SUM(IF(R107<>\"N/A\",R107*$N107,0),IF(R112<>\"N/A\",R112*$N112,0),IF(R116<>\"N/A\",R116*$N116,0),IF(R120<>\"N/A\",R120*$N120,0),IF(R125<>\"N/A\",R125*$N125,0),IF(R129<>\"N/A\",R129*$N129,0),IF(R133<>\"N/A\",R133*$N133,0))/SUM(IF(R107<>\"N/A\",$N107,0),IF(R112<>\"N/A\",$N112,0),IF(R116<>\"N/A\",$N116,0),IF(R120<>\"N/A\",$N120,0),IF(R125<>\"N/A\",$N125,0),IF(R129<>\"N/A\",$N129,0),IF(R133<>\"N/A\",$N133,0)))","v":0},{"$f":"IF(COUNT(S107,S112,S116,S120,S125,S129,S133)=0,\"N/A\",SUM(IF(S107<>\"N/A\",S107*$N107,0),IF(S112<>\"N/A\",S112*$N112,0),IF(S116<>\"N/A\",S116*$N116,0),IF(S120<>\"N/A\",S120*$N120,0),IF(S125<>\"N/A\",S125*$N125,0),IF(S129<>\"N/A\",S129*$N129,0),IF(S133<>\"N/A\",S133*$N133,0))/SUM(IF(S107<>\"N/A\",$N107,0),IF(S112<>\"N/A\",$N112,0),IF(S116<>\"N/A\",$N116,0),IF(S120<>\"N/A\",$N120,0),IF(S125<>\"N/A\",$N125,0),IF(S129<>\"N/A\",$N129,0),IF(S133<>\"N/A\",$N133,0)))","v":0}]
[null,"T1: Quality Process Definition",null,null,null,null,null,null,null,null,null,null,null,4,null,{"$f":"IF(COUNTIF(P108:P111,\"N/A\")=ROWS(P108:P111),\"N/A\",(SUMPRODUCT(--(P108:P111<>\"N/A\"),$N108:$N111,P108:P111))/SUMIF(P108:P111,\"<>N/A\",$N108:$N111))","v":0},{"$f":"IF(COUNTIF(Q108:Q111,\"N/A\")=ROWS(Q108:Q111),\"N/A\",(SUMPRODUCT(--(Q108:Q111<>\"N/A\"),$N108:$N111,Q108:Q111))/SUMIF(Q108:Q111,\"<>N/A\",$N108:$N111))","v":0},{"$f":"IF(COUNTIF(R108:R111,\"N/A\")=ROWS(R108:R111),\"N/A\",(SUMPRODUCT(--(R108:R111<>\"N/A\"),$N108:$N111,R108:R111))/SUMIF(R108:R111,\"<>N/A\",$N108:$N111))","v":0},{"$f":"IF(COUNTIF(S108:S111,\"N/A\")=ROWS(S108:S111),\"N/A\",(SUMPRODUCT(--(S108:S111<>\"N/A\"),$N108:$N111,S108:S111))/SUMIF(S108:S111,\"<>N/A\",$N108:$N111))","v":0}]
[null,null,"F1: Product Definition Source","States the product definition source for generating the quality process definition’s inspection plans and fixture models.","Quality process definition activities will be derived from the product definition basis MBD.",null,"2D drawings only","2D drawings and derivative STEP models ","2D drawings and validated derivative models","3DIVs and validated derivative models","Validated 3DIV and validated derivative","Source models","Same",4]
[null,null,"F2: Method","States how quality process definition (i.e. inspection process plans, gage definitions, and fixture definitions) are generated.","Quality process definition become more digital and confidently reuse basis MBDs to define process plans, and create embellished derivatives,  and create fixture definitions, CMM work packages & BoCs.",null,"2D drawings and documents, fixtures and gage drawings","Same ","Same with fixture and gage models made from final basis model; BoCs documented","3DIVs, fixture and gage models from final basis model;  BOCs captured in digital systems","Same from final basis MBD","Same and assisted by rule-based inspection methods via BoC from MBD.","Auto generated from final basis MBD and inspection knowledge",4]
[null,null,"F3: Managed","States how the quality process definition package is stored, controlled and managed.","Quality process definition data package and contents will be managed as part-centric within the PDM system.",null,"Paper file cabinets","Disconnected electronic file directories ","Disconnected, document-centric PDM systems ","Disconnected, part-centric PDM systems","Harmonized PDM schema across inter-organization","Single, part-centric PDM throughout inter-organization","Single, part-centric PDM throughout supra-organization and extended enterprise",4]
[null,null,"F4: Response to Change","States how quality process definition discipline responds to change in product definition.","Quality process definition, specifically BoC, response to change notifications are more automated, timely, & guaranteed.",null,"No notifications","Ad hoc notifications","Procedural notifications ","Same with time guarantee","Same, digital","Same with automated state change by discipline","Same with automated updates by discipline",4]
[null,"T2: Quality Product Characteristics & BoC",null,null,null,null,null,null,null,null,null,null,null,4,null,{"$f":"IF(COUNTIF(P113:P115,\"N/A\")=ROWS(P113:P115),\"N/A\",(SUMPRODUCT(--(P113:P115<>\"N/A\"),$N113:$N115,P113:P115))/SUMIF(P113:P115,\"<>N/A\",$N113:$N115))","v":0},{"$f":"IF(COUNTIF(Q113:Q115,\"N/A\")=ROWS(Q113:Q115),\"N/A\",(SUMPRODUCT(--(Q113:Q115<>\"N/A\"),$N113:$N115,Q113:Q115))/SUMIF(Q113:Q115,\"<>N/A\",$N113:$N115))","v":0},{"$f":"IF(COUNTIF(R113:R115,\"N/A\")=ROWS(R113:R115),\"N/A\",(SUMPRODUCT(--(R113:R115<>\"N/A\"),$N113:$N115,R113:R115))/SUMIF(R113:R115,\"<>N/A\",$N113:$N115))","v":0},{"$f":"IF(COUNTIF(S113:S115,\"N/A\")=ROWS(S113:S115),\"N/A\",(SUMPRODUCT(--(S113:S115<>\"N/A\"),$N113:$N115,S113:S115))/SUMIF(S113:S115,\"<>N/A\",$N113:$N115))","v":0}]
[null,null,"F1: Method","States how the quality product characteristics (aka, inspection requirements) are determined, identified, and organized as a bill of characteristics (BoC).","Product characteristics persistently associated with inspection requirements within a MBD, and exported as a BoC in digital standards format.",null,"Manually labeling “ballooning” the drawing just before inspection","Interactive labeling just before inspection","Interactive labeling during quality planning with BoC","Interactive labeling during quality planning with PMI on MBD; BoC exported as document","Same and automatic labeling with PMI on MBD, and published within 3DIV","Same and exported via digital standards format","BoC exchanged via digital standards format",4]
[null,null,"F2: Managed","States how the Bill of Product Characteristics (BOC) are stored, controlled, and managed.","Product characteristics as BoCs are managed in a part-centric PDM.",null,"Paper file cabinets","Disconnected electronic file directories ","Disconnected, document-centric PDM systems ","Disconnected, part-centric PDM systems","Harmonized PDM schema across inter-organization","Single, part-centric PDM throughout inter-organization","Single, part-centric PDM throughout supra-organization and extended enterprise",4]
[null,null,"F3: Traceability","States how the BoC's pedigree is traced and connected with product definitions.","BOCs are bi-directionally connected with models and measurement results.",null,"Textual references on drawings","Electronic, textual references on drawing","Same","Label on model","Use for creation of quality inspection plans","Criticality designators associated to product characteristics","Associated with product requirements",4]
[null,"T3: Quality Process Instructions",null,null,null,null,null,null,null,null,null,null,null,4,null,{"$f":"IF(COUNTIF(P117:P119,\"N/A\")=ROWS(P117:P119),\"N/A\",(SUMPRODUCT(--(P117:P119<>\"N/A\"),$N117:$N119,P117:P119))/SUMIF(P117:P119,\"<>N/A\",$N117:$N119))","v":0},{"$f":"IF(COUNTIF(Q117:Q119,\"N/A\")=ROWS(Q117:Q119),\"N/A\",(SUMPRODUCT(--(Q117:Q119<>\"N/A\"),$N117:$N119,Q117:Q119))/SUMIF(Q117:Q119,\"<>N/A\",$N117:$N119))","v":0},{"$f":"IF(COUNTIF(R117:R119,\"N/A\")=ROWS(R117:R119),\"N/A\",(SUMPRODUCT(--(R117:R119<>\"N/A\"),$N117:$N119,R117:R119))/SUMIF(R117:R119,\"<>N/A\",$N117:$N119))","v":0},{"$f":"IF(COUNTIF(S117:S119,\"N/A\")=ROWS(S117:S119),\"N/A\",(SUMPRODUCT(--(S117:S119<>\"N/A\"),$N117:$N119,S117:S119))/SUMIF(S117:S119,\"<>N/A\",$N117:$N119))","v":0}]
[null,null,"F1: Method","States how inspection work instructions will be generated.","Inspection instructions progress from text to images to animations to augmented reality.  ",null,"Text & photograph","Text & photographs with pictures of 3D models","Text, photographs, model images, and model-based animations","Same ","Same with PMI","Same with augmented reality","Automatic process definition based on product type, facility, and available processes",4]
[null,null,"F2: Managed","States how inspection work instructions are stored, controlled, and managed.","Inspection instructions become increasingly linked to the part in the PDM system.",null,"Paper file cabinets","Disconnected electronic file directories ","Disconnected, document-centric PDM systems ","Disconnected, part-centric PDM systems","Harmonized PDM schema across inter-organization","Single, part-centric PDM throughout inter-organization","Single, part-centric PDM throughout supra-organization and extended enterprise",4]
[null,null,"F3: Response to Change","States how the inspection work instructions discipline responds to changes in process definition.","Inspection instructions response to change notifications are more automated, timely, & guaranteed.",null,"No notifications","Ad hoc notifications","Procedural notifications ","Same with time guarantee","Same and digital","Same with automated state change by discipline","Same with automated updates by discipline",4]
[null,"T4: Inspection Code Generation",null,null,null,null,null,null,null,null,null,null,null,4,null,{"$f":"IF(COUNTIF(P121:P124,\"N/A\")=ROWS(P121:P124),\"N/A\",(SUMPRODUCT(--(P121:P124<>\"N/A\"),$N121:$N124,P121:P124))/SUMIF(P121:P124,\"<>N/A\",$N121:$N124))","v":0},{"$f":"IF(COUNTIF(Q121:Q124,\"N/A\")=ROWS(Q121:Q124),\"N/A\",(SUMPRODUCT(--(Q121:Q124<>\"N/A\"),$N121:$N124,Q121:Q124))/SUMIF(Q121:Q124,\"<>N/A\",$N121:$N124))","v":0},{"$f":"IF(COUNTIF(R121:R124,\"N/A\")=ROWS(R121:R124),\"N/A\",(SUMPRODUCT(--(R121:R124<>\"N/A\"),$N121:$N124,R121:R124))/SUMIF(R121:R124,\"<>N/A\",$N121:$N124))","v":0},{"$f":"IF(COUNTIF(S121:S124,\"N/A\")=ROWS(S121:S124),\"N/A\",(SUMPRODUCT(--(S121:S124<>\"N/A\"),$N121:$N124,S121:S124))/SUMIF(S121:S124,\"<>N/A\",$N121:$N124))","v":0}]
[null,null,"F1: Product Definition Source","States how the inspection code is sourced from the product definition.","Inspection code generations become sourced from content with the process data package including the basis MBD, one or more in-process models, and fixture models.",null,"2D drawings only","2D drawings and derivative models (e.g. STEP)","2D drawings and validated derivative models","3DIVs and validated derivative models","Validated 3DIV and validated derivative","Source models","Same",4]
[null,null,"F2: Method","States how inspection code is generated using CMM/CT software per quality process definition.","Inspection code confidently reuses the basis MBDs contained in the quality process data package to generate CNC machine code.",null,"Manual","Interactively generated","Same","Same with PMI incorporated","Same","Semi-automatically based on minimum metrology feature set with PMI","Automatically based on metrology features & PM",4]
[null,null,"F3: Managed","States how CNC data packages (code files, persistent identifiers, models, drawing, and support information) are managed.","Inspection code definitions, CNC data package, and their contents will be managed as part-centric within the PDM system.",null,"Paper file cabinets","Disconnected electronic file directories ","Disconnected, document-centric PDM systems ","Disconnected, part-centric PDM systems","Harmonized PDM schema across inter-organization","Single, part-centric PDM throughout inter-organization","Single, part-centric PDM throughout supra-organization and extended enterprise",4]
[null,null,"F4: Response to change","States how inspection code generation discipline responds to changes in product or process definition.","Inspection code generation response to change notifications are more automated, timely, & guaranteed.",null,"No notifications","Ad hoc notifications","Procedural notifications ","Same with time guarantee","Same and digital","Same with automated state change by discipline","Same with automated updates by discipline",4]
[null,"T5: Quality Results Management & Analysis",null,null,null,null,null,null,null,null,null,null,null,4,null,{"$f":"IF(COUNTIF(P126:P128,\"N/A\")=ROWS(P126:P128),\"N/A\",(SUMPRODUCT(--(P126:P128<>\"N/A\"),$N126:$N128,P126:P128))/SUMIF(P126:P128,\"<>N/A\",$N126:$N128))","v":0},{"$f":"IF(COUNTIF(Q126:Q128,\"N/A\")=ROWS(Q126:Q128),\"N/A\",(SUMPRODUCT(--(Q126:Q128<>\"N/A\"),$N126:$N128,Q126:Q128))/SUMIF(Q126:Q128,\"<>N/A\",$N126:$N128))","v":0},{"$f":"IF(COUNTIF(R126:R128,\"N/A\")=ROWS(R126:R128),\"N/A\",(SUMPRODUCT(--(R126:R128<>\"N/A\"),$N126:$N128,R126:R128))/SUMIF(R126:R128,\"<>N/A\",$N126:$N128))","v":0},{"$f":"IF(COUNTIF(S126:S128,\"N/A\")=ROWS(S126:S128),\"N/A\",(SUMPRODUCT(--(S126:S128<>\"N/A\"),$N126:$N128,S126:S128))/SUMIF(S126:S128,\"<>N/A\",$N126:$N128))","v":0}]
[null,null,"F1: Managed","States how test, measurement, inspection, and statistical results are collected, stored, controlled, and managed.","Quality results will be managed in or via a part-centric PDM system.",null,"Paper file cabinets","Disconnected electronic file directories ","Disconnected, document-centric PDM systems ","Disconnected, part-centric PDM systems","Harmonized PDM schema across inter-organization","Single, part-centric PDM throughout inter-organization","Single, part-centric PDM throughout supra-organization and extended enterprise",4]
[null,null,"F2: Traceability (Serialization)","States how quality results are tied to serialized parts and to the product definition elements.","Quality results are associated to serialized parts and individual model-based product characteristics.",null,"Textual reference to part and serialized parts","Same with electronic drawing tags","Reference with electronic model annotations","Associated with model-based product characteristic identifiers","Same with persistent identifiers","Same and associations to product requirements ","Same with extended enterprise",4]
[null,null,"F3: Reporting","States how quality results, recaps, and statistical conclusions are reported and communicate to other organizational disciplines.","Quality results are communicated to the inter-organization and visualized reported via a digital twin virtual model.",null,"Individual part","Results recaps with statistical analysis","Automatic results recaps and statistical analysis","Same and scanned results on model","Results via digital interoperability standards (e.g., QIF) format.","Same with statistical analysis and quality plans.","Same and shown via product characteristics on MBD digital twin",4]
[null,"T6: Test Equipment Definition & Realization",null,null,null,null,null,null,null,null,null,null,null,4,null,{"$f":"IF(COUNTIF(P130:P132,\"N/A\")=ROWS(P130:P132),\"N/A\",(SUMPRODUCT(--(P130:P132<>\"N/A\"),$N130:$N132,P130:P132))/SUMIF(P130:P132,\"<>N/A\",$N130:$N132))","v":0},{"$f":"IF(COUNTIF(Q130:Q132,\"N/A\")=ROWS(Q130:Q132),\"N/A\",(SUMPRODUCT(--(Q130:Q132<>\"N/A\"),$N130:$N132,Q130:Q132))/SUMIF(Q130:Q132,\"<>N/A\",$N130:$N132))","v":0},{"$f":"IF(COUNTIF(R130:R132,\"N/A\")=ROWS(R130:R132),\"N/A\",(SUMPRODUCT(--(R130:R132<>\"N/A\"),$N130:$N132,R130:R132))/SUMIF(R130:R132,\"<>N/A\",$N130:$N132))","v":0},{"$f":"IF(COUNTIF(S130:S132,\"N/A\")=ROWS(S130:S132),\"N/A\",(SUMPRODUCT(--(S130:S132<>\"N/A\"),$N130:$N132,S130:S132))/SUMIF(S130:S132,\"<>N/A\",$N130:$N132))","v":0}]
[null,null,"F1: Basis","Identifies the basis  of information for test equipment design (see C1: Design Activity's contexts) and realization.","Test equipment definition and realization will confidently reuse the basis MBD.",null,"Visual analysis of product definition","Same","Created from basis 3D model","Same ","Created from basis 3D MBD","Created from basis MBD dataset","Defined automatically from product definition",4]
[null,null,"F2: Managed","States how test equipment definitions and fabrication data packages are stored, controlled, and managed.","Test equipment definitions, fabrication data packages, and their contents will be managed as part-centric within the PDM system.",null,"Paper file cabinets","Disconnected electronic file directories ","Disconnected, document-centric PDM systems ","Disconnected, part-centric PDM systems","Harmonized PDM schema across inter-organization","Single, part-centric PDM throughout inter-organization","Single, part-centric PDM throughout supra-organization and extended enterprise",4]
[null,null,"F3: Traceability","States how test equipment definitions are traced back to a basis model and their associated process definition.","Test equipment definition and fabrication data package become associated to their associated process definition and their part’s basis MBD.",null,"Textual references","Electronic, textual references","System level awareness of other disciplines","Part-level navigation to objects in other disciplines","Element-level navigation to attributes in other disciplines","Same with bi-directional navigation","Same with write back access, as appropriate",4]
[null,"T7: Inspection Operations",null,null,null,null,null,null,null,null,null,null,null,4,null,{"$f":"IF(COUNTIF(P134:P135,\"N/A\")=ROWS(P134:P135),\"N/A\",(SUMPRODUCT(--(P134:P135<>\"N/A\"),$N134:$N135,P134:P135))/SUMIF(P134:P135,\"<>N/A\",$N134:$N135))","v":0},{"$f":"IF(COUNTIF(Q134:Q135,\"N/A\")=ROWS(Q134:Q135),\"N/A\",(SUMPRODUCT(--(Q134:Q135<>\"N/A\"),$N134:$N135,Q134:Q135))/SUMIF(Q134:Q135,\"<>N/A\",$N134:$N135))","v":0},{"$f":"IF(COUNTIF(R134:R135,\"N/A\")=ROWS(R134:R135),\"N/A\",(SUMPRODUCT(--(R134:R135<>\"N/A\"),$N134:$N135,R134:R135))/SUMIF(R134:R135,\"<>N/A\",$N134:$N135))","v":0},{"$f":"IF(COUNTIF(S134:S135,\"N/A\")=ROWS(S134:S135),\"N/A\",(SUMPRODUCT(--(S134:S135<>\"N/A\"),$N134:$N135,S134:S135))/SUMIF(S134:S135,\"<>N/A\",$N134:$N135))","v":0}]
[null,null,"F1: Product Definition Reference","States how inspection operations reference and use product definition and models.","Inspection operations reference and use 3DIVs and models.",null,"Paper 2D drawing","Electronic 2D drawing","Same","3D interactive viewable (3DIV)","Same with support model","MBD dataset","Same with model-based product characteristics",4]
[null,null,"F2: Presentation","States how inspection operations will use process instructions.","Inspection operations will contain more digital content.",null,"Textual instructions on paper ","Electronic textual instructions","Same with graphics and photo images","Same with images from model","Same with recorded videos","Same with model-based animations","Same with augmented or mixed reality",4]
[]
["C5: Enterprise Enabling Activities",null,null,{"$f":"EnterpriseEnablingActivities","v":"Activities that enable an organization to act as a MBE, but do not directly add value to a product."},"Make it easier to enable, develop, implement, and sustain an MBE.",null,"Non-existent MBE","MBE Awareness","Reactive MBE","Repeatable MBE","Digital MBE","Integrated MBE","Optimized MBE",4,null,{"$f":"IF(COUNT(P138,P141,P144,P149,P155,P161,P166)=0,\"N/A\",SUM(IF(P138<>\"N/A\",P138*$N138,0),IF(P141<>\"N/A\",P141*$N141,0),IF(P144<>\"N/A\",P144*$N144,0),IF(P149<>\"N/A\",P149*$N149,0),IF(P155<>\"N/A\",P155*$N155,0),IF(P161<>\"N/A\",P161*$N161,0),IF(P166<>\"N/A\",P166*$N166,0))/SUM(IF(P138<>\"N/A\",$N138,0),IF(P141<>\"N/A\",$N141,0),IF(P144<>\"N/A\",$N144,0),IF(P149<>\"N/A\",$N149,0),IF(P155<>\"N/A\",$N155,0),IF(P161<>\"N/A\",$N161,0),IF(P166<>\"N/A\",$N166,0)))","v":0},{"$f":"IF(COUNT(Q138,Q141,Q144,Q149,Q155,Q161,Q166)=0,\"N/A\",SUM(IF(Q138<>\"N/A\",Q138*$N138,0),IF(Q141<>\"N/A\",Q141*$N141,0),IF(Q144<>\"N/A\",Q144*$N144,0),IF(Q149<>\"N/A\",Q149*$N149,0),IF(Q155<>\"N/A\",Q155*$N155,0),IF(Q161<>\"N/A\",Q161*$N161,0),IF(Q166<>\"N/A\",Q166*$N166,0))/SUM(IF(Q138<>\"N/A\",$N138,0),IF(Q141<>\"N/A\",$N141,0),IF(Q144<>\"N/A\",$N144,0),IF(Q149<>\"N/A\",$N149,0),IF(Q155<>\"N/A\",$N155,0),IF(Q161<>\"N/A\",$N161,0),IF(Q166<>\"N/A\",$N166,0)))","v":0},{"$f":"IF(COUNT(R138,R141,R144,R149,R155,R161,R166)=0,\"N/A\",SUM(IF(R138<>\"N/A\",R138*$N138,0),IF(R141<>\"N/A\",R141*$N141,0),IF(R144<>\"N/A\",R144*$N144,0),IF(R149<>\"N/A\",R149*$N149,0),IF(R155<>\"N/A\",R155*$N155,0),IF(R161<>\"N/A\",R161*$N161,0),IF(R166<>\"N/A\",R166*$N166,0))/SUM(IF(R138<>\"N/A\",$N138,0),IF(R141<>\"N/A\",$N141,0),IF(R144<>\"N/A\",$N144,0),IF(R149<>\"N/A\",$N149,0),IF(R155<>\"N/A\",$N155,0),IF(R161<>\"N/A\",$N161,0),IF(R166<>\"N/A\",$N166,0)))","v":0},{"$f":"IF(COUNT(S138,S141,S144,S149,S155,S161,S166)=0,\"N/A\",SUM(IF(S138<>\"N/A\",S138*$N138,0),IF(S141<>\"N/A\",S141*$N141,0),IF(S144<>\"N/A\",S144*$N144,0),IF(S149<>\"N/A\",S149*$N149,0),IF(S155<>\"N/A\",S155*$N155,0),IF(S161<>\"N/A\",S161*$N161,0),IF(S166<>\"N/A\",S166*$N166,0))/SUM(IF(S138<>\"N/A\",$N138,0),IF(S141<>\"N/A\",$N141,0),IF(S144<>\"N/A\",$N144,0),IF(S149<>\"N/A\",$N149,0),IF(S155<>\"N/A\",$N155,0),IF(S161<>\"N/A\",$N161,0),IF(S166<>\"N/A\",$N166,0)))","v":0}]
[null,"T1: Product Work Collaboration",null,null,null,null,null,null,null,null,null,null,null,4,null,{"$f":"IF(COUNTIF(P139:P140,\"N/A\")=ROWS(P139:P140),\"N/A\",(SUMPRODUCT(--(P139:P140<>\"N/A\"),$N139:$N140,P139:P140))/SUMIF(P139:P140,\"<>N/A\",$N139:$N140))","v":0},{"$f":"IF(COUNTIF(Q139:Q140,\"N/A\")=ROWS(Q139:Q140),\"N/A\",(SUMPRODUCT(--(Q139:Q140<>\"N/A\"),$N139:$N140,Q139:Q140))/SUMIF(Q139:Q140,\"<>N/A\",$N139:$N140))","v":0},{"$f":"IF(COUNTIF(R139:R140,\"N/A\")=ROWS(R139:R140),\"N/A\",(SUMPRODUCT(--(R139:R140<>\"N/A\"),$N139:$N140,R139:R140))/SUMIF(R139:R140,\"<>N/A\",$N139:$N140))","v":0},{"$f":"IF(COUNTIF(S139:S140,\"N/A\")=ROWS(S139:S140),\"N/A\",(SUMPRODUCT(--(S139:S140<>\"N/A\"),$N139:$N140,S139:S140))/SUMIF(S139:S140,\"<>N/A\",$N139:$N140))","v":0}]
[null,null,"F1: Actors","States who is collaborating on product & process information.","Collaboration crosses more boundaries (e.g., security, location, organizational).",null,"Ad hoc","Core group","Cross-functional team","Organization ","Inter-organization","Supra-organization","Extended enterprise",4]
[null,null,"F2:Methods","States the methods used to  collaborate on product & process information.","Collaboration transitions to joint authoring over increasingly rich media.",null,"Phone and in-person meetings","Same and asynchronous messaging (email, voice mail, instant messaging)","Same and synchronous sharing (voice & video conferencing)","Same and multi-user screen sharing","Same with common access to calendars, schedules, and web-based tools","Same and concurrent, multi-user authoring","Same and augmented or virtual reality collaboration",4]
[null,"T2: MBE Governance",null,null,null,null,null,null,null,null,null,null,null,4,null,{"$f":"IF(COUNTIF(P142:P143,\"N/A\")=ROWS(P142:P143),\"N/A\",(SUMPRODUCT(--(P142:P143<>\"N/A\"),$N142:$N143,P142:P143))/SUMIF(P142:P143,\"<>N/A\",$N142:$N143))","v":0},{"$f":"IF(COUNTIF(Q142:Q143,\"N/A\")=ROWS(Q142:Q143),\"N/A\",(SUMPRODUCT(--(Q142:Q143<>\"N/A\"),$N142:$N143,Q142:Q143))/SUMIF(Q142:Q143,\"<>N/A\",$N142:$N143))","v":0},{"$f":"IF(COUNTIF(R142:R143,\"N/A\")=ROWS(R142:R143),\"N/A\",(SUMPRODUCT(--(R142:R143<>\"N/A\"),$N142:$N143,R142:R143))/SUMIF(R142:R143,\"<>N/A\",$N142:$N143))","v":0},{"$f":"IF(COUNTIF(S142:S143,\"N/A\")=ROWS(S142:S143),\"N/A\",(SUMPRODUCT(--(S142:S143<>\"N/A\"),$N142:$N143,S142:S143))/SUMIF(S142:S143,\"<>N/A\",$N142:$N143))","v":0}]
[null,null,"F1: Leadership","States the extent of the MBE leadership team.","MBE leadership becomes more formalized, full time, and at higher levels.",null,"None","Informal, part-time MBE champion ","Formal part-time MBE Champion","Formal, full-time MBE champion ","Same and organization management support","MBE champion in organization senior leadership position ","MBE Champion is head of supra-organization ",4]
[null,null,"F2: Structure","States how an organization's business structure supports the MBE strategy.","MBE activities becomes more formalized with more involved in the structure.",null,"None","Ad hoc","Non-authoritative peer group","Team lead with core team","Centralized MBE program with team and cross-functional adjunct members","Same with embedded liaisons throughout inter-organization","Same including extended enterprise with members from supra-organization suppliers, customer, and external experts",4]
[null,"T3: MBE People",null,null,null,null,null,null,null,null,null,null,null,4,null,{"$f":"IF(COUNTIF(P145:P148,\"N/A\")=ROWS(P145:P148),\"N/A\",(SUMPRODUCT(--(P145:P148<>\"N/A\"),$N145:$N148,P145:P148))/SUMIF(P145:P148,\"<>N/A\",$N145:$N148))","v":0},{"$f":"IF(COUNTIF(Q145:Q148,\"N/A\")=ROWS(Q145:Q148),\"N/A\",(SUMPRODUCT(--(Q145:Q148<>\"N/A\"),$N145:$N148,Q145:Q148))/SUMIF(Q145:Q148,\"<>N/A\",$N145:$N148))","v":0},{"$f":"IF(COUNTIF(R145:R148,\"N/A\")=ROWS(R145:R148),\"N/A\",(SUMPRODUCT(--(R145:R148<>\"N/A\"),$N145:$N148,R145:R148))/SUMIF(R145:R148,\"<>N/A\",$N145:$N148))","v":0},{"$f":"IF(COUNTIF(S145:S148,\"N/A\")=ROWS(S145:S148),\"N/A\",(SUMPRODUCT(--(S145:S148<>\"N/A\"),$N145:$N148,S145:S148))/SUMIF(S145:S148,\"<>N/A\",$N145:$N148))","v":0}]
[null,null,"F1: Training","States how engineers, designers, machinists, inspectors, and others are trained to work with MBE.","Training curriculum becomes more consistent and on demand. ",null,"N/A","Locally managed, inconsistently delivered","Centrally managed, class room based","Same and electronic delivery","Digital, on demand, consistent on all mediums","Role-based, in context of enterprise systems and business processes","Independently audited, aligns with industry best practices",4]
[null,null,"F2: Support","States how people working with MBE are assisted with problem solving and instruction.","Support becomes more accessible at point of consumption. ",null,"N/A","Help desk for technology only","Centralized team for support on people, process, and technology, timely","Same with defined service level agreement","Digital, accessible for self-service","Super user network forums encourage knowledge sharing","Pre-empts business need at point of consumption",4]
[null,null,"F3: Certified Roles","States which MBE contributors are certified and level of recognition.","More MBE contributors are certified by more widely recognized bodies.",null,"N/A","Not standardized, no formal certification ","Standardized, certification for key roles","Standardized in business processes; certification for formally recognized roles","Roles granted when formal certification achieved, digital approvals ","Roles and permissions align with training records","Externally accredited and recognized by professional bodies",4]
[null,null,"F4: Aware","States how workers become informed about MBE processes and technology.","Information about MBE processes and technology is richer and more readily available.",null,"N/A","Ad hoc","Broadcasts to interested parties","MBE communications portal","Interactive MBE communications portal","Automated feeds from core MBE business functions and capabilities","Metrics from integrated business intelligence capability",4]
[null,"T4: MBE Process",null,null,null,null,null,null,null,null,null,null,null,4,null,{"$f":"IF(COUNTIF(P150:P154,\"N/A\")=ROWS(P150:P154),\"N/A\",(SUMPRODUCT(--(P150:P154<>\"N/A\"),$N150:$N154,P150:P154))/SUMIF(P150:P154,\"<>N/A\",$N150:$N154))","v":0},{"$f":"IF(COUNTIF(Q150:Q154,\"N/A\")=ROWS(Q150:Q154),\"N/A\",(SUMPRODUCT(--(Q150:Q154<>\"N/A\"),$N150:$N154,Q150:Q154))/SUMIF(Q150:Q154,\"<>N/A\",$N150:$N154))","v":0},{"$f":"IF(COUNTIF(R150:R154,\"N/A\")=ROWS(R150:R154),\"N/A\",(SUMPRODUCT(--(R150:R154<>\"N/A\"),$N150:$N154,R150:R154))/SUMIF(R150:R154,\"<>N/A\",$N150:$N154))","v":0},{"$f":"IF(COUNTIF(S150:S154,\"N/A\")=ROWS(S150:S154),\"N/A\",(SUMPRODUCT(--(S150:S154<>\"N/A\"),$N150:$N154,S150:S154))/SUMIF(S150:S154,\"<>N/A\",$N150:$N154))","v":0}]
[null,null,"F1: Business Practices","States how business practices are modified to accommodate the use of authorized 3D Models.","Authorized MBD become accepted by processes and become ubiquitous.",null,"2D drawing based","Same","Accommodate 3D models","Mix MBD-specific practices with legacy practices","Locally operated exclusive end-to-end practices for MBD","End-to-end practices for MBD across the inter-organization","Same and across the supra-organization and extended enterprise",4]
[null,null,"F2: Repeatable (Documented)","States how MBE processes are documented and managed.","Processes become more digital, interactive, and repeatable.",null,"N/A","Inconsistent, reliant on subject matter expert knowledge","Documented, organization managed ","Documented, inter-organization managed ","Digital in designated inter-organization repository ","Fully integrated process framework","Closed loop processes",4]
[null,null,"F3: Govern","States how MBE processes are governed.","Processes are governed more centrally across the enterprise.",null,"N/A","No governance","Organization management","Same","Centrally governed, standardized across inter-organization units","Actively managed by centralized team of process specialists across supra-organization","Regular process audits",4]
[null,null,"F4: Optimize","States how key performance indicators of MBE processes are measured and used for optimization.","Processes become better understood, measured and optimized.",null,"N/A","Not well understood","Efficiency not measured","Key Performance Indicators measured, but inefficient ","Maintained alignment ","Assessed and optimized, tailorable ","Continuous improvement  ",4]
[null,null,"F5: Industry Standard","States how MBE processes are aligned to industry and/or national standards.","Local processes are first benchmarked against, aligned to industry standards, then influence of national standards.",null,"N/A","Locally conceived","No alignment ","Benchmark key processes ","COTS systems aligned to industry standards","Regularly benchmark all processes","Standards organizations engagement, influence standard definitions; regular process audits",4]
[null,"T5: MBE Technology",null,null,null,null,null,null,null,null,null,null,null,4,null,{"$f":"IF(COUNTIF(P156:P160,\"N/A\")=ROWS(P156:P160),\"N/A\",(SUMPRODUCT(--(P156:P160<>\"N/A\"),$N156:$N160,P156:P160))/SUMIF(P156:P160,\"<>N/A\",$N156:$N160))","v":0},{"$f":"IF(COUNTIF(Q156:Q160,\"N/A\")=ROWS(Q156:Q160),\"N/A\",(SUMPRODUCT(--(Q156:Q160<>\"N/A\"),$N156:$N160,Q156:Q160))/SUMIF(Q156:Q160,\"<>N/A\",$N156:$N160))","v":0},{"$f":"IF(COUNTIF(R156:R160,\"N/A\")=ROWS(R156:R160),\"N/A\",(SUMPRODUCT(--(R156:R160<>\"N/A\"),$N156:$N160,R156:R160))/SUMIF(R156:R160,\"<>N/A\",$N156:$N160))","v":0},{"$f":"IF(COUNTIF(S156:S160,\"N/A\")=ROWS(S156:S160),\"N/A\",(SUMPRODUCT(--(S156:S160<>\"N/A\"),$N156:$N160,S156:S160))/SUMIF(S156:S160,\"<>N/A\",$N156:$N160))","v":0}]
[null,null,"F1: Standardized","States the degree for standardization for MBE software technologies.","Software technology used for MBE becomes more standardized.",null,"N/A","Non-standard, non-interoperable","Non-standard but interoperable","Standardized for discrete workflows with organization customizations","Standardized for discrete workflows with inter-organization customizations","Supra-organization platform","Same with interoperability to external partners",4]
[null,null,"F2: Integrated","States the alignment between MBE technology and business goals.","Technology becomes more aligned, digital, and accessible across the enterprise.",null,"N/A","Disjointed technologies","Technologies enable distinct, coherent workflows","Technology enables integrated workflows","All technologies are either integrated or interoperable","Technology enables a digital thread across inter-organization and lifecycle phases","Technology enables digital thread extended to supra-organization and external strategic partners",4]
[null,null,"F3: Verified","States how the organization proves the veracity of software agents that process MBE data.","Veracity of MBE software is increasingly proven. ",null,"No reliable verification regime","Functional verification checks on installations and upgrades","Same with verification of no side effects","Same, plus exercise software against canonical standards","Same and exercised on routine schedule","Same with continuous verification","Independent, external verification & validation (V&V)",4]
[null,null,"F4: Maintained","States how the organization proves that MBE-related technologies have correct and up-to-date software configurations (e.g. versions, patch levels, configuration files).","Qualification of software versions and configurations becomes specialized, continuous, and integrated.",null,"No reliable configuration checking regime","Configuration check of individual technologies","Same","Ad hoc configuration check of dependencies","Routine configuration check of dependencies","Continuous configuration check of dependencies","Same with self-aware and self-organizing technologies",4]
[null,null,"F5: Tool Availability","States the availability of MBE tools to MBE people.","Tools become more easily accessible in more environments.",null,"None ","None","Pilot projects only","Limited environments","Facility Wide","Inter-organization solutions  in all environments","Available to supra-organization and extended enterprise"]
[null,"T6: MBE Information Assurance",null,null,null,null,null,null,null,null,null,null,null,4,null,{"$f":"IF(COUNTIF(P162:P165,\"N/A\")=ROWS(P162:P165),\"N/A\",(SUMPRODUCT(--(P162:P165<>\"N/A\"),$N162:$N165,P162:P165))/SUMIF(P162:P165,\"<>N/A\",$N162:$N165))","v":0},{"$f":"IF(COUNTIF(Q162:Q165,\"N/A\")=ROWS(Q162:Q165),\"N/A\",(SUMPRODUCT(--(Q162:Q165<>\"N/A\"),$N162:$N165,Q162:Q165))/SUMIF(Q162:Q165,\"<>N/A\",$N162:$N165))","v":0},{"$f":"IF(COUNTIF(R162:R165,\"N/A\")=ROWS(R162:R165),\"N/A\",(SUMPRODUCT(--(R162:R165<>\"N/A\"),$N162:$N165,R162:R165))/SUMIF(R162:R165,\"<>N/A\",$N162:$N165))","v":0},{"$f":"IF(COUNTIF(S162:S165,\"N/A\")=ROWS(S162:S165),\"N/A\",(SUMPRODUCT(--(S162:S165<>\"N/A\"),$N162:$N165,S162:S165))/SUMIF(S162:S165,\"<>N/A\",$N162:$N165))","v":0}]
[null,null,"F1: Authenticity","States how the organization assures authenticity of models and derivatives.","Authenticity evolves from physical controls to intrinsic digital proof.",null,"Markings on 2D drawing","Release records","Certificate of authenticity associated to model","Same (3DIV instead of 2D drawing)","Intrinsic, digital proof for native model","Intrinsic, digital proof for all MBD artifacts","Organizational-level testament of authenticity",4]
[null,null,"F2: Accessibility","States the format information is stored for MBE.","Information becomes more digital and searchable.",null,"N/A","Difficult to access, in non-electronic format","Organization stored, electronic format","Master repositories, local access","Digital, separable, accessible across inter-organization","Digital reporting, search across supra-organization","Extended enterprise interrogation of data across all platforms and systems",4]
[null,null,"F3: Confidentiality","States how the organization controls access to models and derivatives.","Controls become richer, automatic, and consistently applied across the enterprise.",null,"Physical control","Individual control of files ","Individual control of document sets","Manual redaction, adjudication, and encryption","Automatic redaction, adjudication, encryption, and digital rights","Object-level content protection by digital rights management system","External partners participate in digital rights management system",4]
[null,null,"F4: Data Access","States how data access is controlled and governed.","Access controls become more common and centrally governed.",null,"N/A","Ad hoc","Granted by data creator","Governed by program","Same","Centrally governed data access controls","Same",4]
[null,"T7: MBE Financials",null,null,null,null,null,null,null,null,null,null,null,4,null,{"$f":"IF(COUNTIF(P167:P168,\"N/A\")=ROWS(P167:P168),\"N/A\",(SUMPRODUCT(--(P167:P168<>\"N/A\"),$N167:$N168,P167:P168))/SUMIF(P167:P168,\"<>N/A\",$N167:$N168))","v":0},{"$f":"IF(COUNTIF(Q167:Q168,\"N/A\")=ROWS(Q167:Q168),\"N/A\",(SUMPRODUCT(--(Q167:Q168<>\"N/A\"),$N167:$N168,Q167:Q168))/SUMIF(Q167:Q168,\"<>N/A\",$N167:$N168))","v":0},{"$f":"IF(COUNTIF(R167:R168,\"N/A\")=ROWS(R167:R168),\"N/A\",(SUMPRODUCT(--(R167:R168<>\"N/A\"),$N167:$N168,R167:R168))/SUMIF(R167:R168,\"<>N/A\",$N167:$N168))","v":0},{"$f":"IF(COUNTIF(S167:S168,\"N/A\")=ROWS(S167:S168),\"N/A\",(SUMPRODUCT(--(S167:S168<>\"N/A\"),$N167:$N168,S167:S168))/SUMIF(S167:S168,\"<>N/A\",$N167:$N168))","v":0}]
[null,null,"F1: Mechanism","States the source and extent of funding for MBE.","MBE funding mechanism progresses from ad hoc projects, to programs, to portfolios.",null,"N/A","Ad hoc","Projects for technology capability maturation","Same and pilot applications for process maturation","Program of MBE related projects","Same and coordinated across multiple funding venues","Portfolio of MBE programs",4]
[null,null,"F2: Continuity","States the continuity of funding for MBE.","MBE funding continues from competitive short-term to organizationally sustained funding.",null,"N/A","Ad hoc","Single time period","Multiple time periods","Sustained at organization","Sustained across inter-organization.","Sustained from supra-organization",4]
[null,null,"END"]
[null,null," NSC-614-3432 Dated March/2021 Unclassified Unlimited Release (UUR).  "]

{"sheet":"MBE Lexicon","index":2,"n_rows":115,"n_cols":5,"rows_kept":115,"cut":false,"hidden":false,"merged":[]}
["Abbrev.","Term","Definition","Specialization","Organization Comments (Add your comments here)"]
["3DIV","3D Interactive Viewable","A three-dimensional, derivative model that is interactive and is published in a ubiquitous format."]
[null,"Ad hoc","A mode of operation performed as needed."]
[null,"Annotation","Visible, non-shape information contained in a 3D model.","[ASME Y14.41-2019, Annotation] visible dimensions, tolerances, notes, text, or symbols.  "]
[null,"Assertion","In the MBE Maturity Index, a statement to be assessed at the intersection of a maturity level and a facet."]
[null,"Attribute","Non-visible information contained in, or related to, a model.","[ASME Y14.41-2019, Attribute] a dimension, tolerance, note, text, or symbol required to complete the product definition or feature of the product that is not visible, but available upon interrogation of the annotated model."]
[null,"Authenticated","Proven to be genuine as issued by its originator."]
[null,"Authoritative Source","An information provider that is sanctioned for a given lifecycle activity. "]
[null,"Authorized","Approved by an authority for use in a lifecycle activity."]
[null,"Automated","A mode of operation performed for a person by a machine."]
[null,"Baseline","An immutable product definition dataset created at a particular point in time and used for comparison or control."]
["BoC","Bill of Characteristic","A list of product characteristics."]
["BoM","Bill of Materials","A list of items, along with quantities and optional activity-specific information, needed to perform a lifecycle activity."]
[null,"BoM, X","Any type of BoM."]
[null,"Bounded Surface",null,"[ASME Y14.46, Bounded Surface Region] A surface subset within a part or on a part surface that is bounded by a set of connected or intersecting edges"]
[null,"Bounded Volume",null,"[ASME Y14.46, Bounded Volume Region] A volume subset within a part that is bounded by a set of connected or intersecting surfaces."]
[null,"Category","In the MBE Maturity Index, an activity that contains topics."]
[null,"Certified","Guaranteed to conform to protocols."]
[null,"Context","In the MBE Maturity Index, a user-defined discipline."]
[null,"Criticality designator","A note of great importance that appears on a product definition."]
[null,"Data","Facts given for storage or processing.","[Y14.41-2019, Data] Information represented in a formal manner suitable for communication, interpretation, or processing by human beings or computers."]
[null,"Dataset","An identifiable collection of related data that serves a lifecycle activity."]
[null,"Dataset, MBE","A dataset that encapsulates a model-based definition."]
[null,"Data Package","An identifiable digital container of dataset(s) that is intended for the specific purpose of storage or delivery. "]
[null,"Data Package, X","A type of Data Package"]
[null,"Derivative","An artifact created from a source artifact that may be transformed into a different format.","[ASME Y14.41 - 2019, Derivative] Data duplicated or extracted from the original.  A copy of a derivative is also a derivative"]
[null,"Derivative, Embellished ","The condition of a derivative being embellished from its source with respect to an intended use."]
[null,"Derivative, Equivalent ","The condition of a derivative being functionally equivalent from its source with respect to an intended use."]
[null,"Design Activities","Activities involved in designing a product."]
["DfX","Design for X","An activity that optimizes a design for a goal."]
[null,"Digital","Data intended for interpretation by computer applications."]
[null,"Digital Thread","The linkages of data from authoritative sources that interconnects a digital enterprise. "]
[null,"Digital Twin","A model digitally connected with its realization(s)."]
[null,"Discipline","An expertise that contributes to the product lifecycle."]
[null,"Electronic","A computerized document intended for presentation to humans."]
[null,"End Item","See product."]
[null,"Enterprise","A supra-organization that participates in an endeavor.",null,"In the context of organizations, an enterprise is a supra-organzation which is above, in position sense, over one or many organizations."]
["Dent","Enterprise, Digital","An organization that uses a digital thread to conduct business activities."]
[null,"Enterprise Enabling Activities","Activities that enable an organization to act as a MBE, but do not directly add value to a product."]
[null,"Facet","In the MBE Maturity Index, an activity within a topic that contains a set of assertions regarding the current state."]
[null,"Interactive","A mode of operation performed by a person interacting with automation."]
[null,"Lifecycle","See product lifecycle."]
[null,"Lifecycle Activity","An activity related to a product lifecycle."]
["LOTAR","Long Term Archiving and Retrieval","A capability that preserves information and makes it available for communities of interest."]
[null,"Manual","A mode of operation performed by a person without automation."]
[null,"Manufacturing Activities","Activities involved in making a product."]
[null,"Maturity level","In the MBE Maturity Index, a state of maturity that contains a set of assertions."]
[null,"MBE Maturity Index","A tool that an organization uses to assess itself as, and facilitate tranistion to, a model-based enterprise."]
[null,"Model","A digital representation of a thing."]
[null,"Model, 3D","A three-dimensional model.","[ASME Y14.41 - 2019, Model] the portion of the data set that contains model\ngeometry and supplemental geometry."]
[null,"Model, 3D CAD ","3D model of a physical item that is generated using drafting and design software."]
[null,"Model, Authorized ","See authorized and model."]
[null,"Model, Basis ","The model that a practitioner uses as the starting point for a given lifecycle activity."]
[null,"Model, Courtesy ","An unauthorized model provided to a recipient."]
[null,"Model, Derivative","See derivative and model."]
[null,"Model, Inheritance","A derivative model with one-way assocative propagation of source model changes."]
[null,"Model, Native ","A model in the format of its originating software application."]
[null,"Model, Source ","See source and model."]
[null,"Model, Trusted ","See trusted and model."]
[null,"Model, X","Any type of model."]
["MBD","Model-Based Definition","A product definition founded on a 3D model that requires semantic PMI and attributes."]
["MBE","Model-Based Enterprise","A digital enterprise that uses models as the foundation for the product lifecycle."]
["MBSE","Model-Based Systems Engineering","A method of system engineering that is based on models."]
[null,"On-demand","An automated mode of operation initiated by a person."]
[null,"Organization","A group of people who work together for a common purpose of activities."]
[null,"Part","A distinct item of a product."]
[null,"Part-Centric","An organizing principle that enables product data management to relate all product lifecycle data to a single point of reference."]
[null,"PDM System","An information system that implements product data management."]
[null,"Pedigree","The record of heritage that proves the authenticity of data."]
[null,"Precise","Describes a result that has sufficient decision precision."]
[null,"Presentation",null,"[ASME Y14.47 - 2019, Presentation] The manner in which information is displayed for use by a human."]
[null,"Process","Activity that contributes to realizing a product. "]
[null,"Process data","Product data that pertains to a process."]
[null,"Process definition","Any information that defines a process that contributes to realizing a product."]
[null,"Process definition dataset","A dataset that contains process definition."]
[null,"Product","An item intended for a customer."]
["PMI","Product and Manufacturing Information","The annotations in a 3D model that support various lifecycle activities."]
[null,"Product Characteristic","A tolerance or specification applied to a part feature or product that requires verification."]
[null,"Product data","Data that pertains to the product lifecycle."]
["PDM","Product Data Management","A capability that interrelates product data."]
[null,"Product Data Management Activities","Activities that interrelate product data."]
[null,"Product Definition","Any information that defines the physical or functional characteristics of a product, to ensure design intent."]
[null,"Product Definition Archive","An information system that stores record copies (44 U.S.C. 3301) of product definition for their long-term archive and retrieval."]
[null,"Product Definition Authorization","The record of transmittal and supporting procedures that authorize product definition for a lifecycle activity."]
[null,"Product Definition Baseline","See baseline."]
["PDD","Product Definition Dataset","A dataset that contains product definition.","[Y14.41-2019, Product definition data set] A collection of one or more data file(s) that discloses, directly or by reference, by means of presentation (e.g., graphic or textual), representation (e.g., semantics or machine readable), or combinations of both, the physical or functional requirements of an item."]
[null,"Product Lifecycle","A series of stages through which a product passes during its lifetime."]
[null,"Product Lifecycle Data","See product data."]
["PLM","Product Lifecycle Management","A business strategy that enables an organization to manage the product lifecycle."]
[null,"Product Structure","A hierarchical list of items that constitute a product."]
[null,"Promotion","A behavior of PLM that transitions an artifact to the next state."]
[null,"Quality Activities","Activities involved in manufacturing verification, testing, inspection, and product acceptance."]
["QIF","Quality Information Framework","An ANSI standard for computer-interpretable quality information."]
[null,"Representation",null,"[ASME Y14.47 - 2019, Representation] The manner in which information is stored for interpretation by a machine."]
[null,"Requirement, Customer","A requirement that address a customer's expectations for the functionality, performance, and quality of a product being developed."]
[null,"Requirement, Inspection","See Product Characteristic"]
[null,"Requirement, Product","A requirement that address a product's purpose, its features, functionalities, and behavior."]
[null,"Semantic PMI","PMI that associates to digital elements."]
[null,"Service Activities","Activity involved in servicing products."]
[null,"Source of Truth","The single authoritative source that contains the original information item."]
[null,"Source","An artifact that is transformed into a derivative."]
[null,"System","An arrangement of elements that exhibits behavior not present in its elements."]
[null,"Systems Engineering Activities","Activities for system engineering of systems."]
["TDP","Technical Data Package","A version-controlled, authenticated computer file sent between supply chain participants that contains a dataset, manifest, and instructions."]
[null,"Topic","In the MBE Maturity Index, an activity within a category that contains facets and can be assessed for future state."]
[null,"Traceability","The ability to traverse the digital thread."]
[null,"Trusted","Regarded with confidence by a consumer, and concurrently being certified, authorized, and authenticated."]
[null,"Trusted Data","See trusted and data."]
[null,"Unambiguous","Resolves to the intended interpretation."]
[null,"Validated","Assured to satisfy intent."]
[null,"Validation","An activity that assures that a product satisfies intent."]
[null,"Verification","An activity that assures that a product satisfies requirements."]
[null,"Verified","Assured to satisfy requirements."]
[]
[{"$f":"'MBE Maturity Index'!C170","v":" NSC-614-3432 Dated March/2021 Unclassified Unlimited Release (UUR).  "}]

{"sheet":"Assessment Charts","index":3,"n_rows":125,"n_cols":1,"rows_kept":125,"cut":false,"hidden":false,"merged":[]}
["Model-Based Enterprise"]
[]
[]
[]
[]
[]
[]
[]
[]
[]
[]
[]
[]
[]
[]
[]
[]
[]
[]
[]
[{"$f":"'Score Summary'!A9","v":"C1: Design Activities"}]
[]
[]
[]
[]
[]
[]
[]
[]
[]
[]
[]
[]
[]
[]
[]
[]
[]
[]
[]
[]
[{"$f":"'Score Summary'!A18","v":"C2: Product Data Management Activities"}]
[]
[]
[]
[]
[]
[]
[]
[]
[]
[]
[]
[]
[]
[]
[]
[]
[]
[]
[]
[]
[{"$f":"'Score Summary'!A27","v":"C3: Manufacturing Activities"}]
[]
[]
[]
[]
[]
[]
[]
[]
[]
[]
[]
[]
[]
[]
[]
[]
[]
[]
[]
[]
[{"$f":"'Score Summary'!A36","v":"C4: Quality Activities "}]
[]
[]
[]
[]
[]
[]
[]
[]
[]
[]
[]
[]
[]
[]
[]
[]
[]
[]
[]
[]
[{"$f":"'Score Summary'!A45","v":"C5: Enterprise Enabling Activities"}]
[]
[]
[]
[]
[]
[]
[]
[]
[]
[]
[]
[]
[]
[]
[]
[]
[]
[]
[]
[{"$f":"'MBE Maturity Index'!C170","v":" NSC-614-3432 Dated March/2021 Unclassified Unlimited Release (UUR).  "}]

{"sheet":"Peer Comments","index":4,"n_rows":1031,"n_cols":9,"rows_kept":1031,"cut":false,"hidden":false,"merged":[[0,7,0,8]]}
["Peer Reviewer:","[peer reviewers name]",null,null,null,null,null,"MBE Maturity Index Task Group "]
["Comment ID","Comment","Worksheet","Cell in Index\n(e.g., C1; T3; F1; L5)","Source","Date",null,"Response","Date"]
[{"$f":"ROW()-3","v":0},"Example: Add definitions to make a stronger distinction between a 3D Model and a MBD Model; Add term: \"Model, MBD\" and definition \"See MBD and Model\"","MBE Lexicon","Several uses of MBD Model","KCNSC",20210331,null,"Approved; Added to MBE Lexicon for next release of Index.",20210518]
[{"$f":"ROW()-3","v":1}]
[2]
[3]
[4]
[5]
[6]
[7]
[8]
[9]
[10]
[11]
[12]
[13]
[14]
[15]
[16]
[17]
[18]
[19]
[20]
[21]
[22]
[23]
[24]
[25]
[26]
[27]
[28]
[29]
[30]
[31]
[32]
[33]
[34]
[35]
[36]
[37]
[38]
[39]
[40]
[41]
[42]
[43]
[44]
[45]
[46]
[47]
[48]
[49]
[50]
[51]
[52]
[53]
[54]
[55]
[56]
[57]
[58]
[59]
[60]
[61]
[62]
[63]
[64]
[{"$f":"ROW()-3","v":65}]
[66]
[67]
[68]
[69]
[70]
[71]
[72]
[73]
[74]
[75]
[76]
[77]
[78]
[79]
[80]
[81]
[82]
[83]
[84]
[85]
[86]
[87]
[88]
[89]
[90]
[91]
[92]
[93]
[94]
[95]
[96]
[97]
[98]
[99]
[100]
[101]
[102]
[103]
[104]
[105]
[106]
[107]
[108]
[109]
[110]
[111]
[112]
[113]
[114]
[115]
[116]
[117]
[118]
[119]
[120]
[121]
[122]
[123]
[124]
[125]
[126]
[127]
[128]
[{"$f":"ROW()-3","v":129}]
[130]
[131]
[132]
[133]
[134]
[135]
[136]
[137]
[138]
[139]
[140]
[141]
[142]
[143]
[144]
[145]
[146]
[147]
[148]
[149]
[150]
[151]
[152]
[153]
[154]
[155]
[156]
[157]
[158]
[159]
[160]
[161]
[162]
[163]
[164]
[165]
[166]
[167]
[168]
[169]
[170]
[171]
[172]
[173]
[174]
[175]
[176]
[177]
[178]
[179]
[180]
[181]
[182]
[183]
[184]
[185]
[186]
[187]
[188]
[189]
[190]
[191]
[192]
[{"$f":"ROW()-3","v":193}]
[194]
[195]
[196]
[197]
[198]
[199]
[200]
[201]
[202]
[203]
[204]
[205]
[206]
[207]
[208]
[209]
[210]
[211]
[212]
[213]
[214]
[215]
[216]
[217]
[218]
[219]
[220]
[221]
[222]
[223]
[224]
[225]
[226]
[227]
[228]
[229]
[230]
[231]
[232]
[233]
[234]
[235]
[236]
[237]
[238]
[239]
[240]
[241]
[242]
[243]
[244]
[245]
[246]
[247]
[248]
[249]
[250]
[251]
[252]
[253]
[254]
[255]
[256]
[{"$f":"ROW()-3","v":257}]
[258]
[259]
[260]
[261]
[262]
[263]
[264]
[265]
[266]
[267]
[268]
[269]
[270]
[271]
[272]
[273]
[274]
[275]
[276]
[277]
[278]
[279]
[280]
[281]
[282]
[283]
[284]
[285]
[286]
[287]
[288]
[289]
[290]
[291]
[292]
[293]
[294]
[295]
[296]
[297]
[298]
[299]
[300]
[301]
[302]
[303]
[304]
[305]
[306]
[307]
[308]
[309]
[310]
[311]
[312]
[313]
[314]
[315]
[316]
[317]
[318]
[319]
[320]
[{"$f":"ROW()-3","v":321}]
[322]
[323]
[324]
[325]
[326]
[327]
[328]
[329]
[330]
[331]
[332]
[333]
[334]
[335]
[336]
[337]
[338]
[339]
[340]
[341]
[342]
[343]
[344]
[345]
[346]
[347]
[348]
[349]
[350]
[351]
[352]
[353]
[354]
[355]
[356]
[357]
[358]
[359]
[360]
[361]
[362]
[363]
[364]
[365]
[366]
[367]
[368]
[369]
[370]
[371]
[372]
[373]
[374]
[375]
[376]
[377]
[378]
[379]
[380]
[381]
[382]
[383]
[384]
[{"$f":"ROW()-3","v":385}]
[386]
[387]
[388]
[389]
[390]
[391]
[392]
[393]
[394]
[395]
[396]
[397]
[398]
[399]
[400]
[401]
[402]
[403]
[404]
[405]
[406]
[407]
[408]
[409]
[410]
[411]
[412]
[413]
[414]
[415]
[416]
[417]
[418]
[419]
[420]
[421]
[422]
[423]
[424]
[425]
[426]
[427]
[428]
[429]
[430]
[431]
[432]
[433]
[434]
[435]
[436]
[437]
[438]
[439]
[440]
[441]
[442]
[443]
[444]
[445]
[446]
[447]
[448]
[{"$f":"ROW()-3","v":449}]
[450]
[451]
[452]
[453]
[454]
[455]
[456]
[457]
[458]
[459]
[460]
[461]
[462]
[463]
[464]
[465]
[466]
[467]
[468]
[469]
[470]
[471]
[472]
[473]
[474]
[475]
[476]
[477]
[478]
[479]
[480]
[481]
[482]
[483]
[484]
[485]
[486]
[487]
[488]
[489]
[490]
[491]
[492]
[493]
[494]
[495]
[496]
[497]
[498]
[499]
[500]
[501]
[502]
[503]
[504]
[505]
[506]
[507]
[508]
[509]
[510]
[511]
[512]
[{"$f":"ROW()-3","v":513}]
[514]
[515]
[516]
[517]
[518]
[519]
[520]
[521]
[522]
[523]
[524]
[525]
[526]
[527]
[528]
[529]
[530]
[531]
[532]
[533]
[534]
[535]
[536]
[537]
[538]
[539]
[540]
[541]
[542]
[543]
[544]
[545]
[546]
[547]
[548]
[549]
[550]
[551]
[552]
[553]
[554]
[555]
[556]
[557]
[558]
[559]
[560]
[561]
[562]
[563]
[564]
[565]
[566]
[567]
[568]
[569]
[570]
[571]
[572]
[573]
[574]
[575]
[576]
[{"$f":"ROW()-3","v":577}]
[578]
[579]
[580]
[581]
[582]
[583]
[584]
[585]
[586]
[587]
[588]
[589]
[590]
[591]
[592]
[593]
[594]
[595]
[596]
[597]
[598]
[599]
[600]
[601]
[602]
[603]
[604]
[605]
[606]
[607]
[608]
[609]
[610]
[611]
[612]
[613]
[614]
[615]
[616]
[617]
[618]
[619]
[620]
[621]
[622]
[623]
[624]
[625]
[626]
[627]
[628]
[629]
[630]
[631]
[632]
[633]
[634]
[635]
[636]
[637]
[638]
[639]
[640]
[{"$f":"ROW()-3","v":641}]
[642]
[643]
[644]
[645]
[646]
[647]
[648]
[649]
[650]
[651]
[652]
[653]
[654]
[655]
[656]
[657]
[658]
[659]
[660]
[661]
[662]
[663]
[664]
[665]
[666]
[667]
[668]
[669]
[670]
[671]
[672]
[673]
[674]
[675]
[676]
[677]
[678]
[679]
[680]
[681]
[682]
[683]
[684]
[685]
[686]
[687]
[688]
[689]
[690]
[691]
[692]
[693]
[694]
[695]
[696]
[697]
[698]
[699]
[700]
[701]
[702]
[703]
[704]
[{"$f":"ROW()-3","v":705}]
[706]
[707]
[708]
[709]
[710]
[711]
[712]
[713]
[714]
[715]
[716]
[717]
[718]
[719]
[720]
[721]
[722]
[723]
[724]
[725]
[726]
[727]
[728]
[729]
[730]
[731]
[732]
[733]
[734]
[735]
[736]
[737]
[738]
[739]
[740]
[741]
[742]
[743]
[744]
[745]
[746]
[747]
[748]
[749]
[750]
[751]
[752]
[753]
[754]
[755]
[756]
[757]
[758]
[759]
[760]
[761]
[762]
[763]
[764]
[765]
[766]
[767]
[768]
[{"$f":"ROW()-3","v":769}]
[770]
[771]
[772]
[773]
[774]
[775]
[776]
[777]
[778]
[779]
[780]
[781]
[782]
[783]
[784]
[785]
[786]
[787]
[788]
[789]
[790]
[791]
[792]
[793]
[794]
[795]
[796]
[797]
[798]
[799]
[800]
[801]
[802]
[803]
[804]
[805]
[806]
[807]
[808]
[809]
[810]
[811]
[812]
[813]
[814]
[815]
[816]
[817]
[818]
[819]
[820]
[821]
[822]
[823]
[824]
[825]
[826]
[827]
[828]
[829]
[830]
[831]
[832]
[{"$f":"ROW()-3","v":833}]
[834]
[835]
[836]
[837]
[838]
[839]
[840]
[841]
[842]
[843]
[844]
[845]
[846]
[847]
[848]
[849]
[850]
[851]
[852]
[853]
[854]
[855]
[856]
[857]
[858]
[859]
[860]
[861]
[862]
[863]
[864]
[865]
[866]
[867]
[868]
[869]
[870]
[871]
[872]
[873]
[874]
[875]
[876]
[877]
[878]
[879]
[880]
[881]
[882]
[883]
[884]
[885]
[886]
[887]
[888]
[889]
[890]
[891]
[892]
[893]
[894]
[895]
[896]
[{"$f":"ROW()-3","v":897}]
[898]
[899]
[900]
[901]
[902]
[903]
[904]
[905]
[906]
[907]
[908]
[909]
[910]
[911]
[912]
[913]
[914]
[915]
[916]
[917]
[918]
[919]
[920]
[921]
[922]
[923]
[924]
[925]
[926]
[927]
[928]
[929]
[930]
[931]
[932]
[933]
[934]
[935]
[936]
[937]
[938]
[939]
[940]
[941]
[942]
[943]
[944]
[945]
[946]
[947]
[948]
[949]
[950]
[951]
[952]
[953]
[954]
[955]
[956]
[957]
[958]
[959]
[960]
[{"$f":"ROW()-3","v":961}]
[962]
[963]
[964]
[965]
[966]
[967]
[968]
[969]
[970]
[971]
[972]
[973]
[974]
[975]
[976]
[977]
[978]
[979]
[980]
[981]
[982]
[983]
[984]
[985]
[986]
[987]
[988]
[989]
[990]
[991]
[992]
[993]
[994]
[995]
[996]
[997]
[998]
[999]
[1000]
[1001]
[1002]
[1003]
[1004]
[1005]
[1006]
[1007]
[1008]
[1009]
[1010]
[1011]
[1012]
[1013]
[1014]
[1015]
[1016]
[1017]
[1018]
[1019]
[1020]
[1021]
[1022]
[1023]
[1024]
[{"$f":"ROW()-3","v":1025}]
[{"$f":"ROW()-3","v":1026}]
[{"$f":"ROW()-3","v":1027}]
[{"$f":"ROW()-3","v":1028}]

{"sheet":"Score Summary","index":5,"n_rows":170,"n_cols":22,"rows_kept":170,"cut":false,"hidden":false,"merged":[[0,19,0,21]]}
["Do Not Modify - Used for Radar Charts",null,null,null,null,null,null,null,null,null,"Score Summary by Facet",null,null,null,null,null,null,null,null,"Score Gaps"]
["MBE","Category",null,"Max Scale","Target","Capability","Readiness","Adoption",null,null,"MBE Category",null,null,null,"Capability","Readiness","Adoption","Target",null,"C-R","R-A","T-A"]
[null,{"$f":"'MBE Maturity Index'!A7","v":"C1: Design Activities"},null,6,{"$f":"'MBE Maturity Index'!S7","v":0},{"$f":"'MBE Maturity Index'!P7","v":0},{"$f":"'MBE Maturity Index'!Q7","v":0},{"$f":"'MBE Maturity Index'!R7","v":0},null,null,null,{"$f":"'MBE Maturity Index'!A7","v":"C1: Design Activities"},null,null,{"$f":"F3","v":0},0,0,{"$f":"E3","v":0},null,{"$f":"O3-P3","v":0},{"$f":"P3-Q3","v":0},{"$f":"R3-Q3","v":0}]
[null,{"$f":"'MBE Maturity Index'!A40","v":"C2: Product Data Management Activities"},null,6,{"$f":"'MBE Maturity Index'!S40","v":0},{"$f":"'MBE Maturity Index'!P40","v":0},{"$f":"'MBE Maturity Index'!Q40","v":0},{"$f":"'MBE Maturity Index'!R40","v":0},null,null,null,{"$f":"'MBE Maturity Index'!A40","v":"C2: Product Data Management Activities"},null,null,0,0,0,0,null,{"$f":"O4-P4","v":0},{"$f":"P4-Q4","v":0},{"$f":"R4-Q4","v":0}]
[null,{"$f":"'MBE Maturity Index'!A72","v":"C3: Manufacturing Activities"},null,6,{"$f":"'MBE Maturity Index'!S72","v":0},{"$f":"'MBE Maturity Index'!P72","v":0},{"$f":"'MBE Maturity Index'!Q72","v":0},{"$f":"'MBE Maturity Index'!R72","v":0},null,null,null,{"$f":"'MBE Maturity Index'!A72","v":"C3: Manufacturing Activities"},null,null,0,0,0,0,null,0,0,0]
[null,{"$f":"'MBE Maturity Index'!A106","v":"C4: Quality Activities "},null,6,{"$f":"'MBE Maturity Index'!S106","v":0},{"$f":"'MBE Maturity Index'!P106","v":0},{"$f":"'MBE Maturity Index'!Q106","v":0},{"$f":"'MBE Maturity Index'!R106","v":0},null,null,null,{"$f":"$B$6","v":"C4: Quality Activities "},null,null,0,0,0,0,null,0,0,0]
[null,{"$f":"'MBE Maturity Index'!A137","v":"C5: Enterprise Enabling Activities"},null,6,{"$f":"'MBE Maturity Index'!S137","v":0},{"$f":"'MBE Maturity Index'!P137","v":0},{"$f":"'MBE Maturity Index'!Q137","v":0},{"$f":"'MBE Maturity Index'!R137","v":0},null,null,null,{"$f":"$B$7","v":"C5: Enterprise Enabling Activities"},null,null,0,0,0,0,null,0,0,0]
[]
[{"$f":"B3","v":"C1: Design Activities"},null,null,"Max Scale","Target","Capability","Readiness","Adoption",null,null,{"$f":"L3","v":"C1: Design Activities"},null,null,null,"Capability","Readiness","Adoption","Target",null,"C-R","R-A","T-A"]
[null,{"$f":"'MBE Maturity Index'!B8","v":"T1: Product Authority"},null,6,{"$f":"'MBE Maturity Index'!S8","v":0},{"$f":"'MBE Maturity Index'!P8","v":0},{"$f":"'MBE Maturity Index'!Q8","v":0},{"$f":"'MBE Maturity Index'!R8","v":0},null,null,null,{"$f":"B10","v":"T1: Product Authority"},null,null,{"$f":"'MBE Maturity Index'!P8","v":0},{"$f":"'MBE Maturity Index'!Q8","v":0},{"$f":"'MBE Maturity Index'!R8","v":0},{"$f":"'MBE Maturity Index'!S8","v":0},null,{"$f":"O10-P10","v":0},{"$f":"P10-Q10","v":0},{"$f":"R10-Q10","v":0}]
[null,{"$f":"'MBE Maturity Index'!B10","v":"T2: Product Requirements\n"},null,6,{"$f":"'MBE Maturity Index'!S10","v":0},{"$f":"'MBE Maturity Index'!P10","v":0},{"$f":"'MBE Maturity Index'!Q10","v":0},{"$f":"'MBE Maturity Index'!R10","v":0},null,null,null,null,{"$f":"'MBE Maturity Index'!C9","v":"F1: Authorized Definition"},null,{"$f":"'MBE Maturity Index'!P9","v":0},{"$f":"'MBE Maturity Index'!Q9","v":0},{"$f":"'MBE Maturity Index'!R9","v":0},{"$f":"'MBE Maturity Index'!S9","v":0},null,0,0,0]
[null,{"$f":"'MBE Maturity Index'!B13","v":"T3: Product Definition Representation\n"},null,6,{"$f":"'MBE Maturity Index'!S13","v":0},{"$f":"'MBE Maturity Index'!P13","v":0},{"$f":"'MBE Maturity Index'!Q13","v":0},{"$f":"'MBE Maturity Index'!R13","v":0},null,null,null,{"$f":"B11","v":"T2: Product Requirements\n"},null,null,{"$f":"'MBE Maturity Index'!P10","v":0},{"$f":"'MBE Maturity Index'!Q10","v":0},{"$f":"'MBE Maturity Index'!R10","v":0},{"$f":"'MBE Maturity Index'!S10","v":0},null,0,0,0]
[null,{"$f":"'MBE Maturity Index'!B18","v":"T4: Model Quality & Certification"},null,6,{"$f":"'MBE Maturity Index'!S18","v":0},{"$f":"'MBE Maturity Index'!P18","v":0},{"$f":"'MBE Maturity Index'!Q18","v":0},{"$f":"'MBE Maturity Index'!R18","v":0},null,null,null,null,{"$f":"'MBE Maturity Index'!C11","v":"F1: Form"},null,{"$f":"'MBE Maturity Index'!P11","v":0},{"$f":"'MBE Maturity Index'!Q11","v":0},{"$f":"'MBE Maturity Index'!R11","v":0},{"$f":"'MBE Maturity Index'!S11","v":0},null,0,0,0]
[null,{"$f":"'MBE Maturity Index'!B22","v":"T5: Model Derivatives\n"},null,6,{"$f":"'MBE Maturity Index'!S22","v":0},{"$f":"'MBE Maturity Index'!P22","v":0},{"$f":"'MBE Maturity Index'!Q22","v":0},{"$f":"'MBE Maturity Index'!R22","v":0},null,null,null,null,{"$f":"'MBE Maturity Index'!C12","v":"F2: Associativity"},null,{"$f":"'MBE Maturity Index'!P12","v":0},{"$f":"'MBE Maturity Index'!Q12","v":0},{"$f":"'MBE Maturity Index'!R12","v":0},{"$f":"'MBE Maturity Index'!S12","v":0},null,0,0,0]
[null,{"$f":"'MBE Maturity Index'!B29","v":"T6: ECAD/MCAD Collaboration\n"},null,6,{"$f":"'MBE Maturity Index'!S29","v":0},{"$f":"'MBE Maturity Index'!P29","v":0},{"$f":"'MBE Maturity Index'!Q29","v":0},{"$f":"'MBE Maturity Index'!R29","v":0},null,null,null,{"$f":"B12","v":"T3: Product Definition Representation\n"},null,null,{"$f":"'MBE Maturity Index'!P13","v":0},{"$f":"'MBE Maturity Index'!Q13","v":0},{"$f":"'MBE Maturity Index'!R13","v":0},{"$f":"'MBE Maturity Index'!S13","v":0},null,{"$f":"O15-P15","v":0},{"$f":"P15-Q15","v":0},{"$f":"R15-Q15","v":0}]
[null,{"$f":"'MBE Maturity Index'!B33","v":"T7: Design Analysis & Simulation "},null,6,{"$f":"'MBE Maturity Index'!S33","v":0},{"$f":"'MBE Maturity Index'!P33","v":0},{"$f":"'MBE Maturity Index'!Q33","v":0},{"$f":"'MBE Maturity Index'!R33","v":0},null,null,null,null,{"$f":"'MBE Maturity Index'!C14","v":"F1: Shape Definition"},null,{"$f":"'MBE Maturity Index'!P14","v":0},{"$f":"'MBE Maturity Index'!Q14","v":0},{"$f":"'MBE Maturity Index'!R14","v":0},{"$f":"'MBE Maturity Index'!S14","v":0},null,0,0,0]
[null,null,null,null,null,null,null,null,null,null,null,null,{"$f":"'MBE Maturity Index'!C15","v":"F2: Non-Shape Information (Annotations, Notes)"},null,{"$f":"'MBE Maturity Index'!P15","v":0},{"$f":"'MBE Maturity Index'!Q15","v":0},{"$f":"'MBE Maturity Index'!R15","v":0},{"$f":"'MBE Maturity Index'!S15","v":0},null,{"$f":"O17-P17","v":0},{"$f":"P17-Q17","v":0},{"$f":"R17-Q17","v":0}]
[{"$f":"B4","v":"C2: Product Data Management Activities"},null,null,"Max Scale","Target","Capability","Readiness","Adoption",null,null,null,null,{"$f":"'MBE Maturity Index'!C16","v":"F3: Metadata"},null,{"$f":"'MBE Maturity Index'!P16","v":0},{"$f":"'MBE Maturity Index'!Q16","v":0},{"$f":"'MBE Maturity Index'!R16","v":0},{"$f":"'MBE Maturity Index'!S16","v":0},null,0,0,0]
[null,{"$f":"'MBE Maturity Index'!B41","v":"T1: Product Definition Authority"},null,6,{"$f":"'MBE Maturity Index'!S41","v":0},{"$f":"'MBE Maturity Index'!P41","v":0},{"$f":"'MBE Maturity Index'!Q41","v":0},{"$f":"'MBE Maturity Index'!R41","v":0},null,null,null,null,{"$f":"'MBE Maturity Index'!C17","v":"F4: Presentation Views"},null,{"$f":"'MBE Maturity Index'!P17","v":0},{"$f":"'MBE Maturity Index'!Q17","v":0},{"$f":"'MBE Maturity Index'!R17","v":0},{"$f":"'MBE Maturity Index'!S17","v":0},null,0,0,0]
[null,{"$f":"'MBE Maturity Index'!B44","v":"T2: Data Management Approach"},null,6,{"$f":"'MBE Maturity Index'!S44","v":0},{"$f":"'MBE Maturity Index'!P44","v":0},{"$f":"'MBE Maturity Index'!Q44","v":0},{"$f":"'MBE Maturity Index'!R44","v":0},null,null,null,{"$f":"B13","v":"T4: Model Quality & Certification"},null,null,{"$f":"'MBE Maturity Index'!P18","v":0},{"$f":"'MBE Maturity Index'!Q18","v":0},{"$f":"'MBE Maturity Index'!R18","v":0},{"$f":"'MBE Maturity Index'!S18","v":0},null,0,0,0]
[null,{"$f":"'MBE Maturity Index'!B51","v":"T3: Product Definition Management"},null,6,{"$f":"'MBE Maturity Index'!S51","v":0},{"$f":"'MBE Maturity Index'!P51","v":0},{"$f":"'MBE Maturity Index'!Q51","v":0},{"$f":"'MBE Maturity Index'!R51","v":0},null,null,null,null,{"$f":"'MBE Maturity Index'!C19","v":"F1: Verification of"},null,{"$f":"'MBE Maturity Index'!P19","v":0},{"$f":"'MBE Maturity Index'!Q19","v":0},{"$f":"'MBE Maturity Index'!R19","v":0},{"$f":"'MBE Maturity Index'!S19","v":0},null,0,0,0]
[null,{"$f":"'MBE Maturity Index'!B55","v":"T4: Process Data Management"},null,6,{"$f":"'MBE Maturity Index'!S55","v":0},{"$f":"'MBE Maturity Index'!P55","v":0},{"$f":"'MBE Maturity Index'!Q55","v":0},{"$f":"'MBE Maturity Index'!R55","v":0},null,null,null,null,{"$f":"'MBE Maturity Index'!C20","v":"F2: Automation"},null,{"$f":"'MBE Maturity Index'!P20","v":0},{"$f":"'MBE Maturity Index'!Q20","v":0},{"$f":"'MBE Maturity Index'!R20","v":0},{"$f":"'MBE Maturity Index'!S20","v":0},null,0,0,0]
[null,{"$f":"'MBE Maturity Index'!B59","v":"T5: Bill of Materials (BOM) Management"},null,6,{"$f":"'MBE Maturity Index'!S59","v":0},{"$f":"'MBE Maturity Index'!P59","v":0},{"$f":"'MBE Maturity Index'!Q59","v":0},{"$f":"'MBE Maturity Index'!R59","v":0},null,null,null,null,{"$f":"'MBE Maturity Index'!C21","v":"F3: Certification"},null,{"$f":"'MBE Maturity Index'!P21","v":0},{"$f":"'MBE Maturity Index'!Q21","v":0},{"$f":"'MBE Maturity Index'!R21","v":0},{"$f":"'MBE Maturity Index'!S21","v":0},null,0,0,0]
[null,{"$f":"'MBE Maturity Index'!B63","v":"T6: Common Digital Libraries"},null,6,{"$f":"'MBE Maturity Index'!S63","v":0},{"$f":"'MBE Maturity Index'!P63","v":0},{"$f":"'MBE Maturity Index'!Q63","v":0},{"$f":"'MBE Maturity Index'!R63","v":0},null,null,null,{"$f":"B14","v":"T5: Model Derivatives\n"},null,null,{"$f":"'MBE Maturity Index'!P22","v":0},{"$f":"'MBE Maturity Index'!Q22","v":0},{"$f":"'MBE Maturity Index'!R22","v":0},{"$f":"'MBE Maturity Index'!S22","v":0},null,0,0,0]
[null,{"$f":"'MBE Maturity Index'!B68","v":"T7: Data Records"},null,6,{"$f":"'MBE Maturity Index'!S68","v":0},{"$f":"'MBE Maturity Index'!P68","v":0},{"$f":"'MBE Maturity Index'!Q68","v":0},{"$f":"'MBE Maturity Index'!R68","v":0},null,null,null,null,{"$f":"'MBE Maturity Index'!C23","v":"F1: Content"},null,{"$f":"'MBE Maturity Index'!P23","v":0},{"$f":"'MBE Maturity Index'!Q23","v":0},{"$f":"'MBE Maturity Index'!R23","v":0},{"$f":"'MBE Maturity Index'!S23","v":0},null,0,0,0]
[null,null,null,null,null,null,null,null,null,null,null,null,{"$f":"'MBE Maturity Index'!C24","v":"F2: Authoring Automation"},null,{"$f":"'MBE Maturity Index'!P24","v":0},{"$f":"'MBE Maturity Index'!Q24","v":0},{"$f":"'MBE Maturity Index'!R24","v":0},{"$f":"'MBE Maturity Index'!S24","v":0},null,0,0,0]
[{"$f":"B5","v":"C3: Manufacturing Activities"},null,null,"Max Scale","Target","Capability","Readiness","Adoption",null,null,null,null,{"$f":"'MBE Maturity Index'!C25","v":"F3: Validation to & Certificates"},null,{"$f":"'MBE Maturity Index'!P25","v":0},{"$f":"'MBE Maturity Index'!Q25","v":0},{"$f":"'MBE Maturity Index'!R25","v":0},{"$f":"'MBE Maturity Index'!S25","v":0},null,0,0,0]
[null,{"$f":"'MBE Maturity Index'!B73","v":"T1: Manufacturing Process Definition"},null,6,{"$f":"'MBE Maturity Index'!S73","v":0},{"$f":"'MBE Maturity Index'!P73","v":0},{"$f":"'MBE Maturity Index'!Q73","v":0},{"$f":"'MBE Maturity Index'!R73","v":0},null,null,null,null,{"$f":"'MBE Maturity Index'!C26","v":"F4: Pedigree"},null,{"$f":"'MBE Maturity Index'!P26","v":0},{"$f":"'MBE Maturity Index'!Q26","v":0},{"$f":"'MBE Maturity Index'!R26","v":0},{"$f":"'MBE Maturity Index'!S26","v":0},null,0,0,0]
[null,{"$f":"'MBE Maturity Index'!B78","v":"T2: Tooling Definition & Realization\n"},null,6,{"$f":"'MBE Maturity Index'!S78","v":0},{"$f":"'MBE Maturity Index'!P78","v":0},{"$f":"'MBE Maturity Index'!Q78","v":0},{"$f":"'MBE Maturity Index'!R78","v":0},null,null,null,null,{"$f":"'MBE Maturity Index'!C27","v":"F5: Managed"},null,{"$f":"'MBE Maturity Index'!P27","v":0},{"$f":"'MBE Maturity Index'!Q27","v":0},{"$f":"'MBE Maturity Index'!R27","v":0},{"$f":"'MBE Maturity Index'!S27","v":0},null,0,0,0]
[null,{"$f":"'MBE Maturity Index'!B82","v":"T3: Manufacturing Process Instructions "},null,6,{"$f":"'MBE Maturity Index'!S82","v":0},{"$f":"'MBE Maturity Index'!P82","v":0},{"$f":"'MBE Maturity Index'!Q82","v":0},{"$f":"'MBE Maturity Index'!R82","v":0},null,null,null,null,{"$f":"'MBE Maturity Index'!C28","v":"F6: Viewables"},null,{"$f":"'MBE Maturity Index'!P28","v":0},{"$f":"'MBE Maturity Index'!Q28","v":0},{"$f":"'MBE Maturity Index'!R28","v":0},{"$f":"'MBE Maturity Index'!S28","v":0},null,0,0,0]
[null,{"$f":"'MBE Maturity Index'!B86","v":"T4: Manufacturing Code Generation"},null,6,{"$f":"'MBE Maturity Index'!S86","v":0},{"$f":"'MBE Maturity Index'!P86","v":0},{"$f":"'MBE Maturity Index'!Q86","v":0},{"$f":"'MBE Maturity Index'!R86","v":0},null,null,null,{"$f":"B15","v":"T6: ECAD/MCAD Collaboration\n"},null,null,{"$f":"'MBE Maturity Index'!P29","v":0},{"$f":"'MBE Maturity Index'!Q29","v":0},{"$f":"'MBE Maturity Index'!R29","v":0},{"$f":"'MBE Maturity Index'!S29","v":0},null,0,0,0]
[null,{"$f":"'MBE Maturity Index'!B91","v":"T5: Manufacturing Analysis & Simulation"},null,6,{"$f":"'MBE Maturity Index'!S91","v":0},{"$f":"'MBE Maturity Index'!P91","v":0},{"$f":"'MBE Maturity Index'!Q91","v":0},{"$f":"'MBE Maturity Index'!R91","v":0},null,null,null,null,{"$f":"'MBE Maturity Index'!C30","v":"F1: Condition"},null,{"$f":"'MBE Maturity Index'!P30","v":0},{"$f":"'MBE Maturity Index'!Q30","v":0},{"$f":"'MBE Maturity Index'!R30","v":0},{"$f":"'MBE Maturity Index'!S30","v":0},null,0,0,0]
[null,{"$f":"'MBE Maturity Index'!B97","v":"T6: Manufacturing Operations "},null,6,{"$f":"'MBE Maturity Index'!S97","v":0},{"$f":"'MBE Maturity Index'!P97","v":0},{"$f":"'MBE Maturity Index'!Q97","v":0},{"$f":"'MBE Maturity Index'!R97","v":0},null,null,null,null,{"$f":"'MBE Maturity Index'!C31","v":"F2: Mode"},null,{"$f":"'MBE Maturity Index'!P31","v":0},{"$f":"'MBE Maturity Index'!Q31","v":0},{"$f":"'MBE Maturity Index'!R31","v":0},{"$f":"'MBE Maturity Index'!S31","v":0},null,0,0,0]
[null,{"$f":"'MBE Maturity Index'!B100","v":"T7: Product Procurement "},null,6,{"$f":"'MBE Maturity Index'!S100","v":0},{"$f":"'MBE Maturity Index'!P100","v":0},{"$f":"'MBE Maturity Index'!Q100","v":0},{"$f":"'MBE Maturity Index'!R100","v":0},null,null,null,null,{"$f":"'MBE Maturity Index'!C32","v":"F3: Commonality"},null,{"$f":"'MBE Maturity Index'!P32","v":0},{"$f":"'MBE Maturity Index'!Q32","v":0},{"$f":"'MBE Maturity Index'!R32","v":0},{"$f":"'MBE Maturity Index'!S32","v":0},null,0,0,0]
[null,null,null,null,null,null,null,null,null,null,null,{"$f":"B16","v":"T7: Design Analysis & Simulation "},null,null,{"$f":"'MBE Maturity Index'!P33","v":0},{"$f":"'MBE Maturity Index'!Q33","v":0},{"$f":"'MBE Maturity Index'!R33","v":0},{"$f":"'MBE Maturity Index'!S33","v":0},null,0,0,0]
[{"$f":"B6","v":"C4: Quality Activities "},null,null,"Max Scale","Target","Capability","Readiness","Adoption",null,null,null,null,{"$f":"'MBE Maturity Index'!C34","v":"F1: Product Definition Source"},null,{"$f":"'MBE Maturity Index'!P34","v":0},{"$f":"'MBE Maturity Index'!Q34","v":0},{"$f":"'MBE Maturity Index'!R34","v":0},{"$f":"'MBE Maturity Index'!S34","v":0},null,0,0,0]
[null,{"$f":"'MBE Maturity Index'!B107","v":"T1: Quality Process Definition"},null,6,{"$f":"'MBE Maturity Index'!S107","v":0},{"$f":"'MBE Maturity Index'!P107","v":0},{"$f":"'MBE Maturity Index'!Q107","v":0},{"$f":"'MBE Maturity Index'!R107","v":0},null,null,null,null,{"$f":"'MBE Maturity Index'!C35","v":"F2: Analysis Model Authoring Automation"},null,{"$f":"'MBE Maturity Index'!P35","v":0},{"$f":"'MBE Maturity Index'!Q35","v":0},{"$f":"'MBE Maturity Index'!R35","v":0},{"$f":"'MBE Maturity Index'!S35","v":0},null,0,0,0]
[null,{"$f":"'MBE Maturity Index'!B112","v":"T2: Quality Product Characteristics & BoC"},null,6,{"$f":"'MBE Maturity Index'!S112","v":0},{"$f":"'MBE Maturity Index'!P112","v":0},{"$f":"'MBE Maturity Index'!Q112","v":0},{"$f":"'MBE Maturity Index'!R112","v":0},null,null,null,null,{"$f":"'MBE Maturity Index'!C36","v":"F3: Managed"},null,{"$f":"'MBE Maturity Index'!P36","v":0},{"$f":"'MBE Maturity Index'!Q36","v":0},{"$f":"'MBE Maturity Index'!R36","v":0},{"$f":"'MBE Maturity Index'!S36","v":0},null,0,0,0]
[null,{"$f":"'MBE Maturity Index'!B116","v":"T3: Quality Process Instructions"},null,6,{"$f":"'MBE Maturity Index'!S116","v":0},{"$f":"'MBE Maturity Index'!P116","v":0},{"$f":"'MBE Maturity Index'!Q116","v":0},{"$f":"'MBE Maturity Index'!R116","v":0},null,null,null,null,{"$f":"'MBE Maturity Index'!C37","v":"F4: Influence"},null,{"$f":"'MBE Maturity Index'!P37","v":0},{"$f":"'MBE Maturity Index'!Q37","v":0},{"$f":"'MBE Maturity Index'!R37","v":0},{"$f":"'MBE Maturity Index'!S37","v":0},null,0,0,0]
[null,{"$f":"'MBE Maturity Index'!B120","v":"T4: Inspection Code Generation"},null,6,{"$f":"'MBE Maturity Index'!S120","v":0},{"$f":"'MBE Maturity Index'!P120","v":0},{"$f":"'MBE Maturity Index'!Q120","v":0},{"$f":"'MBE Maturity Index'!R120","v":0},null,null,null,null,{"$f":"'MBE Maturity Index'!C38","v":"F5: Traceability"},null,{"$f":"'MBE Maturity Index'!P38","v":0},{"$f":"'MBE Maturity Index'!Q38","v":0},{"$f":"'MBE Maturity Index'!R38","v":0},{"$f":"'MBE Maturity Index'!S38","v":0},null,0,0,0]
[null,{"$f":"'MBE Maturity Index'!B125","v":"T5: Quality Results Management & Analysis"},null,6,{"$f":"'MBE Maturity Index'!S125","v":0},{"$f":"'MBE Maturity Index'!P125","v":0},{"$f":"'MBE Maturity Index'!Q125","v":0},{"$f":"'MBE Maturity Index'!R125","v":0}]
[null,{"$f":"'MBE Maturity Index'!B129","v":"T6: Test Equipment Definition & Realization"},null,6,{"$f":"'MBE Maturity Index'!S129","v":0},{"$f":"'MBE Maturity Index'!P129","v":0},{"$f":"'MBE Maturity Index'!Q129","v":0},{"$f":"'MBE Maturity Index'!R129","v":0},null,null,{"$f":"L4","v":"C2: Product Data Management Activities"},null,null,null,"Capability","Readiness","Adoption","Target",null,"C-R","R-A","T-A"]
[null,{"$f":"'MBE Maturity Index'!B133","v":"T7: Inspection Operations"},null,6,{"$f":"'MBE Maturity Index'!S133","v":0},{"$f":"'MBE Maturity Index'!P133","v":0},{"$f":"'MBE Maturity Index'!Q133","v":0},{"$f":"'MBE Maturity Index'!R133","v":0},null,null,null,{"$f":"B19","v":"T1: Product Definition Authority"},null,null,{"$f":"'MBE Maturity Index'!P41","v":0},{"$f":"'MBE Maturity Index'!Q41","v":0},{"$f":"'MBE Maturity Index'!R41","v":0},{"$f":"'MBE Maturity Index'!S41","v":0},null,{"$f":"O43-P43","v":0},{"$f":"P43-Q43","v":0},{"$f":"R43-Q43","v":0}]
[null,null,null,null,null,null,null,null,null,null,null,null,{"$f":"'MBE Maturity Index'!C42","v":"F1: Part-Centricity "},null,{"$f":"'MBE Maturity Index'!P42","v":0},{"$f":"'MBE Maturity Index'!Q42","v":0},{"$f":"'MBE Maturity Index'!R42","v":0},{"$f":"'MBE Maturity Index'!S42","v":0},null,0,0,0]
[{"$f":"B7","v":"C5: Enterprise Enabling Activities"},null,null,"Max Scale","Target","Capability","Readiness","Adoption",null,null,null,null,{"$f":"'MBE Maturity Index'!C43","v":"F2: Associativity"},null,{"$f":"'MBE Maturity Index'!P43","v":0},{"$f":"'MBE Maturity Index'!Q43","v":0},{"$f":"'MBE Maturity Index'!R43","v":0},{"$f":"'MBE Maturity Index'!S43","v":0},null,0,0,0]
[null,{"$f":"'MBE Maturity Index'!B138","v":"T1: Product Work Collaboration"},null,6,{"$f":"'MBE Maturity Index'!S138","v":0},{"$f":"'MBE Maturity Index'!P138","v":0},{"$f":"'MBE Maturity Index'!Q138","v":0},{"$f":"'MBE Maturity Index'!R138","v":0},null,null,null,{"$f":"B20","v":"T2: Data Management Approach"},null,null,{"$f":"'MBE Maturity Index'!P44","v":0},{"$f":"'MBE Maturity Index'!Q44","v":0},{"$f":"'MBE Maturity Index'!R44","v":0},{"$f":"'MBE Maturity Index'!S44","v":0},null,0,0,0]
[null,{"$f":"'MBE Maturity Index'!B141","v":"T2: MBE Governance"},null,6,{"$f":"'MBE Maturity Index'!S141","v":0},{"$f":"'MBE Maturity Index'!P141","v":0},{"$f":"'MBE Maturity Index'!Q141","v":0},{"$f":"'MBE Maturity Index'!R141","v":0},null,null,null,null,{"$f":"'MBE Maturity Index'!C45","v":"F1: Content Management Scope"},null,{"$f":"'MBE Maturity Index'!P45","v":0},{"$f":"'MBE Maturity Index'!Q45","v":0},{"$f":"'MBE Maturity Index'!R45","v":0},{"$f":"'MBE Maturity Index'!S45","v":0},null,0,0,0]
[null,{"$f":"'MBE Maturity Index'!B144","v":"T3: MBE People"},null,6,{"$f":"'MBE Maturity Index'!S144","v":0},{"$f":"'MBE Maturity Index'!P144","v":0},{"$f":"'MBE Maturity Index'!Q144","v":0},{"$f":"'MBE Maturity Index'!R144","v":0},null,null,null,null,{"$f":"'MBE Maturity Index'!C46","v":"F2: Change Management"},null,{"$f":"'MBE Maturity Index'!P46","v":0},{"$f":"'MBE Maturity Index'!Q46","v":0},{"$f":"'MBE Maturity Index'!R46","v":0},{"$f":"'MBE Maturity Index'!S46","v":0},null,0,0,0]
[null,{"$f":"'MBE Maturity Index'!B149","v":"T4: MBE Process"},null,6,{"$f":"'MBE Maturity Index'!S149","v":0},{"$f":"'MBE Maturity Index'!P149","v":0},{"$f":"'MBE Maturity Index'!Q149","v":0},{"$f":"'MBE Maturity Index'!R149","v":0},null,null,null,null,{"$f":"'MBE Maturity Index'!C47","v":"F3: Product Structure Management"},null,{"$f":"'MBE Maturity Index'!P47","v":0},{"$f":"'MBE Maturity Index'!Q47","v":0},{"$f":"'MBE Maturity Index'!R47","v":0},{"$f":"'MBE Maturity Index'!S47","v":0},null,0,0,0]
[null,{"$f":"'MBE Maturity Index'!B155","v":"T5: MBE Technology"},null,6,{"$f":"'MBE Maturity Index'!S155","v":0},{"$f":"'MBE Maturity Index'!P155","v":0},{"$f":"'MBE Maturity Index'!Q155","v":0},{"$f":"'MBE Maturity Index'!R155","v":0},null,null,null,null,{"$f":"'MBE Maturity Index'!C48","v":"F4: User Interface Applications"},null,{"$f":"'MBE Maturity Index'!P48","v":0},{"$f":"'MBE Maturity Index'!Q48","v":0},{"$f":"'MBE Maturity Index'!R48","v":0},{"$f":"'MBE Maturity Index'!S48","v":0},null,0,0,0]
[null,{"$f":"'MBE Maturity Index'!B161","v":"T6: MBE Information Assurance"},null,6,{"$f":"'MBE Maturity Index'!S161","v":0},{"$f":"'MBE Maturity Index'!P161","v":0},{"$f":"'MBE Maturity Index'!Q161","v":0},{"$f":"'MBE Maturity Index'!R161","v":0},null,null,null,null,{"$f":"'MBE Maturity Index'!C49","v":"F5: Governance"},null,{"$f":"'MBE Maturity Index'!P49","v":0},{"$f":"'MBE Maturity Index'!Q49","v":0},{"$f":"'MBE Maturity Index'!R49","v":0},{"$f":"'MBE Maturity Index'!S49","v":0},null,0,0,0]
[null,{"$f":"'MBE Maturity Index'!B166","v":"T7: MBE Financials"},null,6,{"$f":"'MBE Maturity Index'!S166","v":0},{"$f":"'MBE Maturity Index'!P166","v":0},{"$f":"'MBE Maturity Index'!Q166","v":0},{"$f":"'MBE Maturity Index'!R166","v":0},null,null,null,null,{"$f":"'MBE Maturity Index'!C50","v":"F6: Trusted Data"},null,{"$f":"'MBE Maturity Index'!P50","v":0},{"$f":"'MBE Maturity Index'!Q50","v":0},{"$f":"'MBE Maturity Index'!R50","v":0},{"$f":"'MBE Maturity Index'!S50","v":0},null,0,0,0]
[null,null,null,null,null,null,null,null,null,null,null,{"$f":"B21","v":"T3: Product Definition Management"},null,null,{"$f":"'MBE Maturity Index'!P51","v":0},{"$f":"'MBE Maturity Index'!Q51","v":0},{"$f":"'MBE Maturity Index'!R51","v":0},{"$f":"'MBE Maturity Index'!S51","v":0},null,0,0,0]
["Do Not Modify - Used for Radar Charts",null,null,null,null,null,null,null,null,null,null,null,{"$f":"'MBE Maturity Index'!C52","v":"F1: Definition Set"},null,{"$f":"'MBE Maturity Index'!P52","v":0},{"$f":"'MBE Maturity Index'!Q52","v":0},{"$f":"'MBE Maturity Index'!R52","v":0},{"$f":"'MBE Maturity Index'!S52","v":0},null,0,0,0]
[null,null,null,null,null,null,null,null,null,null,null,null,{"$f":"'MBE Maturity Index'!C53","v":"F2: Supplemental Data Reference"},null,{"$f":"'MBE Maturity Index'!P53","v":0},{"$f":"'MBE Maturity Index'!Q53","v":0},{"$f":"'MBE Maturity Index'!R53","v":0},{"$f":"'MBE Maturity Index'!S53","v":0},null,0,0,0]
[{"$f":"'MBE Maturity Index'!C170","v":" NSC-614-3432 Dated March/2021 Unclassified Unlimited Release (UUR).  "},null,null,null,null,null,null,null,null,null,null,null,{"$f":"'MBE Maturity Index'!C54","v":"F3: Product Definition Authorization"},null,{"$f":"'MBE Maturity Index'!P54","v":0},{"$f":"'MBE Maturity Index'!Q54","v":0},{"$f":"'MBE Maturity Index'!R54","v":0},{"$f":"'MBE Maturity Index'!S54","v":0},null,0,0,0]
[null,null,null,null,null,null,null,null,null,null,null,{"$f":"B22","v":"T4: Process Data Management"},null,null,{"$f":"'MBE Maturity Index'!P55","v":0},{"$f":"'MBE Maturity Index'!Q55","v":0},{"$f":"'MBE Maturity Index'!R55","v":0},{"$f":"'MBE Maturity Index'!S55","v":0},null,0,0,0]
[null,null,null,null,null,null,null,null,null,null,null,null,{"$f":"'MBE Maturity Index'!C56","v":"F1: Product Definition Association"},null,{"$f":"'MBE Maturity Index'!P56","v":0},{"$f":"'MBE Maturity Index'!Q56","v":0},{"$f":"'MBE Maturity Index'!R56","v":0},{"$f":"'MBE Maturity Index'!S56","v":0},null,0,0,0]
[null,null,null,null,null,null,null,null,null,null,null,null,{"$f":"'MBE Maturity Index'!C57","v":"F2: Definition Set"},null,{"$f":"'MBE Maturity Index'!P57","v":0},{"$f":"'MBE Maturity Index'!Q57","v":0},{"$f":"'MBE Maturity Index'!R57","v":0},{"$f":"'MBE Maturity Index'!S57","v":0},null,0,0,0]
[null,null,null,null,null,null,null,null,null,null,null,null,{"$f":"'MBE Maturity Index'!C58","v":"F3: Supplemental Data Reference"},null,{"$f":"'MBE Maturity Index'!P58","v":0},{"$f":"'MBE Maturity Index'!Q58","v":0},{"$f":"'MBE Maturity Index'!R58","v":0},{"$f":"'MBE Maturity Index'!S58","v":0},null,0,0,0]
[null,null,null,null,null,null,null,null,null,null,null,{"$f":"B23","v":"T5: Bill of Materials (BOM) Management"},null,null,{"$f":"'MBE Maturity Index'!P59","v":0},{"$f":"'MBE Maturity Index'!Q59","v":0},{"$f":"'MBE Maturity Index'!R59","v":0},{"$f":"'MBE Maturity Index'!S59","v":0},null,0,0,0]
[null,null,null,null,null,null,null,null,null,null,null,null,{"$f":"'MBE Maturity Index'!C60","v":"F1: Authoring"},null,{"$f":"'MBE Maturity Index'!P60","v":0},{"$f":"'MBE Maturity Index'!Q60","v":0},{"$f":"'MBE Maturity Index'!R60","v":0},{"$f":"'MBE Maturity Index'!S60","v":0},null,0,0,0]
[null,null,null,null,null,null,null,null,null,null,null,null,{"$f":"'MBE Maturity Index'!C61","v":"F2: Managed"},null,{"$f":"'MBE Maturity Index'!P61","v":0},{"$f":"'MBE Maturity Index'!Q61","v":0},{"$f":"'MBE Maturity Index'!R61","v":0},{"$f":"'MBE Maturity Index'!S61","v":0},null,0,0,0]
[null,null,null,null,null,null,null,null,null,null,null,null,{"$f":"'MBE Maturity Index'!C62","v":"F3: Traceability"},null,{"$f":"'MBE Maturity Index'!P62","v":0},{"$f":"'MBE Maturity Index'!Q62","v":0},{"$f":"'MBE Maturity Index'!R62","v":0},{"$f":"'MBE Maturity Index'!S62","v":0},null,0,0,0]
[null,null,null,null,null,null,null,null,null,null,null,{"$f":"B24","v":"T6: Common Digital Libraries"},null,null,{"$f":"'MBE Maturity Index'!P63","v":0},{"$f":"'MBE Maturity Index'!Q63","v":0},{"$f":"'MBE Maturity Index'!R63","v":0},{"$f":"'MBE Maturity Index'!S63","v":0},null,0,0,0]
[null,null,null,null,null,null,null,null,null,null,null,null,{"$f":"'MBE Maturity Index'!C64","v":"F1: Extent"},null,{"$f":"'MBE Maturity Index'!P64","v":0},{"$f":"'MBE Maturity Index'!Q64","v":0},{"$f":"'MBE Maturity Index'!R64","v":0},{"$f":"'MBE Maturity Index'!S64","v":0},null,0,0,0]
[null,null,null,null,null,null,null,null,null,null,null,null,{"$f":"'MBE Maturity Index'!C65","v":"F2: Governance"},null,{"$f":"'MBE Maturity Index'!P65","v":0},{"$f":"'MBE Maturity Index'!Q65","v":0},{"$f":"'MBE Maturity Index'!R65","v":0},{"$f":"'MBE Maturity Index'!S65","v":0},null,0,0,0]
[null,null,null,null,null,null,null,null,null,null,null,null,{"$f":"'MBE Maturity Index'!C66","v":"F3: Managed"},null,{"$f":"'MBE Maturity Index'!P66","v":0},{"$f":"'MBE Maturity Index'!Q66","v":0},{"$f":"'MBE Maturity Index'!R66","v":0},{"$f":"'MBE Maturity Index'!S66","v":0},null,0,0,0]
[null,null,null,null,null,null,null,null,null,null,null,null,{"$f":"'MBE Maturity Index'!C67","v":"F4: Access"},null,{"$f":"'MBE Maturity Index'!P67","v":0},{"$f":"'MBE Maturity Index'!Q67","v":0},{"$f":"'MBE Maturity Index'!R67","v":0},{"$f":"'MBE Maturity Index'!S67","v":0},null,0,0,0]
[null,null,null,null,null,null,null,null,null,null,null,{"$f":"B25","v":"T7: Data Records"},null,null,{"$f":"'MBE Maturity Index'!P68","v":0},{"$f":"'MBE Maturity Index'!Q68","v":0},{"$f":"'MBE Maturity Index'!R68","v":0},{"$f":"'MBE Maturity Index'!S68","v":0},null,0,0,0]
[null,null,null,null,null,null,null,null,null,null,null,null,{"$f":"'MBE Maturity Index'!C69","v":"F1: Long Term Archival & Retrieval (LOTAR)"},null,{"$f":"'MBE Maturity Index'!P69","v":0},{"$f":"'MBE Maturity Index'!Q69","v":0},{"$f":"'MBE Maturity Index'!R69","v":0},{"$f":"'MBE Maturity Index'!S69","v":0},null,0,0,0]
[null,null,null,null,null,null,null,null,null,null,null,null,{"$f":"'MBE Maturity Index'!C70","v":"F2: Data Package"},null,{"$f":"'MBE Maturity Index'!P70","v":0},{"$f":"'MBE Maturity Index'!Q70","v":0},{"$f":"'MBE Maturity Index'!R70","v":0},{"$f":"'MBE Maturity Index'!S70","v":0},null,0,0,0]
[]
[null,null,null,null,null,null,null,null,null,null,{"$f":"L5","v":"C3: Manufacturing Activities"},null,null,null,"Capability","Readiness","Adoption","Target",null,"C-R","R-A","T-A"]
[null,null,null,null,null,null,null,null,null,null,null,{"$f":"B28","v":"T1: Manufacturing Process Definition"},null,null,{"$f":"'MBE Maturity Index'!P73","v":0},{"$f":"'MBE Maturity Index'!Q73","v":0},{"$f":"'MBE Maturity Index'!R73","v":0},{"$f":"'MBE Maturity Index'!S73","v":0},null,{"$f":"O75-P75","v":0},{"$f":"P75-Q75","v":0},{"$f":"R75-Q75","v":0}]
[null,null,null,null,null,null,null,null,null,null,null,null,{"$f":"'MBE Maturity Index'!C74","v":"F1: Product Definition Source"},null,{"$f":"'MBE Maturity Index'!P74","v":0},{"$f":"'MBE Maturity Index'!Q74","v":0},{"$f":"'MBE Maturity Index'!R74","v":0},{"$f":"'MBE Maturity Index'!S74","v":0},null,0,0,0]
[null,null,null,null,null,null,null,null,null,null,null,null,{"$f":"'MBE Maturity Index'!C75","v":"F2: Method"},null,{"$f":"'MBE Maturity Index'!P75","v":0},{"$f":"'MBE Maturity Index'!Q75","v":0},{"$f":"'MBE Maturity Index'!R75","v":0},{"$f":"'MBE Maturity Index'!S75","v":0},null,0,0,0]
[null,null,null,null,null,null,null,null,null,null,null,null,{"$f":"'MBE Maturity Index'!C76","v":"F3: Managed"},null,{"$f":"'MBE Maturity Index'!P76","v":0},{"$f":"'MBE Maturity Index'!Q76","v":0},{"$f":"'MBE Maturity Index'!R76","v":0},{"$f":"'MBE Maturity Index'!S76","v":0},null,0,0,0]
[null,null,null,null,null,null,null,null,null,null,null,null,{"$f":"'MBE Maturity Index'!C77","v":"F4: Response to Change"},null,{"$f":"'MBE Maturity Index'!P77","v":0},{"$f":"'MBE Maturity Index'!Q77","v":0},{"$f":"'MBE Maturity Index'!R77","v":0},{"$f":"'MBE Maturity Index'!S77","v":0},null,0,0,0]
[null,null,null,null,null,null,null,null,null,null,null,{"$f":"B29","v":"T2: Tooling Definition & Realization\n"},null,null,{"$f":"'MBE Maturity Index'!P78","v":0},{"$f":"'MBE Maturity Index'!Q78","v":0},{"$f":"'MBE Maturity Index'!R78","v":0},{"$f":"'MBE Maturity Index'!S78","v":0},null,0,0,0]
[null,null,null,null,null,null,null,null,null,null,null,null,{"$f":"'MBE Maturity Index'!C79","v":"F1: Basis"},null,{"$f":"'MBE Maturity Index'!P79","v":0},{"$f":"'MBE Maturity Index'!Q79","v":0},{"$f":"'MBE Maturity Index'!R79","v":0},{"$f":"'MBE Maturity Index'!S79","v":0},null,0,0,0]
[null,null,null,null,null,null,null,null,null,null,null,null,{"$f":"'MBE Maturity Index'!C80","v":"F2: Managed"},null,{"$f":"'MBE Maturity Index'!P80","v":0},{"$f":"'MBE Maturity Index'!Q80","v":0},{"$f":"'MBE Maturity Index'!R80","v":0},{"$f":"'MBE Maturity Index'!S80","v":0},null,0,0,0]
[null,null,null,null,null,null,null,null,null,null,null,null,{"$f":"'MBE Maturity Index'!C81","v":"F3: Traceability"},null,{"$f":"'MBE Maturity Index'!P81","v":0},{"$f":"'MBE Maturity Index'!Q81","v":0},{"$f":"'MBE Maturity Index'!R81","v":0},{"$f":"'MBE Maturity Index'!S81","v":0},null,0,0,0]
[null,null,null,null,null,null,null,null,null,null,null,{"$f":"B30","v":"T3: Manufacturing Process Instructions "},null,null,{"$f":"'MBE Maturity Index'!P82","v":0},{"$f":"'MBE Maturity Index'!Q82","v":0},{"$f":"'MBE Maturity Index'!R82","v":0},{"$f":"'MBE Maturity Index'!S82","v":0},null,0,0,0]
[null,null,null,null,null,null,null,null,null,null,null,null,{"$f":"'MBE Maturity Index'!C83","v":"F1: Method"},null,{"$f":"'MBE Maturity Index'!P83","v":0},{"$f":"'MBE Maturity Index'!Q83","v":0},{"$f":"'MBE Maturity Index'!R83","v":0},{"$f":"'MBE Maturity Index'!S83","v":0},null,0,0,0]
[null,null,null,null,null,null,null,null,null,null,null,null,{"$f":"'MBE Maturity Index'!C84","v":"F2: Managed"},null,{"$f":"'MBE Maturity Index'!P84","v":0},{"$f":"'MBE Maturity Index'!Q84","v":0},{"$f":"'MBE Maturity Index'!R84","v":0},{"$f":"'MBE Maturity Index'!S84","v":0},null,0,0,0]
[null,null,null,null,null,null,null,null,null,null,null,null,{"$f":"'MBE Maturity Index'!C85","v":"F3: Response to Change"},null,{"$f":"'MBE Maturity Index'!P85","v":0},{"$f":"'MBE Maturity Index'!Q85","v":0},{"$f":"'MBE Maturity Index'!R85","v":0},{"$f":"'MBE Maturity Index'!S85","v":0},null,0,0,0]
[null,null,null,null,null,null,null,null,null,null,null,{"$f":"B31","v":"T4: Manufacturing Code Generation"},null,null,{"$f":"'MBE Maturity Index'!P86","v":0},{"$f":"'MBE Maturity Index'!Q86","v":0},{"$f":"'MBE Maturity Index'!R86","v":0},{"$f":"'MBE Maturity Index'!S86","v":0},null,0,0,0]
[null,null,null,null,null,null,null,null,null,null,null,null,{"$f":"'MBE Maturity Index'!C87","v":"F1: Manufacturing Definition Source "},null,{"$f":"'MBE Maturity Index'!P87","v":0},{"$f":"'MBE Maturity Index'!Q87","v":0},{"$f":"'MBE Maturity Index'!R87","v":0},{"$f":"'MBE Maturity Index'!S87","v":0},null,0,0,0]
[null,null,null,null,null,null,null,null,null,null,null,null,{"$f":"'MBE Maturity Index'!C88","v":"F2: Method"},null,{"$f":"'MBE Maturity Index'!P88","v":0},{"$f":"'MBE Maturity Index'!Q88","v":0},{"$f":"'MBE Maturity Index'!R88","v":0},{"$f":"'MBE Maturity Index'!S88","v":0},null,0,0,0]
[null,null,null,null,null,null,null,null,null,null,null,null,{"$f":"'MBE Maturity Index'!C89","v":"F3: Managed"},null,{"$f":"'MBE Maturity Index'!P89","v":0},{"$f":"'MBE Maturity Index'!Q89","v":0},{"$f":"'MBE Maturity Index'!R89","v":0},{"$f":"'MBE Maturity Index'!S89","v":0},null,0,0,0]
[null,null,null,null,null,null,null,null,null,null,null,null,{"$f":"'MBE Maturity Index'!C90","v":"F4: Response to Change"},null,{"$f":"'MBE Maturity Index'!P90","v":0},{"$f":"'MBE Maturity Index'!Q90","v":0},{"$f":"'MBE Maturity Index'!R90","v":0},{"$f":"'MBE Maturity Index'!S90","v":0},null,0,0,0]
[null,null,null,null,null,null,null,null,null,null,null,{"$f":"B32","v":"T5: Manufacturing Analysis & Simulation"},null,null,{"$f":"'MBE Maturity Index'!P91","v":0},{"$f":"'MBE Maturity Index'!Q91","v":0},{"$f":"'MBE Maturity Index'!R91","v":0},{"$f":"'MBE Maturity Index'!S91","v":0},null,0,0,0]
[null,null,null,null,null,null,null,null,null,null,null,null,{"$f":"'MBE Maturity Index'!C92","v":"F1: Basis Model Source"},null,{"$f":"'MBE Maturity Index'!P92","v":0},{"$f":"'MBE Maturity Index'!Q92","v":0},{"$f":"'MBE Maturity Index'!R92","v":0},{"$f":"'MBE Maturity Index'!S92","v":0},null,0,0,0]
[null,null,null,null,null,null,null,null,null,null,null,null,{"$f":"'MBE Maturity Index'!C93","v":"F2: Analysis Model Authoring Automation"},null,{"$f":"'MBE Maturity Index'!P93","v":0},{"$f":"'MBE Maturity Index'!Q93","v":0},{"$f":"'MBE Maturity Index'!R93","v":0},{"$f":"'MBE Maturity Index'!S93","v":0},null,0,0,0]
[null,null,null,null,null,null,null,null,null,null,null,null,{"$f":"'MBE Maturity Index'!C94","v":"F3: Managed"},null,{"$f":"'MBE Maturity Index'!P94","v":0},{"$f":"'MBE Maturity Index'!Q94","v":0},{"$f":"'MBE Maturity Index'!R94","v":0},{"$f":"'MBE Maturity Index'!S94","v":0},null,0,0,0]
[null,null,null,null,null,null,null,null,null,null,null,null,{"$f":"'MBE Maturity Index'!C95","v":"F4: Influence"},null,{"$f":"'MBE Maturity Index'!P95","v":0},{"$f":"'MBE Maturity Index'!Q95","v":0},{"$f":"'MBE Maturity Index'!R95","v":0},{"$f":"'MBE Maturity Index'!S95","v":0},null,0,0,0]
[null,null,null,null,null,null,null,null,null,null,null,null,{"$f":"'MBE Maturity Index'!C96","v":"F5: Traceability"},null,{"$f":"'MBE Maturity Index'!P96","v":0},{"$f":"'MBE Maturity Index'!Q96","v":0},{"$f":"'MBE Maturity Index'!R96","v":0},{"$f":"'MBE Maturity Index'!S96","v":0},null,0,0,0]
[null,null,null,null,null,null,null,null,null,null,null,{"$f":"B33","v":"T6: Manufacturing Operations "},null,null,{"$f":"'MBE Maturity Index'!P97","v":0},{"$f":"'MBE Maturity Index'!Q97","v":0},{"$f":"'MBE Maturity Index'!R97","v":0},{"$f":"'MBE Maturity Index'!S97","v":0},null,0,0,0]
[null,null,null,null,null,null,null,null,null,null,null,null,{"$f":"'MBE Maturity Index'!C98","v":"F1: Product Definition Reference"},null,{"$f":"'MBE Maturity Index'!P98","v":0},{"$f":"'MBE Maturity Index'!Q98","v":0},{"$f":"'MBE Maturity Index'!R98","v":0},{"$f":"'MBE Maturity Index'!S98","v":0},null,0,0,0]
[null,null,null,null,null,null,null,null,null,null,null,null,{"$f":"'MBE Maturity Index'!C99","v":"F2: Presentation"},null,{"$f":"'MBE Maturity Index'!P99","v":0},{"$f":"'MBE Maturity Index'!Q99","v":0},{"$f":"'MBE Maturity Index'!R99","v":0},{"$f":"'MBE Maturity Index'!S99","v":0},null,0,0,0]
[null,null,null,null,null,null,null,null,null,null,null,{"$f":"B34","v":"T7: Product Procurement "},null,null,{"$f":"'MBE Maturity Index'!P100","v":0},{"$f":"'MBE Maturity Index'!Q100","v":0},{"$f":"'MBE Maturity Index'!R100","v":0},{"$f":"'MBE Maturity Index'!S100","v":0},null,0,0,0]
[null,null,null,null,null,null,null,null,null,null,null,null,{"$f":"'MBE Maturity Index'!C101","v":"F1: Content"},null,{"$f":"'MBE Maturity Index'!P101","v":0},{"$f":"'MBE Maturity Index'!Q101","v":0},{"$f":"'MBE Maturity Index'!R101","v":0},{"$f":"'MBE Maturity Index'!S101","v":0},null,0,0,0]
[null,null,null,null,null,null,null,null,null,null,null,null,{"$f":"'MBE Maturity Index'!C102","v":"F2: Managed"},null,{"$f":"'MBE Maturity Index'!P102","v":0},{"$f":"'MBE Maturity Index'!Q102","v":0},{"$f":"'MBE Maturity Index'!R102","v":0},{"$f":"'MBE Maturity Index'!S102","v":0},null,0,0,0]
[null,null,null,null,null,null,null,null,null,null,null,null,{"$f":"'MBE Maturity Index'!C103","v":"F3: Response to Change"},null,{"$f":"'MBE Maturity Index'!P103","v":0},{"$f":"'MBE Maturity Index'!Q103","v":0},{"$f":"'MBE Maturity Index'!R103","v":0},{"$f":"'MBE Maturity Index'!S103","v":0},null,0,0,0]
[null,null,null,null,null,null,null,null,null,null,null,null,{"$f":"'MBE Maturity Index'!C104","v":"F4: Delivery"},null,{"$f":"'MBE Maturity Index'!P104","v":0},{"$f":"'MBE Maturity Index'!Q104","v":0},{"$f":"'MBE Maturity Index'!R104","v":0},{"$f":"'MBE Maturity Index'!S104","v":0},null,0,0,0]
[]
[null,null,null,null,null,null,null,null,null,null,{"$f":"L6","v":"C4: Quality Activities "},null,null,null,"Capability","Readiness","Adoption","Target",null,"C-R","R-A","T-A"]
[null,null,null,null,null,null,null,null,null,null,null,{"$f":"B37","v":"T1: Quality Process Definition"},null,null,{"$f":"'MBE Maturity Index'!P107","v":0},{"$f":"'MBE Maturity Index'!Q107","v":0},{"$f":"'MBE Maturity Index'!R107","v":0},{"$f":"'MBE Maturity Index'!S107","v":0},null,{"$f":"O109-P109","v":0},{"$f":"P109-Q109","v":0},{"$f":"R109-Q109","v":0}]
[null,null,null,null,null,null,null,null,null,null,null,null,{"$f":"'MBE Maturity Index'!C108","v":"F1: Product Definition Source"},null,{"$f":"'MBE Maturity Index'!P108","v":0},{"$f":"'MBE Maturity Index'!Q108","v":0},{"$f":"'MBE Maturity Index'!R108","v":0},{"$f":"'MBE Maturity Index'!S108","v":0},null,0,0,0]
[null,null,null,null,null,null,null,null,null,null,null,null,{"$f":"'MBE Maturity Index'!C109","v":"F2: Method"},null,{"$f":"'MBE Maturity Index'!P109","v":0},{"$f":"'MBE Maturity Index'!Q109","v":0},{"$f":"'MBE Maturity Index'!R109","v":0},{"$f":"'MBE Maturity Index'!S109","v":0},null,0,0,0]
[null,null,null,null,null,null,null,null,null,null,null,null,{"$f":"'MBE Maturity Index'!C110","v":"F3: Managed"},null,{"$f":"'MBE Maturity Index'!P110","v":0},{"$f":"'MBE Maturity Index'!Q110","v":0},{"$f":"'MBE Maturity Index'!R110","v":0},{"$f":"'MBE Maturity Index'!S110","v":0},null,0,0,0]
[null,null,null,null,null,null,null,null,null,null,null,null,{"$f":"'MBE Maturity Index'!C111","v":"F4: Response to Change"},null,{"$f":"'MBE Maturity Index'!P111","v":0},{"$f":"'MBE Maturity Index'!Q111","v":0},{"$f":"'MBE Maturity Index'!R111","v":0},{"$f":"'MBE Maturity Index'!S111","v":0},null,0,0,0]
[null,null,null,null,null,null,null,null,null,null,null,{"$f":"B38","v":"T2: Quality Product Characteristics & BoC"},null,null,{"$f":"'MBE Maturity Index'!P112","v":0},{"$f":"'MBE Maturity Index'!Q112","v":0},{"$f":"'MBE Maturity Index'!R112","v":0},{"$f":"'MBE Maturity Index'!S112","v":0},null,0,0,0]
[null,null,null,null,null,null,null,null,null,null,null,null,{"$f":"'MBE Maturity Index'!C113","v":"F1: Method"},null,{"$f":"'MBE Maturity Index'!P113","v":0},{"$f":"'MBE Maturity Index'!Q113","v":0},{"$f":"'MBE Maturity Index'!R113","v":0},{"$f":"'MBE Maturity Index'!S113","v":0},null,0,0,0]
[null,null,null,null,null,null,null,null,null,null,null,null,{"$f":"'MBE Maturity Index'!C114","v":"F2: Managed"},null,{"$f":"'MBE Maturity Index'!P114","v":0},{"$f":"'MBE Maturity Index'!Q114","v":0},{"$f":"'MBE Maturity Index'!R114","v":0},{"$f":"'MBE Maturity Index'!S114","v":0},null,0,0,0]
[null,null,null,null,null,null,null,null,null,null,null,null,{"$f":"'MBE Maturity Index'!C115","v":"F3: Traceability"},null,{"$f":"'MBE Maturity Index'!P115","v":0},{"$f":"'MBE Maturity Index'!Q115","v":0},{"$f":"'MBE Maturity Index'!R115","v":0},{"$f":"'MBE Maturity Index'!S115","v":0},null,0,0,0]
[null,null,null,null,null,null,null,null,null,null,null,{"$f":"B39","v":"T3: Quality Process Instructions"},null,null,{"$f":"'MBE Maturity Index'!P116","v":0},{"$f":"'MBE Maturity Index'!Q116","v":0},{"$f":"'MBE Maturity Index'!R116","v":0},{"$f":"'MBE Maturity Index'!S116","v":0},null,0,0,0]
[null,null,null,null,null,null,null,null,null,null,null,null,{"$f":"'MBE Maturity Index'!C117","v":"F1: Method"},null,{"$f":"'MBE Maturity Index'!P117","v":0},{"$f":"'MBE Maturity Index'!Q117","v":0},{"$f":"'MBE Maturity Index'!R117","v":0},{"$f":"'MBE Maturity Index'!S117","v":0},null,0,0,0]
[null,null,null,null,null,null,null,null,null,null,null,null,{"$f":"'MBE Maturity Index'!C118","v":"F2: Managed"},null,{"$f":"'MBE Maturity Index'!P118","v":0},{"$f":"'MBE Maturity Index'!Q118","v":0},{"$f":"'MBE Maturity Index'!R118","v":0},{"$f":"'MBE Maturity Index'!S118","v":0},null,0,0,0]
[null,null,null,null,null,null,null,null,null,null,null,null,{"$f":"'MBE Maturity Index'!C119","v":"F3: Response to Change"},null,{"$f":"'MBE Maturity Index'!P119","v":0},{"$f":"'MBE Maturity Index'!Q119","v":0},{"$f":"'MBE Maturity Index'!R119","v":0},{"$f":"'MBE Maturity Index'!S119","v":0},null,0,0,0]
[null,null,null,null,null,null,null,null,null,null,null,{"$f":"B40","v":"T4: Inspection Code Generation"},null,null,{"$f":"'MBE Maturity Index'!P120","v":0},{"$f":"'MBE Maturity Index'!Q120","v":0},{"$f":"'MBE Maturity Index'!R120","v":0},{"$f":"'MBE Maturity Index'!S120","v":0},null,0,0,0]
[null,null,null,null,null,null,null,null,null,null,null,null,{"$f":"'MBE Maturity Index'!C121","v":"F1: Product Definition Source"},null,{"$f":"'MBE Maturity Index'!P121","v":0},{"$f":"'MBE Maturity Index'!Q121","v":0},{"$f":"'MBE Maturity Index'!R121","v":0},{"$f":"'MBE Maturity Index'!S121","v":0},null,0,0,0]
[null,null,null,null,null,null,null,null,null,null,null,null,{"$f":"'MBE Maturity Index'!C122","v":"F2: Method"},null,{"$f":"'MBE Maturity Index'!P122","v":0},{"$f":"'MBE Maturity Index'!Q122","v":0},{"$f":"'MBE Maturity Index'!R122","v":0},{"$f":"'MBE Maturity Index'!S122","v":0},null,0,0,0]
[null,null,null,null,null,null,null,null,null,null,null,null,{"$f":"'MBE Maturity Index'!C123","v":"F3: Managed"},null,{"$f":"'MBE Maturity Index'!P123","v":0},{"$f":"'MBE Maturity Index'!Q123","v":0},{"$f":"'MBE Maturity Index'!R123","v":0},{"$f":"'MBE Maturity Index'!S123","v":0},null,0,0,0]
[null,null,null,null,null,null,null,null,null,null,null,null,{"$f":"'MBE Maturity Index'!C124","v":"F4: Response to change"},null,{"$f":"'MBE Maturity Index'!P124","v":0},{"$f":"'MBE Maturity Index'!Q124","v":0},{"$f":"'MBE Maturity Index'!R124","v":0},{"$f":"'MBE Maturity Index'!S124","v":0},null,0,0,0]
[null,null,null,null,null,null,null,null,null,null,null,{"$f":"B41","v":"T5: Quality Results Management & Analysis"},null,null,{"$f":"'MBE Maturity Index'!P125","v":0},{"$f":"'MBE Maturity Index'!Q125","v":0},{"$f":"'MBE Maturity Index'!R125","v":0},{"$f":"'MBE Maturity Index'!S125","v":0},null,0,0,0]
[null,null,null,null,null,null,null,null,null,null,null,null,{"$f":"'MBE Maturity Index'!C126","v":"F1: Managed"},null,{"$f":"'MBE Maturity Index'!P126","v":0},{"$f":"'MBE Maturity Index'!Q126","v":0},{"$f":"'MBE Maturity Index'!R126","v":0},{"$f":"'MBE Maturity Index'!S126","v":0},null,0,0,0]
[null,null,null,null,null,null,null,null,null,null,null,null,{"$f":"'MBE Maturity Index'!C127","v":"F2: Traceability (Serialization)"},null,{"$f":"'MBE Maturity Index'!P127","v":0},{"$f":"'MBE Maturity Index'!Q127","v":0},{"$f":"'MBE Maturity Index'!R127","v":0},{"$f":"'MBE Maturity Index'!S127","v":0},null,0,0,0]
[null,null,null,null,null,null,null,null,null,null,null,null,{"$f":"'MBE Maturity Index'!C128","v":"F3: Reporting"},null,{"$f":"'MBE Maturity Index'!P128","v":0},{"$f":"'MBE Maturity Index'!Q128","v":0},{"$f":"'MBE Maturity Index'!R128","v":0},{"$f":"'MBE Maturity Index'!S128","v":0},null,0,0,0]
[null,null,null,null,null,null,null,null,null,null,null,{"$f":"B42","v":"T6: Test Equipment Definition & Realization"},null,null,{"$f":"'MBE Maturity Index'!P129","v":0},{"$f":"'MBE Maturity Index'!Q129","v":0},{"$f":"'MBE Maturity Index'!R129","v":0},{"$f":"'MBE Maturity Index'!S129","v":0},null,0,0,0]
[null,null,null,null,null,null,null,null,null,null,null,null,{"$f":"'MBE Maturity Index'!C130","v":"F1: Basis"},null,{"$f":"'MBE Maturity Index'!P130","v":0},{"$f":"'MBE Maturity Index'!Q130","v":0},{"$f":"'MBE Maturity Index'!R130","v":0},{"$f":"'MBE Maturity Index'!S130","v":0},null,0,0,0]
[null,null,null,null,null,null,null,null,null,null,null,null,{"$f":"'MBE Maturity Index'!C131","v":"F2: Managed"},null,{"$f":"'MBE Maturity Index'!P131","v":0},{"$f":"'MBE Maturity Index'!Q131","v":0},{"$f":"'MBE Maturity Index'!R131","v":0},{"$f":"'MBE Maturity Index'!S131","v":0},null,0,0,0]
[null,null,null,null,null,null,null,null,null,null,null,null,{"$f":"'MBE Maturity Index'!C132","v":"F3: Traceability"},null,{"$f":"'MBE Maturity Index'!P132","v":0},{"$f":"'MBE Maturity Index'!Q132","v":0},{"$f":"'MBE Maturity Index'!R132","v":0},{"$f":"'MBE Maturity Index'!S132","v":0},null,0,0,0]
[null,null,null,null,null,null,null,null,null,null,null,{"$f":"B43","v":"T7: Inspection Operations"},null,null,{"$f":"'MBE Maturity Index'!P133","v":0},{"$f":"'MBE Maturity Index'!Q133","v":0},{"$f":"'MBE Maturity Index'!R133","v":0},{"$f":"'MBE Maturity Index'!S133","v":0},null,0,0,0]
[null,null,null,null,null,null,null,null,null,null,null,null,{"$f":"'MBE Maturity Index'!C134","v":"F1: Product Definition Reference"},null,{"$f":"'MBE Maturity Index'!P134","v":0},{"$f":"'MBE Maturity Index'!Q134","v":0},{"$f":"'MBE Maturity Index'!R134","v":0},{"$f":"'MBE Maturity Index'!S134","v":0},null,0,0,0]
[null,null,null,null,null,null,null,null,null,null,null,null,{"$f":"'MBE Maturity Index'!C135","v":"F2: Presentation"},null,{"$f":"'MBE Maturity Index'!P135","v":0},{"$f":"'MBE Maturity Index'!Q135","v":0},{"$f":"'MBE Maturity Index'!R135","v":0},{"$f":"'MBE Maturity Index'!S135","v":0},null,0,0,0]
[]
[null,null,null,null,null,null,null,null,null,null,{"$f":"L7","v":"C5: Enterprise Enabling Activities"},null,null,null,"Capability","Readiness","Adoption","Target",null,"C-R","R-A","T-A"]
[null,null,null,null,null,null,null,null,null,null,null,{"$f":"B46","v":"T1: Product Work Collaboration"},null,null,{"$f":"'MBE Maturity Index'!P138","v":0},{"$f":"'MBE Maturity Index'!Q138","v":0},{"$f":"'MBE Maturity Index'!R138","v":0},{"$f":"'MBE Maturity Index'!S138","v":0},null,{"$f":"O140-P140","v":0},{"$f":"P140-Q140","v":0},{"$f":"R140-Q140","v":0}]
[null,null,null,null,null,null,null,null,null,null,null,null,{"$f":"'MBE Maturity Index'!C139","v":"F1: Actors"},null,{"$f":"'MBE Maturity Index'!P139","v":0},{"$f":"'MBE Maturity Index'!Q139","v":0},{"$f":"'MBE Maturity Index'!R139","v":0},{"$f":"'MBE Maturity Index'!S139","v":0},null,0,0,0]
[null,null,null,null,null,null,null,null,null,null,null,null,{"$f":"'MBE Maturity Index'!C140","v":"F2:Methods"},null,{"$f":"'MBE Maturity Index'!P140","v":0},{"$f":"'MBE Maturity Index'!Q140","v":0},{"$f":"'MBE Maturity Index'!R140","v":0},{"$f":"'MBE Maturity Index'!S140","v":0},null,0,0,0]
[null,null,null,null,null,null,null,null,null,null,null,{"$f":"B47","v":"T2: MBE Governance"},null,null,{"$f":"'MBE Maturity Index'!P139","v":0},{"$f":"'MBE Maturity Index'!Q139","v":0},{"$f":"'MBE Maturity Index'!R139","v":0},{"$f":"'MBE Maturity Index'!S139","v":0},null,0,0,0]
[null,null,null,null,null,null,null,null,null,null,null,null,{"$f":"'MBE Maturity Index'!C142","v":"F1: Leadership"},null,{"$f":"'MBE Maturity Index'!P142","v":0},{"$f":"'MBE Maturity Index'!Q142","v":0},{"$f":"'MBE Maturity Index'!R142","v":0},{"$f":"'MBE Maturity Index'!S142","v":0},null,0,0,0]
[null,null,null,null,null,null,null,null,null,null,null,null,{"$f":"'MBE Maturity Index'!C143","v":"F2: Structure"},null,{"$f":"'MBE Maturity Index'!P143","v":0},{"$f":"'MBE Maturity Index'!Q143","v":0},{"$f":"'MBE Maturity Index'!R143","v":0},{"$f":"'MBE Maturity Index'!S143","v":0},null,0,0,0]
[null,null,null,null,null,null,null,null,null,null,null,{"$f":"B48","v":"T3: MBE People"},null,null,{"$f":"'MBE Maturity Index'!P140","v":0},{"$f":"'MBE Maturity Index'!Q140","v":0},{"$f":"'MBE Maturity Index'!R140","v":0},{"$f":"'MBE Maturity Index'!S140","v":0},null,0,0,0]
[null,null,null,null,null,null,null,null,null,null,null,null,{"$f":"'MBE Maturity Index'!C145","v":"F1: Training"},null,{"$f":"'MBE Maturity Index'!P145","v":0},{"$f":"'MBE Maturity Index'!Q145","v":0},{"$f":"'MBE Maturity Index'!R145","v":0},{"$f":"'MBE Maturity Index'!S145","v":0},null,0,0,0]
[null,null,null,null,null,null,null,null,null,null,null,null,{"$f":"'MBE Maturity Index'!C146","v":"F2: Support"},null,{"$f":"'MBE Maturity Index'!P146","v":0},{"$f":"'MBE Maturity Index'!Q146","v":0},{"$f":"'MBE Maturity Index'!R146","v":0},{"$f":"'MBE Maturity Index'!S146","v":0},null,0,0,0]
[null,null,null,null,null,null,null,null,null,null,null,null,{"$f":"'MBE Maturity Index'!C147","v":"F3: Certified Roles"},null,{"$f":"'MBE Maturity Index'!P147","v":0},{"$f":"'MBE Maturity Index'!Q147","v":0},{"$f":"'MBE Maturity Index'!R147","v":0},{"$f":"'MBE Maturity Index'!S147","v":0},null,0,0,0]
[null,null,null,null,null,null,null,null,null,null,null,null,{"$f":"'MBE Maturity Index'!C148","v":"F4: Aware"},null,{"$f":"'MBE Maturity Index'!P148","v":0},{"$f":"'MBE Maturity Index'!Q148","v":0},{"$f":"'MBE Maturity Index'!R148","v":0},{"$f":"'MBE Maturity Index'!S148","v":0},null,0,0,0]
[null,null,null,null,null,null,null,null,null,null,null,{"$f":"B49","v":"T4: MBE Process"},null,null,{"$f":"'MBE Maturity Index'!P141","v":0},{"$f":"'MBE Maturity Index'!Q141","v":0},{"$f":"'MBE Maturity Index'!R141","v":0},{"$f":"'MBE Maturity Index'!S141","v":0},null,0,0,0]
[null,null,null,null,null,null,null,null,null,null,null,null,{"$f":"'MBE Maturity Index'!C150","v":"F1: Business Practices"},null,{"$f":"'MBE Maturity Index'!P150","v":0},{"$f":"'MBE Maturity Index'!Q150","v":0},{"$f":"'MBE Maturity Index'!R150","v":0},{"$f":"'MBE Maturity Index'!S150","v":0},null,0,0,0]
[null,null,null,null,null,null,null,null,null,null,null,null,{"$f":"'MBE Maturity Index'!C151","v":"F2: Repeatable (Documented)"},null,{"$f":"'MBE Maturity Index'!P151","v":0},{"$f":"'MBE Maturity Index'!Q151","v":0},{"$f":"'MBE Maturity Index'!R151","v":0},{"$f":"'MBE Maturity Index'!S151","v":0},null,0,0,0]
[null,null,null,null,null,null,null,null,null,null,null,null,{"$f":"'MBE Maturity Index'!C152","v":"F3: Govern"},null,{"$f":"'MBE Maturity Index'!P152","v":0},{"$f":"'MBE Maturity Index'!Q152","v":0},{"$f":"'MBE Maturity Index'!R152","v":0},{"$f":"'MBE Maturity Index'!S152","v":0},null,0,0,0]
[null,null,null,null,null,null,null,null,null,null,null,null,{"$f":"'MBE Maturity Index'!C153","v":"F4: Optimize"},null,{"$f":"'MBE Maturity Index'!P153","v":0},{"$f":"'MBE Maturity Index'!Q153","v":0},{"$f":"'MBE Maturity Index'!R153","v":0},{"$f":"'MBE Maturity Index'!S153","v":0},null,0,0,0]
[null,null,null,null,null,null,null,null,null,null,null,null,{"$f":"'MBE Maturity Index'!C154","v":"F5: Industry Standard"},null,{"$f":"'MBE Maturity Index'!P154","v":0},{"$f":"'MBE Maturity Index'!Q154","v":0},{"$f":"'MBE Maturity Index'!R154","v":0},{"$f":"'MBE Maturity Index'!S154","v":0},null,0,0,0]
[null,null,null,null,null,null,null,null,null,null,null,{"$f":"B50","v":"T5: MBE Technology"},null,null,{"$f":"'MBE Maturity Index'!P142","v":0},{"$f":"'MBE Maturity Index'!Q142","v":0},{"$f":"'MBE Maturity Index'!R142","v":0},{"$f":"'MBE Maturity Index'!S142","v":0},null,0,0,0]
[null,null,null,null,null,null,null,null,null,null,null,null,{"$f":"'MBE Maturity Index'!C156","v":"F1: Standardized"},null,{"$f":"'MBE Maturity Index'!P156","v":0},{"$f":"'MBE Maturity Index'!Q156","v":0},{"$f":"'MBE Maturity Index'!R156","v":0},{"$f":"'MBE Maturity Index'!S156","v":0},null,0,0,0]
[null,null,null,null,null,null,null,null,null,null,null,null,{"$f":"'MBE Maturity Index'!C157","v":"F2: Integrated"},null,{"$f":"'MBE Maturity Index'!P157","v":0},{"$f":"'MBE Maturity Index'!Q157","v":0},{"$f":"'MBE Maturity Index'!R157","v":0},{"$f":"'MBE Maturity Index'!S157","v":0},null,0,0,0]
[null,null,null,null,null,null,null,null,null,null,null,null,{"$f":"'MBE Maturity Index'!C158","v":"F3: Verified"},null,{"$f":"'MBE Maturity Index'!P158","v":0},{"$f":"'MBE Maturity Index'!Q158","v":0},{"$f":"'MBE Maturity Index'!R158","v":0},{"$f":"'MBE Maturity Index'!S158","v":0},null,0,0,0]
[null,null,null,null,null,null,null,null,null,null,null,null,{"$f":"'MBE Maturity Index'!C159","v":"F4: Maintained"},null,{"$f":"'MBE Maturity Index'!P159","v":0},{"$f":"'MBE Maturity Index'!Q159","v":0},{"$f":"'MBE Maturity Index'!R159","v":0},{"$f":"'MBE Maturity Index'!S159","v":0},null,0,0,0]
[null,null,null,null,null,null,null,null,null,null,null,null,{"$f":"'MBE Maturity Index'!C160","v":"F5: Tool Availability"},null,{"$f":"'MBE Maturity Index'!P160","v":0},{"$f":"'MBE Maturity Index'!Q160","v":0},{"$f":"'MBE Maturity Index'!R160","v":0},{"$f":"'MBE Maturity Index'!S160","v":0},null,0,0,0]
[null,null,null,null,null,null,null,null,null,null,null,{"$f":"B51","v":"T6: MBE Information Assurance"},null,null,{"$f":"'MBE Maturity Index'!P143","v":0},{"$f":"'MBE Maturity Index'!Q143","v":0},{"$f":"'MBE Maturity Index'!R143","v":0},{"$f":"'MBE Maturity Index'!S143","v":0},null,0,0,0]
[null,null,null,null,null,null,null,null,null,null,null,null,{"$f":"'MBE Maturity Index'!C162","v":"F1: Authenticity"},null,{"$f":"'MBE Maturity Index'!P162","v":0},{"$f":"'MBE Maturity Index'!Q162","v":0},{"$f":"'MBE Maturity Index'!R162","v":0},{"$f":"'MBE Maturity Index'!S162","v":0},null,0,0,0]
[null,null,null,null,null,null,null,null,null,null,null,null,{"$f":"'MBE Maturity Index'!C163","v":"F2: Accessibility"},null,{"$f":"'MBE Maturity Index'!P163","v":0},{"$f":"'MBE Maturity Index'!Q163","v":0},{"$f":"'MBE Maturity Index'!R163","v":0},{"$f":"'MBE Maturity Index'!S163","v":0},null,0,0,0]
[null,null,null,null,null,null,null,null,null,null,null,null,{"$f":"'MBE Maturity Index'!C164","v":"F3: Confidentiality"},null,{"$f":"'MBE Maturity Index'!P164","v":0},{"$f":"'MBE Maturity Index'!Q164","v":0},{"$f":"'MBE Maturity Index'!R164","v":0},{"$f":"'MBE Maturity Index'!S164","v":0},null,0,0,0]
[null,null,null,null,null,null,null,null,null,null,null,null,{"$f":"'MBE Maturity Index'!C165","v":"F4: Data Access"},null,{"$f":"'MBE Maturity Index'!P165","v":0},{"$f":"'MBE Maturity Index'!Q165","v":0},{"$f":"'MBE Maturity Index'!R165","v":0},{"$f":"'MBE Maturity Index'!S165","v":0},null,0,0,0]
[null,null,null,null,null,null,null,null,null,null,null,{"$f":"B52","v":"T7: MBE Financials"},null,null,{"$f":"'MBE Maturity Index'!P144","v":0},{"$f":"'MBE Maturity Index'!Q144","v":0},{"$f":"'MBE Maturity Index'!R144","v":0},{"$f":"'MBE Maturity Index'!S144","v":0},null,0,0,0]
[null,null,null,null,null,null,null,null,null,null,null,null,{"$f":"'MBE Maturity Index'!C167","v":"F1: Mechanism"},null,{"$f":"'MBE Maturity Index'!P167","v":0},{"$f":"'MBE Maturity Index'!Q167","v":0},{"$f":"'MBE Maturity Index'!R167","v":0},{"$f":"'MBE Maturity Index'!S167","v":0},null,0,0,0]
[null,null,null,null,null,null,null,null,null,null,null,null,{"$f":"'MBE Maturity Index'!C168","v":"F2: Continuity"},null,{"$f":"'MBE Maturity Index'!P168","v":0},{"$f":"'MBE Maturity Index'!Q168","v":0},{"$f":"'MBE Maturity Index'!R168","v":0},{"$f":"'MBE Maturity Index'!S168","v":0},null,0,0,0]